Body Name,Mapped No,Cleansed Supplier Name,Family Category,Sub Category,Ap Net Value,Ap Tax Valve,Ap Gross Value,Paid Date,Cleansed Portfolio
Nottinghamshire County Council,08-00003,RURAL COMMUNITY ACTION GROUP,External Services (Highways & Culture),Organisations and Clubs,0,"-7,117.20","-7,117.20",09-Nov-11,TBC
Nottinghamshire County Council,08-00005,CORONA ENERGY RETAIL LTD,Hard Facilities Management ,Utilities,0,-0.01,-0.01,17-Nov-11,TBC
Nottinghamshire County Council,08-00007,CORONA ENERGY RETAIL LTD,Hard Facilities Management ,Utilities,0,0.01,0.01,17-Nov-11,TBC
Nottinghamshire County Council,08-00010,CORONA ENERGY RETAIL LTD,Hard Facilities Management ,Utilities,0,0.03,0.03,17-Nov-11,TBC
Nottinghamshire County Council,08-00011,CORONA ENERGY RETAIL LTD,Hard Facilities Management ,Utilities,0,-0.01,-0.01,17-Nov-11,TBC
Nottinghamshire County Council,08-00023,CORONA ENERGY RETAIL LTD,Hard Facilities Management ,Utilities,0,0.01,0.01,17-Nov-11,TBC
Nottinghamshire County Council,08-00026,CORONA ENERGY RETAIL LTD,Hard Facilities Management ,Utilities,0,-0.02,-0.02,17-Nov-11,TBC
Nottinghamshire County Council,08-00028,CORONA ENERGY RETAIL LTD,Hard Facilities Management ,Utilities,0,-0.01,-0.01,17-Nov-11,TBC
Nottinghamshire County Council,08-00091,ON-CALL RECRUITMENT,People,Recruitment,0,0.01,0.01,03-Nov-11,TBC
Nottinghamshire County Council,08-00116,REDEMTECH,Professional Services,Financial and Insurance Services,0,-0.01,-0.01,01-Nov-11,TBC
Nottinghamshire County Council,08-00177,TARMAC CENTRAL LTD,External Services (Highways & Culture),Highways and Works,0,-0.01,-0.01,02-Nov-11,TBC
Nottinghamshire County Council,08-00227,BAKS TECHNOLOGIES LTD,People,Vocational Training,0,256,256,02-Nov-11,TBC
Nottinghamshire County Council,08-00228,WEBSTER ASSOCIATES D AND T LTD,ICT,"Printing and Publishing, Equipment and Supplies",0,158.72,158.72,02-Nov-11,TBC
Nottinghamshire County Council,08-00284,TARMAC CENTRAL LTD,External Services (Highways & Culture),Highways and Works,0,-0.01,-0.01,02-Nov-11,TBC
Nottinghamshire County Council,08-00310,TARMAC CENTRAL LTD,External Services (Highways & Culture),Highways and Works,0,-0.01,-0.01,09-Nov-11,TBC
Nottinghamshire County Council,08-00314,TARMAC CENTRAL LTD,External Services (Highways & Culture),Highways and Works,0,-0.01,-0.01,09-Nov-11,TBC
Nottinghamshire County Council,08-00318,TARMAC CENTRAL LTD,External Services (Highways & Culture),Highways and Works,0,-0.01,-0.01,01-Nov-11,TBC
Nottinghamshire County Council,08-00319,FIESTA CRAFTS LTD,Soft Facilities Management,Security,0,-0.01,-0.01,09-Nov-11,TBC
Nottinghamshire County Council,08-00321,E R F ELECTRICAL WHOLESALERS LTD,Hard Facilities Management ,Electrical Systems and Lighting,0,11.26,11.26,15-Nov-11,TBC
Nottinghamshire County Council,08-00392,SPECIALIST COMPUTER CENTRES LTD,ICT,Computer Services,0,0.01,0.01,09-Nov-11,TBC
Nottinghamshire County Council,08-00497,TARMAC CENTRAL LTD,External Services (Highways & Culture),Highways and Works,0,-0.01,-0.01,09-Nov-11,TBC
Nottinghamshire County Council,08-00546,TARMAC CENTRAL LTD,External Services (Highways & Culture),Highways and Works,0,-0.01,-0.01,09-Nov-11,TBC
Nottinghamshire County Council,08-00548,TARMAC CENTRAL LTD,External Services (Highways & Culture),Highways and Works,0,-0.01,-0.01,09-Nov-11,TBC
Nottinghamshire County Council,08-00565,SCOTT WILSON LTD,Professional Services,Consultancy,0,0.01,0.01,09-Nov-11,TBC
Nottinghamshire County Council,08-00613,TARMAC CENTRAL LTD,External Services (Highways & Culture),Highways and Works,0,-0.01,-0.01,02-Nov-11,TBC
Nottinghamshire County Council,08-00689,JAMES MCNAUGHTON PAPER MERCHANTS LTD,Soft Facilities Management,Paper and Paper Products,0,-2.63,-2.63,01-Nov-11,TBC
Nottinghamshire County Council,08-00739,TARMAC CENTRAL LTD,External Services (Highways & Culture),Highways and Works,0,-0.01,-0.01,09-Nov-11,TBC
Nottinghamshire County Council,08-01008,TARMAC CENTRAL LTD,External Services (Highways & Culture),Highways and Works,0,-0.01,-0.01,09-Nov-11,TBC
Nottinghamshire County Council,08-01115,BROWNE JACOBSON LLP,Professional Services,Legal Services,0,150,150,02-Nov-11,TBC
Nottinghamshire County Council,08-01116,BROWNE JACOBSON LLP,Professional Services,Legal Services,0,117,117,02-Nov-11,TBC
Nottinghamshire County Council,08-01117,CANDOR SERVICES LTD,Soft Facilities Management,Cleaning Equipment and Janitorial Supplies,0,125.53,125.53,02-Nov-11,TBC
Nottinghamshire County Council,08-01118,JACKSON BUILDING CENTRES LTD,Hard Facilities Management ,Building and Construction Supplies,0,253.29,253.29,02-Nov-11,TBC
Nottinghamshire County Council,08-01119,KONICA MINOLTA,ICT,"Printing and Publishing, Equipment and Supplies",0,114.54,114.54,02-Nov-11,TBC
Nottinghamshire County Council,08-01120,E M E C ECOLOGICAL CONSULTANTS,Soft Facilities Management,Environmental Services,0,479,479,02-Nov-11,TBC
Nottinghamshire County Council,08-01121,CALANDINE LIFTS LTD,External Services (Highways & Culture),Manufacturing Machinery,0,151.6,151.6,02-Nov-11,TBC
Nottinghamshire County Council,08-01122,PHS GROUP PLC,Soft Facilities Management,Cleaning Equipment and Janitorial Supplies,0,404.07,404.07,02-Nov-11,TBC
Nottinghamshire County Council,08-01123,PHS GROUP PLC,Soft Facilities Management,Cleaning Equipment and Janitorial Supplies,0,966.28,966.28,02-Nov-11,TBC
Nottinghamshire County Council,08-01124,NCMA SERVICES LTD,Care,Infant Or Child Daycare Services,0,"26,523.30","26,523.30",02-Nov-11,TBC
Nottinghamshire County Council,08-01125,NCMA SERVICES LTD,Care,Infant Or Child Daycare Services,0,"13,261.65","13,261.65",02-Nov-11,TBC
Nottinghamshire County Council,08-01126,GEORGES CONTRACTORS LTD,Hard Facilities Management ,Building Construction Services,0,598,598,02-Nov-11,TBC
Nottinghamshire County Council,08-01127,SOUTH FOREST LEISURE CENTRE,Transport & Travel,Hotels and Venues,0,222.7,222.7,02-Nov-11,TBC
Nottinghamshire County Council,08-01128,SWIIS (UK) LTD,People,Agency Staff - Care,0,136.38,136.38,09-Nov-11,TBC
Nottinghamshire County Council,08-01130,STRELLEY SYSTEMS LTD,Transport & Travel,Hotels and Venues,0,625.15,625.15,15-Nov-11,TBC
Nottinghamshire County Council,08-01131,BUS SHELTERS LTD,Transport & Travel,Bus,0,457.86,457.86,02-Nov-11,TBC
Nottinghamshire County Council,08-01132,COOKCO LTD,Soft Facilities Management,Vending Machines and Food Equipment,0,108,108,02-Nov-11,TBC
Nottinghamshire County Council,08-01133,CARTER BROWN ASSOCIATES,Professional Services,Legal Services,0,123.63,123.63,02-Nov-11,TBC
Nottinghamshire County Council,08-01134,CARTER BROWN ASSOCIATES,Professional Services,Legal Services,0,231.03,231.03,02-Nov-11,TBC
Nottinghamshire County Council,08-01135,SYNETRIX LTD,ICT,Communications Devices and Accessories,0,676,676,09-Nov-11,TBC
Nottinghamshire County Council,08-01136,ASSETCO RENTALS NO 2 LTD,Transport & Travel,Motor Vehicles,0,360,360,02-Nov-11,TBC
Nottinghamshire County Council,08-01138,FREETH CARTWRIGHT SOLICITORS,Professional Services,Legal Services,0,95.7,95.7,02-Nov-11,TBC
Nottinghamshire County Council,08-01139,SL CLOTHING LTD,Soft Facilities Management,Clothing,0,144.04,144.04,02-Nov-11,TBC
Nottinghamshire County Council,08-01140,MERIDIAN BUSINESS SUPPORT LTD,People,Recruitment,0,123.56,123.56,09-Nov-11,TBC
Nottinghamshire County Council,08-01143,DRAEFERN LTD T/A RIGHT4STAFF,People,Recruitment,0,92.93,92.93,02-Nov-11,TBC
Nottinghamshire County Council,08-01144,DRAEFERN LTD T/A RIGHT4STAFF,People,Recruitment,0,93.51,93.51,02-Nov-11,TBC
Nottinghamshire County Council,08-01145,STANLEY SECURITY SOLUTIONS,Soft Facilities Management,Security,0,150.82,150.82,02-Nov-11,TBC
Nottinghamshire County Council,08-01146,BOUGHTON TURF MANAGEMENT,External Services (Highways & Culture),Farming Forestry and Wildlife Services,0,256,256,02-Nov-11,TBC
Nottinghamshire County Council,08-01147,BLADE RUNNERS COMMERCIAL CLEANING LTD,Soft Facilities Management,Industrial Cleaning Services,0,122,122,09-Nov-11,TBC
Nottinghamshire County Council,08-01148,STRAW AND PEARCE SOLICITORS,Professional Services,Legal Services,0,114.12,114.12,09-Nov-11,TBC
Nottinghamshire County Council,08-01149,STRAW AND PEARCE SOLICITORS,Professional Services,Legal Services,0,298.65,298.65,09-Nov-11,TBC
Nottinghamshire County Council,08-01150,STRAW AND PEARCE SOLICITORS,Professional Services,Legal Services,0,248.93,248.93,09-Nov-11,TBC
Nottinghamshire County Council,08-01151,STRAW AND PEARCE SOLICITORS,Professional Services,Legal Services,0,414,414,09-Nov-11,TBC
Nottinghamshire County Council,08-01152,STRAW AND PEARCE SOLICITORS,Professional Services,Legal Services,0,155.9,155.9,09-Nov-11,TBC
Nottinghamshire County Council,08-01153,STRAW AND PEARCE SOLICITORS,Professional Services,Legal Services,0,192.52,192.52,09-Nov-11,TBC
Nottinghamshire County Council,08-01154,STRAW AND PEARCE SOLICITORS,Professional Services,Legal Services,0,287.32,287.32,09-Nov-11,TBC
Nottinghamshire County Council,08-01155,STRAW AND PEARCE SOLICITORS,Professional Services,Legal Services,0,202.42,202.42,09-Nov-11,TBC
Nottinghamshire County Council,08-01156,STRAW AND PEARCE SOLICITORS,Professional Services,Legal Services,0,469.52,469.52,09-Nov-11,TBC
Nottinghamshire County Council,08-01157,STRAW AND PEARCE SOLICITORS,Professional Services,Legal Services,0,369.26,369.26,09-Nov-11,TBC
Nottinghamshire County Council,08-01158,HEMPSALL CONSULTANCIES LTD,Professional Services,Consultancy,0,162,162,02-Nov-11,TBC
Nottinghamshire County Council,08-01159,EDEN BROWN LTD,People,Recruitment,0,232.29,232.29,02-Nov-11,TBC
Nottinghamshire County Council,08-01160,GK GROUP MANSFIELD,Transport & Travel,Motor Vehicles,0,"1,814.92","1,814.92",09-Nov-11,TBC
Nottinghamshire County Council,08-01161,CARDEA,Care,Healthcare Services,0,-372.73,-372.73,04-Nov-11,TBC
Nottinghamshire County Council,08-01162,CARDEA,Care,Healthcare Services,0,115.39,115.39,02-Nov-11,TBC
Nottinghamshire County Council,08-01163,CARDEA,Care,Healthcare Services,0,174,174,02-Nov-11,TBC
Nottinghamshire County Council,08-01164,CARDEA,Care,Healthcare Services,0,94.96,94.96,09-Nov-11,TBC
Nottinghamshire County Council,08-01165,CARDEA,Care,Healthcare Services,0,227.81,227.81,09-Nov-11,TBC
Nottinghamshire County Council,08-01166,CARDEA,Care,Healthcare Services,0,288.63,288.63,09-Nov-11,TBC
Nottinghamshire County Council,08-01167,CARDEA,Care,Healthcare Services,0,247.22,247.22,09-Nov-11,TBC
Nottinghamshire County Council,08-01168,EMO OIL LTD,Hard Facilities Management ,Utilities,0,317.52,317.52,02-Nov-11,TBC
Nottinghamshire County Council,08-01170,AUTO GLYM,Transport & Travel,Fleet Maintenance Services,0,149.27,149.27,02-Nov-11,TBC
Nottinghamshire County Council,08-01171,CAPITA SOCIAL CARE AND HOUSING,Care,Domiciliary Care,0,-134.09,-134.09,04-Nov-11,TBC
Nottinghamshire County Council,08-01172,CAPITA SOCIAL CARE AND HOUSING,Care,Domiciliary Care,0,-114.63,-114.63,04-Nov-11,TBC
Nottinghamshire County Council,08-01173,CAPITA SOCIAL CARE AND HOUSING,Care,Domiciliary Care,0,-126.78,-126.78,09-Nov-11,TBC
Nottinghamshire County Council,08-01174,CAPITA SOCIAL CARE AND HOUSING,Care,Domiciliary Care,0,-121.47,-121.47,09-Nov-11,TBC
Nottinghamshire County Council,08-01175,CAPITA SOCIAL CARE AND HOUSING,Care,Domiciliary Care,0,-92.94,-92.94,09-Nov-11,TBC
Nottinghamshire County Council,08-01176,CAPITA SOCIAL CARE AND HOUSING,Care,Domiciliary Care,0,96.78,96.78,09-Nov-11,TBC
Nottinghamshire County Council,08-01177,SHEFFIELD FAMILY LAW ASSOCIATES,Professional Services,Legal Services,0,185.32,185.32,02-Nov-11,TBC
Nottinghamshire County Council,08-01179,DICKINSON DEES LLP,Professional Services,Legal Services,0,"2,150.80","2,150.80",02-Nov-11,TBC
Nottinghamshire County Council,08-01180,ANGLIA DNA SERVICES LTD,TBC,TBC,0,91.8,91.8,02-Nov-11,TBC
Nottinghamshire County Council,08-01181,JACKSON BATES LTD                     ,TBC,TBC,0,110.09,110.09,02-Nov-11,TBC
Nottinghamshire County Council,08-01219,VALUATION OFFICE AGENCY,Professional Services,Property Management,0,168,168,09-Nov-11,TBC
Nottinghamshire County Council,08-01315,TARMAC CENTRAL LTD,External Services (Highways & Culture),Highways and Works,0,-0.01,-0.01,10-Nov-11,TBC
Nottinghamshire County Council,08-01316,TARMAC CENTRAL LTD,External Services (Highways & Culture),Highways and Works,0,-0.01,-0.01,10-Nov-11,TBC
Nottinghamshire County Council,08-01344,CONTRACT CARE LTD                     ,TBC,TBC,0,-135.8,-135.8,07-Nov-11,TBC
Nottinghamshire County Council,08-01345,CONTRACT CARE LTD                     ,TBC,TBC,0,-135.8,-135.8,07-Nov-11,TBC
Nottinghamshire County Council,08-01346,CONTRACT CARE LTD                     ,TBC,TBC,0,-135.8,-135.8,07-Nov-11,TBC
Nottinghamshire County Council,08-01347,CONTRACT CARE LTD                     ,TBC,TBC,0,-135.8,-135.8,07-Nov-11,TBC
Nottinghamshire County Council,08-01359,TARMAC CENTRAL LTD,External Services (Highways & Culture),Highways and Works,0,-0.01,-0.01,10-Nov-11,TBC
Nottinghamshire County Council,08-01360,TARMAC CENTRAL LTD,External Services (Highways & Culture),Highways and Works,0,-0.01,-0.01,10-Nov-11,TBC
Nottinghamshire County Council,08-01448,INSTATHERM COMBUSTION SERVICES LTD,Hard Facilities Management ,Plumbing Services,0,-0.01,-0.01,15-Nov-11,TBC
Nottinghamshire County Council,08-01491,HEADWAY NOTTINGHAM,Professional Services,Politics and Civic Affairs,0,-684,-684,03-Nov-11,TBC
Nottinghamshire County Council,08-01505,TARMAC CENTRAL LTD,External Services (Highways & Culture),Highways and Works,0,-0.01,-0.01,10-Nov-11,TBC
Nottinghamshire County Council,08-01506,TARMAC CENTRAL LTD,External Services (Highways & Culture),Highways and Works,0,-0.01,-0.01,09-Nov-11,TBC
Nottinghamshire County Council,08-01568,NEW PERSPECTIVES THEATRE COMPANY,Professional Services,Professional Artists and Performers,0,400,400,03-Nov-11,TBC
Nottinghamshire County Council,08-01570,KONICA MINOLTA,ICT,"Printing and Publishing, Equipment and Supplies",0,-289.72,-289.72,04-Nov-11,TBC
Nottinghamshire County Council,08-01571,KONICA MINOLTA,ICT,"Printing and Publishing, Equipment and Supplies",0,289.72,289.72,04-Nov-11,TBC
Nottinghamshire County Council,08-01572,SPECIALIST COMPUTER CENTRES LTD,ICT,Computer Services,0,"-1,227.62","-1,227.62",09-Nov-11,TBC
Nottinghamshire County Council,08-01573,SPECIALIST COMPUTER CENTRES LTD,ICT,Computer Services,0,"-3,059.66","-3,059.66",09-Nov-11,TBC
Nottinghamshire County Council,08-01574,SPECIALIST COMPUTER CENTRES LTD,ICT,Computer Services,0,"2,260.87","2,260.87",04-Nov-11,TBC
Nottinghamshire County Council,08-01575,SPECIALIST COMPUTER CENTRES LTD,ICT,Computer Services,0,"4,589.50","4,589.50",04-Nov-11,TBC
Nottinghamshire County Council,08-01576,CAPITA,Professional Services,Consultancy,0,111.18,111.18,04-Nov-11,TBC
Nottinghamshire County Council,08-01577,MAKING IT! ENTERPRISES LTD,External Services (Highways & Culture),Sports and Recreational Equipment and Supplies,0,479.64,479.64,04-Nov-11,TBC
Nottinghamshire County Council,08-01580,KB RECRUITMENT LTD,People,Recruitment,0,355.22,355.22,07-Nov-11,TBC
Nottinghamshire County Council,08-01581,CLEMENT CLARKE COMMUNICATIONS LTD,ICT,Audio and Visual Equipment,0,146.84,146.84,04-Nov-11,TBC
Nottinghamshire County Council,08-01582,OXFORDSHIRE TOURING THEATRE COMPANY,Professional Services,Professional Artists and Performers,0,"1,050.00","1,050.00",03-Nov-11,TBC
Nottinghamshire County Council,08-01583,EXTERNITURE LTD,External Services (Highways & Culture),Highways and Works,0,"4,147.49","4,147.49",09-Nov-11,TBC
Nottinghamshire County Council,08-01585,EDEN BROWN LTD,People,Recruitment,0,268.92,268.92,09-Nov-11,TBC
Nottinghamshire County Council,08-01586,EDEN BROWN LTD,People,Recruitment,0,174.43,174.43,09-Nov-11,TBC
Nottinghamshire County Council,08-01587,EDEN BROWN LTD,People,Recruitment,0,366.79,366.79,04-Nov-11,TBC
Nottinghamshire County Council,08-01588,EDEN BROWN LTD,People,Recruitment,0,285.03,285.03,04-Nov-11,TBC
Nottinghamshire County Council,08-01589,EDEN BROWN LTD,People,Recruitment,0,370.61,370.61,04-Nov-11,TBC
Nottinghamshire County Council,08-01590,EDEN BROWN LTD,People,Recruitment,0,298.57,298.57,04-Nov-11,TBC
Nottinghamshire County Council,08-01591,EDEN BROWN LTD,People,Recruitment,0,300.82,300.82,04-Nov-11,TBC
Nottinghamshire County Council,08-01592,EDEN BROWN LTD,People,Recruitment,0,371.47,371.47,04-Nov-11,TBC
Nottinghamshire County Council,08-01593,EDEN BROWN LTD,People,Recruitment,0,278.19,278.19,04-Nov-11,TBC
Nottinghamshire County Council,08-01594,EDEN BROWN LTD,People,Recruitment,0,395.36,395.36,04-Nov-11,TBC
Nottinghamshire County Council,08-01595,EDEN BROWN LTD,People,Recruitment,0,377.14,377.14,04-Nov-11,TBC
Nottinghamshire County Council,08-01596,EDEN BROWN LTD,People,Recruitment,0,308.56,308.56,04-Nov-11,TBC
Nottinghamshire County Council,08-01597,EDEN BROWN LTD,People,Recruitment,0,368.95,368.95,09-Nov-11,TBC
Nottinghamshire County Council,08-01598,EDEN BROWN LTD,People,Recruitment,0,278.55,278.55,09-Nov-11,TBC
Nottinghamshire County Council,08-01599,EDEN BROWN LTD,People,Recruitment,0,365.71,365.71,09-Nov-11,TBC
Nottinghamshire County Council,08-01600,EDEN BROWN LTD,People,Recruitment,0,275.94,275.94,04-Nov-11,TBC
Nottinghamshire County Council,08-01601,EDEN BROWN LTD,People,Recruitment,0,181.7,181.7,04-Nov-11,TBC
Nottinghamshire County Council,08-01602,EDEN BROWN LTD,People,Recruitment,0,262.6,262.6,04-Nov-11,TBC
Nottinghamshire County Council,08-01603,EDEN BROWN LTD,People,Recruitment,0,277.29,277.29,04-Nov-11,TBC
Nottinghamshire County Council,08-01604,EDEN BROWN LTD,People,Recruitment,0,174.43,174.43,09-Nov-11,TBC
Nottinghamshire County Council,08-01605,EDEN BROWN LTD,People,Recruitment,0,297.72,297.72,09-Nov-11,TBC
Nottinghamshire County Council,08-01606,EDEN BROWN LTD,People,Recruitment,0,234.42,234.42,09-Nov-11,TBC
Nottinghamshire County Council,08-01607,EDEN BROWN LTD,People,Recruitment,0,313.98,313.98,09-Nov-11,TBC
Nottinghamshire County Council,08-01608,EDEN BROWN LTD,People,Recruitment,0,314.5,314.5,09-Nov-11,TBC
Nottinghamshire County Council,08-01609,EDEN BROWN LTD,People,Recruitment,0,305.59,305.59,09-Nov-11,TBC
Nottinghamshire County Council,08-01610,EDEN BROWN LTD,People,Recruitment,0,309.82,309.82,09-Nov-11,TBC
Nottinghamshire County Council,08-01611,EDEN BROWN LTD,People,Recruitment,0,275.22,275.22,09-Nov-11,TBC
Nottinghamshire County Council,08-01612,GK GROUP MANSFIELD,Transport & Travel,Motor Vehicles,0,"1,814.92","1,814.92",09-Nov-11,TBC
Nottinghamshire County Council,08-01613,CARDEA,Care,Healthcare Services,0,92.69,92.69,04-Nov-11,TBC
Nottinghamshire County Council,08-01614,CARDEA,Care,Healthcare Services,0,92.69,92.69,09-Nov-11,TBC
Nottinghamshire County Council,08-01615,CARDEA,Care,Healthcare Services,0,266.09,266.09,09-Nov-11,TBC
Nottinghamshire County Council,08-01617,CAPITA SOCIAL CARE AND HOUSING,Care,Domiciliary Care,0,198.69,198.69,04-Nov-11,TBC
Nottinghamshire County Council,08-01618,CAPITA SOCIAL CARE AND HOUSING,Care,Domiciliary Care,0,83.68,83.68,09-Nov-11,TBC
Nottinghamshire County Council,08-01619,CAPITA SOCIAL CARE AND HOUSING,Care,Domiciliary Care,0,231.45,231.45,09-Nov-11,TBC
Nottinghamshire County Council,08-01620,CAPITA SOCIAL CARE AND HOUSING,Care,Domiciliary Care,0,189.98,189.98,09-Nov-11,TBC
Nottinghamshire County Council,08-01621,CAPITA SOCIAL CARE AND HOUSING,Care,Domiciliary Care,0,100.83,100.83,09-Nov-11,TBC
Nottinghamshire County Council,08-01622,CAPITA SOCIAL CARE AND HOUSING,Care,Domiciliary Care,0,183.28,183.28,09-Nov-11,TBC
Nottinghamshire County Council,08-01623,SHEFFIELD FAMILY LAW ASSOCIATES,Professional Services,Legal Services,0,122.63,122.63,04-Nov-11,TBC
Nottinghamshire County Council,08-01624,SHEFFIELD FAMILY LAW ASSOCIATES,Professional Services,Legal Services,0,169.35,169.35,04-Nov-11,TBC
Nottinghamshire County Council,08-01625,SHEFFIELD FAMILY LAW ASSOCIATES,Professional Services,Legal Services,0,156.55,156.55,04-Nov-11,TBC
Nottinghamshire County Council,08-01626,SHEFFIELD FAMILY LAW ASSOCIATES,Professional Services,Legal Services,0,254.34,254.34,04-Nov-11,TBC
Nottinghamshire County Council,08-01627,SHEFFIELD FAMILY LAW ASSOCIATES,Professional Services,Legal Services,0,183.27,183.27,04-Nov-11,TBC
Nottinghamshire County Council,08-01628,SHEFFIELD FAMILY LAW ASSOCIATES,Professional Services,Legal Services,0,153.39,153.39,04-Nov-11,TBC
Nottinghamshire County Council,08-01629,SHEFFIELD FAMILY LAW ASSOCIATES,Professional Services,Legal Services,0,213.87,213.87,04-Nov-11,TBC
Nottinghamshire County Council,08-01630,SHEFFIELD FAMILY LAW ASSOCIATES,Professional Services,Legal Services,0,"1,439.21","1,439.21",04-Nov-11,TBC
Nottinghamshire County Council,08-01637,TARMAC CENTRAL LTD,External Services (Highways & Culture),Highways and Works,0,-0.01,-0.01,09-Nov-11,TBC
Nottinghamshire County Council,08-01638,ACADEMY SOCIAL CARE LTD,Care,Domiciliary Care,0,595,595,04-Nov-11,TBC
Nottinghamshire County Council,08-01661,ORCHARD HILL FARM MACHINERY,External Services (Highways & Culture),Agricultural and Forestry and Landscape Machinery and Equipment,0,-100.36,-100.36,04-Nov-11,TBC
Nottinghamshire County Council,08-01718,AMBER-RTM LTD,External Services (Highways & Culture),Highways and Works,0,0.01,0.01,07-Nov-11,TBC
Nottinghamshire County Council,08-01740,DIRECT MOULDINGS,External Services (Highways & Culture),Highways and Works,0,56.25,56.25,04-Nov-11,TBC
Nottinghamshire County Council,08-01745,ENNSTONE JOHNSTON LTD,External Services (Highways & Culture),Earth and Stone Aggregates ,0,0.01,0.01,04-Nov-11,TBC
Nottinghamshire County Council,08-01747,MIDLAND LANDFILL LTD,Soft Facilities Management,Scrap and Waste Materials,0,0.01,0.01,07-Nov-11,TBC
Nottinghamshire County Council,08-01749,B N GIBSON MOTORS,Transport & Travel,Taxi,0,-0.01,-0.01,04-Nov-11,TBC
Nottinghamshire County Council,08-01931,TARMAC CENTRAL LTD,External Services (Highways & Culture),Highways and Works,0,-0.01,-0.01,10-Nov-11,TBC
Nottinghamshire County Council,08-01936,SPECIALIST COMPUTER CENTRES LTD,ICT,Computer Services,0,"1,000.21","1,000.21",09-Nov-11,TBC
Nottinghamshire County Council,08-02048,QC SUPPLIES LTD,Soft Facilities Management,Office Supplies and Machines (Non It),0,0.01,0.01,09-Nov-11,TBC
Nottinghamshire County Council,08-02051,CREATIVE TOPS LTD,External Services (Highways & Culture),Arts and Crafts,0,-0.02,-0.02,14-Nov-11,TBC
Nottinghamshire County Council,08-02056,INCLUSIVE TECHNOLOGY,ICT,Software,0,17.4,17.4,15-Nov-11,TBC
Nottinghamshire County Council,08-02061,ELGATE PRODUCTS LTD,External Services (Highways & Culture),Arts and Crafts,0,-6.38,-6.38,07-Nov-11,TBC
Nottinghamshire County Council,08-02066,TARMAC CENTRAL LTD,External Services (Highways & Culture),Highways and Works,0,-0.01,-0.01,10-Nov-11,TBC
Nottinghamshire County Council,08-02068,WIDDOP BINGHAM AND CO LTD,External Services (Highways & Culture),Arts and Crafts,0,-0.01,-0.01,10-Nov-11,TBC
Nottinghamshire County Council,08-02153,NTL GROUP LTD,ICT,Telecommunications and Media,0,0.01,0.01,09-Nov-11,TBC
Nottinghamshire County Council,08-02168,MOTOR BODY REPAIRS,Transport & Travel,Fleet Maintenance Services,0,-0.01,-0.01,09-Nov-11,TBC
Nottinghamshire County Council,08-02216,FARMHOUSE SPECIALITY FOODS,Soft Facilities Management,Prepared and Preserved Foods,0,0.01,0.01,09-Nov-11,TBC
Nottinghamshire County Council,08-02251,ARVAL P H H BUSINESS SOLUTIONS,Transport & Travel,Gas Fuels and Lubricants ,0,1.29,1.29,09-Nov-11,TBC
Nottinghamshire County Council,08-02252,ARVAL P H H BUSINESS SOLUTIONS,Transport & Travel,Gas Fuels and Lubricants ,0,0.02,0.02,09-Nov-11,TBC
Nottinghamshire County Council,08-02257,ENNSTONE JOHNSTON LTD,External Services (Highways & Culture),Earth and Stone Aggregates ,0,0.01,0.01,09-Nov-11,TBC
Nottinghamshire County Council,08-02259,NEWARK CONCRETE,Hard Facilities Management ,Concrete Installation and Repair Services,0,-0.01,-0.01,09-Nov-11,TBC
Nottinghamshire County Council,08-05328,TAXICOVER (UK) LTD T/A CHRIS'S TAXIS,Transport & Travel,Taxi,0,-0.01,-0.01,09-Nov-11,TBC
Nottinghamshire County Council,08-05329,ARROW SPECIALISED TRANSPORT LTD,Transport & Travel,Bus,0,0.01,0.01,09-Nov-11,TBC
Nottinghamshire County Council,08-05343,ARROW SPECIALISED TRANSPORT LTD,Transport & Travel,Bus,0,-0.01,-0.01,09-Nov-11,TBC
Nottinghamshire County Council,08-05419,HOBART UK LTD,Soft Facilities Management,Prepared and Preserved Foods,0,151,151,09-Nov-11,TBC
Nottinghamshire County Council,08-05420,SHAW BROS LTD,Hard Facilities Management ,Plumbing Services,0,175.16,175.16,09-Nov-11,TBC
Nottinghamshire County Council,08-05421,BROWNE JACOBSON LLP,Professional Services,Legal Services,0,"1,804.00","1,804.00",09-Nov-11,TBC
Nottinghamshire County Council,08-05422,ROAD RUNNERS DESPATCH LTD,Soft Facilities Management,Mail and Couriers,0,210.71,210.71,09-Nov-11,TBC
Nottinghamshire County Council,08-05424,HEARING PRODUCTS INTERNATIONAL LTD,Care,Medical Equipment and  Supplies,0,161.9,161.9,09-Nov-11,TBC
Nottinghamshire County Council,08-05425,LINCOLN SECURITY LTD,Soft Facilities Management,Security,0,100.57,100.57,09-Nov-11,TBC
Nottinghamshire County Council,08-05426,SPECIALIST COMPUTER CENTRES LTD,ICT,Computer Services,0,"1,678.00","1,678.00",09-Nov-11,TBC
Nottinghamshire County Council,08-05427,CAPITA,Professional Services,Consultancy,0,234.83,234.83,09-Nov-11,TBC
Nottinghamshire County Council,08-05428,CAPITA,Professional Services,Consultancy,0,231.69,231.69,09-Nov-11,TBC
Nottinghamshire County Council,08-05429,WILLIAM FREER LTD,Soft Facilities Management,Vending Machines and Food Equipment,0,117,117,09-Nov-11,TBC
Nottinghamshire County Council,08-05430,PREMIER PETS HOTEL,External Services (Highways & Culture),Plant and Animal Supplies,0,100.33,100.33,09-Nov-11,TBC
Nottinghamshire County Council,08-05431,WEIGHTMANS LLP,Professional Services,Legal Services,0,"2,944.92","2,944.92",09-Nov-11,TBC
Nottinghamshire County Council,08-05434,CARTER BROWN ASSOCIATES,Professional Services,Legal Services,0,229.3,229.3,09-Nov-11,TBC
Nottinghamshire County Council,08-05435,BRITISH RED CROSS SOCIETY,Care,Residential Care,0,130.4,130.4,09-Nov-11,TBC
Nottinghamshire County Council,08-05438,WRAGGE AND CO,Professional Services,Legal Services,0,305.52,305.52,09-Nov-11,TBC
Nottinghamshire County Council,08-05439,KB RECRUITMENT LTD,People,Recruitment,0,278.21,278.21,09-Nov-11,TBC
Nottinghamshire County Council,08-05440,FREETH CARTWRIGHT SOLICITORS,Professional Services,Legal Services,0,252,252,09-Nov-11,TBC
Nottinghamshire County Council,08-05441,FREETH CARTWRIGHT SOLICITORS,Professional Services,Legal Services,0,431.1,431.1,09-Nov-11,TBC
Nottinghamshire County Council,08-05442,FREETH CARTWRIGHT SOLICITORS,Professional Services,Legal Services,0,161.7,161.7,09-Nov-11,TBC
Nottinghamshire County Council,08-05443,FREETH CARTWRIGHT SOLICITORS,Professional Services,Legal Services,0,448.8,448.8,09-Nov-11,TBC
Nottinghamshire County Council,08-05444,FREETH CARTWRIGHT SOLICITORS,Professional Services,Legal Services,0,132,132,09-Nov-11,TBC
Nottinghamshire County Council,08-05447,PICKFORDS LTD,Hard Facilities Management ,Material Handling and Storage,0,296,296,09-Nov-11,TBC
Nottinghamshire County Council,08-05448,VENTURE4LIFE,External Services (Highways & Culture),Education Services,0,89.6,89.6,09-Nov-11,TBC
Nottinghamshire County Council,08-05450,STRAW AND PEARCE SOLICITORS,Professional Services,Legal Services,0,577.44,577.44,09-Nov-11,TBC
Nottinghamshire County Council,08-05451,STRAW AND PEARCE SOLICITORS,Professional Services,Legal Services,0,504.77,504.77,10-Nov-11,TBC
Nottinghamshire County Council,08-05452,STRAW AND PEARCE SOLICITORS,Professional Services,Legal Services,0,299.84,299.84,10-Nov-11,TBC
Nottinghamshire County Council,08-05453,STRAW AND PEARCE SOLICITORS,Professional Services,Legal Services,0,"1,244.80","1,244.80",10-Nov-11,TBC
Nottinghamshire County Council,08-05454,EDEN BROWN LTD,People,Recruitment,0,509.64,509.64,10-Nov-11,TBC
Nottinghamshire County Council,08-05455,CAPITA SOCIAL CARE AND HOUSING,Care,Domiciliary Care,0,246.64,246.64,09-Nov-11,TBC
Nottinghamshire County Council,08-05456,CAPITA SOCIAL CARE AND HOUSING,Care,Domiciliary Care,0,135.42,135.42,10-Nov-11,TBC
Nottinghamshire County Council,08-05457,CAPITA SOCIAL CARE AND HOUSING,Care,Domiciliary Care,0,135.42,135.42,10-Nov-11,TBC
Nottinghamshire County Council,08-05458,CAPITA SOCIAL CARE AND HOUSING,Care,Domiciliary Care,0,135.42,135.42,10-Nov-11,TBC
Nottinghamshire County Council,08-05459,CAPITA SOCIAL CARE AND HOUSING,Care,Domiciliary Care,0,229.56,229.56,10-Nov-11,TBC
Nottinghamshire County Council,08-05460,CAPITA SOCIAL CARE AND HOUSING,Care,Domiciliary Care,0,246.64,246.64,10-Nov-11,TBC
Nottinghamshire County Council,08-05461,CAPITA SOCIAL CARE AND HOUSING,Care,Domiciliary Care,0,230.31,230.31,10-Nov-11,TBC
Nottinghamshire County Council,08-05462,CAPITA SOCIAL CARE AND HOUSING,Care,Domiciliary Care,0,212.65,212.65,10-Nov-11,TBC
Nottinghamshire County Council,08-05463,CAPITA SOCIAL CARE AND HOUSING,Care,Domiciliary Care,0,179.38,179.38,10-Nov-11,TBC
Nottinghamshire County Council,08-05464,CAPITA SOCIAL CARE AND HOUSING,Care,Domiciliary Care,0,179.38,179.38,10-Nov-11,TBC
Nottinghamshire County Council,08-05465,GOALS UK CIC,External Services (Highways & Culture),Sports and Recreational Equipment and Supplies,0,360,360,15-Nov-11,TBC
Nottinghamshire County Council,08-05466,BRAMBLE.CC LTD,Professional Services,Consultancy,0,594,594,09-Nov-11,TBC
Nottinghamshire County Council,08-05521,LEX AUTOLEASE LTD,Transport & Travel,Motor Vehicles,0,0.02,0.02,14-Nov-11,TBC
Nottinghamshire County Council,08-05522,LEX AUTOLEASE LTD,Transport & Travel,Motor Vehicles,0,0.01,0.01,09-Nov-11,TBC
Nottinghamshire County Council,08-05524,HEMPSALL CONSULTANCIES LTD,Professional Services,Consultancy,0,140,140,09-Nov-11,TBC
Nottinghamshire County Council,08-05556,BATCHMIX LTD,Hard Facilities Management ,Concrete Installation and Repair Services,0,0.01,0.01,09-Nov-11,TBC
Nottinghamshire County Council,08-05598,NEWARK CONCRETE,Hard Facilities Management ,Concrete Installation and Repair Services,0,-0.01,-0.01,09-Nov-11,TBC
Nottinghamshire County Council,08-05623,JOHN GOOD LTD,TBC,TBC,0,99.8,99.8,09-Nov-11,TBC
Nottinghamshire County Council,08-05624,THE STORYTELLERS THEATRE COMPANY,TBC,TBC,0,114,114,09-Nov-11,TBC
Nottinghamshire County Council,08-05642,BASSETLAW TOWN CENTRE PARTNERSHIP TRUS,TBC,TBC,0,-0.01,-0.01,09-Nov-11,TBC
Nottinghamshire County Council,08-05643,BASSETLAW TOWN CENTRE PARTNERSHIP TRUS,TBC,TBC,0,-0.01,-0.01,09-Nov-11,TBC
Nottinghamshire County Council,08-05647,TARMAC CENTRAL LTD,External Services (Highways & Culture),Highways and Works,0,-0.01,-0.01,14-Nov-11,TBC
Nottinghamshire County Council,08-05666,EXPRESS ASPHALT LTD,External Services (Highways & Culture),Highways and Works,0,0.02,0.02,09-Nov-11,TBC
Nottinghamshire County Council,08-05820,TARMAC CENTRAL LTD,External Services (Highways & Culture),Highways and Works,0,-0.01,-0.01,14-Nov-11,TBC
Nottinghamshire County Council,08-05846,EXPRESS ASPHALT LTD,External Services (Highways & Culture),Highways and Works,0,0.02,0.02,15-Nov-11,TBC
Nottinghamshire County Council,08-05848,EXPRESS ASPHALT LTD,External Services (Highways & Culture),Highways and Works,0,0.01,0.01,15-Nov-11,TBC
Nottinghamshire County Council,08-05858,STAPLETONS LOCK AND SAFE LTD,Soft Facilities Management,Security,0,-0.01,-0.01,15-Nov-11,TBC
Nottinghamshire County Council,08-06048,PEACE OF MIND 925 LTD,External Services (Highways & Culture),Arts and Crafts,0,0.06,0.06,14-Nov-11,TBC
Nottinghamshire County Council,08-06083,BRAKE BROS LTD,Soft Facilities Management,Prepared and Preserved Foods,0,-0.01,-0.01,15-Nov-11,TBC
Nottinghamshire County Council,08-06108,ENNSTONE JOHNSTON LTD,External Services (Highways & Culture),Earth and Stone Aggregates ,0,-0.01,-0.01,15-Nov-11,TBC
Nottinghamshire County Council,08-06518,SCOTT WILSON LTD,Professional Services,Consultancy,0,-0.01,-0.01,11-Nov-11,TBC
Nottinghamshire County Council,08-06523,ALLEN GLENOLD LTD,Soft Facilities Management,Paper and Paper Products,0,-0.01,-0.01,17-Nov-11,TBC
Nottinghamshire County Council,08-06524,TARMAC CENTRAL LTD,External Services (Highways & Culture),Highways and Works,0,-0.01,-0.01,14-Nov-11,TBC
Nottinghamshire County Council,08-06567,IN-TRAC TRAINING AND CONSULTANCYLIMITED,People,Vocational Training,0,276,276,14-Nov-11,TBC
Nottinghamshire County Council,08-06569,COOKCO LTD,Soft Facilities Management,Vending Machines and Food Equipment,0,286,286,15-Nov-11,TBC
Nottinghamshire County Council,08-06576,CARDEA,Care,Healthcare Services,0,142.39,142.39,14-Nov-11,TBC
Nottinghamshire County Council,08-06577,CARDEA,Care,Healthcare Services,0,84.54,84.54,14-Nov-11,TBC
Nottinghamshire County Council,08-06578,CARDEA,Care,Healthcare Services,0,138.66,138.66,14-Nov-11,TBC
Nottinghamshire County Council,08-06579,CARDEA,Care,Healthcare Services,0,127.72,127.72,14-Nov-11,TBC
Nottinghamshire County Council,08-06580,CARDEA,Care,Healthcare Services,0,145.45,145.45,14-Nov-11,TBC
Nottinghamshire County Council,08-06612,AGGREGATES R US LTD,External Services (Highways & Culture),Earth and Stone Aggregates ,0,-0.01,-0.01,14-Nov-11,TBC
Nottinghamshire County Council,08-06615,ENNSTONE JOHNSTON LTD,External Services (Highways & Culture),Earth and Stone Aggregates ,0,-0.01,-0.01,15-Nov-11,TBC
Nottinghamshire County Council,08-06780,AMBER-RTM LTD,External Services (Highways & Culture),Highways and Works,0,0.01,0.01,15-Nov-11,TBC
Nottinghamshire County Council,08-06799,XYSTOS WHOLESALE LTD,External Services (Highways & Culture),Arts and Crafts,0,-4.48,-4.48,15-Nov-11,TBC
Nottinghamshire County Council,08-06801,C P BERRY GROUNDWORKS LTD,External Services (Highways & Culture),Highways and Works,0,0.01,0.01,15-Nov-11,TBC
Nottinghamshire County Council,08-06817,TARMAC CENTRAL LTD,External Services (Highways & Culture),Highways and Works,0,-0.01,-0.01,15-Nov-11,TBC
Nottinghamshire County Council,08-07329,EVANS VANODINE INTERNATIONAL LTD,Soft Facilities Management,Cleaning Equipment and Janitorial Supplies,0,-0.01,-0.01,17-Nov-11,TBC
Nottinghamshire County Council,08-07331,C R PITCHFORK PLANT HIRE,External Services (Highways & Culture),Construction Plant and Equipment,0,260,260,17-Nov-11,TBC
Nottinghamshire County Council,08-07333,PAUL HUNT ELECTRICAL LTD,Hard Facilities Management ,Electrical Systems and Lighting,0,-75.43,-75.43,16-Nov-11,TBC
Nottinghamshire County Council,08-07347,BUNZL UK LTD,Soft Facilities Management,Cleaning Equipment and Janitorial Supplies,0,-0.01,-0.01,17-Nov-11,TBC
Nottinghamshire County Council,08-07348,BUNZL UK LTD,Soft Facilities Management,Cleaning Equipment and Janitorial Supplies,0,0.01,0.01,17-Nov-11,TBC
Nottinghamshire County Council,08-07349,ACADEMY SOCIAL CARE LTD,Care,Domiciliary Care,0,597.52,597.52,17-Nov-11,TBC
Nottinghamshire County Council,08-07350,ACADEMY SOCIAL CARE LTD,Care,Domiciliary Care,0,600.1,600.1,17-Nov-11,TBC
Nottinghamshire County Council,08-07351,ACADEMY SOCIAL CARE LTD,Care,Domiciliary Care,0,602.62,602.62,17-Nov-11,TBC
Nottinghamshire County Council,08-07369,EDEN BROWN LTD,People,Recruitment,0,365.71,365.71,16-Nov-11,TBC
Nottinghamshire County Council,08-07370,EDEN BROWN LTD,People,Recruitment,0,370.39,370.39,16-Nov-11,TBC
Nottinghamshire County Council,08-07371,EDEN BROWN LTD,People,Recruitment,0,365.71,365.71,16-Nov-11,TBC
Nottinghamshire County Council,08-07378,CAPITA SOCIAL CARE AND HOUSING,Care,Domiciliary Care,0,256.64,256.64,16-Nov-11,TBC
Nottinghamshire County Council,08-07398,G F TOMLINSON BUILDING LTD,Hard Facilities Management ,Building and Construction Supplies,0,0.01,0.01,16-Nov-11,TBC
Nottinghamshire County Council,08-08120,BRITISH TELECOMMUNICATIONS PLC,ICT,Telecommunications and Media,0,-0.01,-0.01,17-Nov-11,TBC
Nottinghamshire County Council,08-08161,SECURITY PLUS LTD,Soft Facilities Management,Security,0,0.01,0.01,18-Nov-11,TBC
Nottinghamshire County Council,08-08186,EMO OIL LTD,Hard Facilities Management ,Utilities,0,-100.47,-100.47,17-Nov-11,TBC
Nottinghamshire County Council,08-08192,FARMHOUSE SPECIALITY FOODS,Soft Facilities Management,Prepared and Preserved Foods,0,-0.01,-0.01,17-Nov-11,TBC
Nottinghamshire County Council,08-08196,B N GIBSON MOTORS,Transport & Travel,Taxi,0,0.01,0.01,17-Nov-11,TBC
Nottinghamshire County Council,08-08236,MANDORI LTD,Professional Services,"Reproduction, Photographic and Design Services",0,"1,100.00","1,100.00",17-Nov-11,TBC
Nottinghamshire County Council,08-08278,CARDEA,Care,Healthcare Services,0,112.31,112.31,17-Nov-11,TBC
Nottinghamshire County Council,08-08282,CARDEA,Care,Healthcare Services,0,151.23,151.23,17-Nov-11,TBC
Nottinghamshire County Council,08-08286,AMBER-RTM LTD,External Services (Highways & Culture),Highways and Works,0,0.01,0.01,17-Nov-11,TBC
Nottinghamshire County Council,08-08320,CAPITA SOCIAL CARE AND HOUSING,Care,Domiciliary Care,0,236.64,236.64,17-Nov-11,TBC
Nottinghamshire County Council,08-08354,BRAKE BROS LTD,Soft Facilities Management,Prepared and Preserved Foods,0,0.01,0.01,18-Nov-11,TBC
Nottinghamshire County Council,08-08385,BRAKE BROS LTD,Soft Facilities Management,Prepared and Preserved Foods,0,-0.02,-0.02,18-Nov-11,TBC
Nottinghamshire County Council,08-08399,SCREWFIX DIRECT,Hard Facilities Management ,Building and Construction Supplies,0,-0.03,-0.03,18-Nov-11,TBC
Nottinghamshire County Council,08-08579,E M D D LTD,Hard Facilities Management ,Tools and General Machinery,0,204.8,204.8,17-Nov-11,TBC
Nottinghamshire County Council,08-08580,EXPERIAN LTD,Professional Services,Financial and Insurance Services,0,"2,782.38","2,782.38",17-Nov-11,TBC
Nottinghamshire County Council,08-08581,MAKING IT! ENTERPRISES LTD,External Services (Highways & Culture),Sports and Recreational Equipment and Supplies,0,312.26,312.26,17-Nov-11,TBC
Nottinghamshire County Council,08-08582,S R C L LTD,Soft Facilities Management,Scrap and Waste Materials,0,-213.69,-213.69,17-Nov-11,TBC
Nottinghamshire County Council,08-08583,BUTLER AND WILLOW LTD,Soft Facilities Management,Office Supplies and Machines (Non It),0,250,250,17-Nov-11,TBC
Nottinghamshire County Council,08-08584,TRUVELO (UK) LTD,External Services (Highways & Culture),Highways and Works,0,202,202,17-Nov-11,TBC
Nottinghamshire County Council,08-08586,JOHNSONS AGGREGATES LTD,External Services (Highways & Culture),Earth and Stone Aggregates ,0,98.75,98.75,17-Nov-11,TBC
Nottinghamshire County Council,08-08587,CAPITA SOCIAL CARE AND HOUSING,Care,Domiciliary Care,0,187.62,187.62,17-Nov-11,TBC
Nottinghamshire County Council,08-08588,P & J PLANT SERVICES LTD,TBC,TBC,0,224,224,18-Nov-11,TBC
Nottinghamshire County Council,08-08599,BRIAN CLEGG (EDUCATIONAL PRODUCTS),External Services (Highways & Culture),Education Services,0,-4.55,-4.55,17-Nov-11,TBC
Nottinghamshire County Council,08-08610,BUNZL UK LTD,Soft Facilities Management,Cleaning Equipment and Janitorial Supplies,0,0.01,0.01,17-Nov-11,TBC
Nottinghamshire County Council,08-08620,SIMS GROUP UK LTD,Soft Facilities Management,Scrap and Waste Materials,0,-0.01,-0.01,18-Nov-11,TBC
Nottinghamshire County Council,08-08729,TARMAC CENTRAL LTD,External Services (Highways & Culture),Highways and Works,0,-0.01,-0.01,18-Nov-11,TBC
Nottinghamshire County Council,08-08739,AMBER-RTM LTD,External Services (Highways & Culture),Highways and Works,0,0.01,0.01,18-Nov-11,TBC
Nottinghamshire County Council,08-08740,AMBER-RTM LTD,External Services (Highways & Culture),Highways and Works,0,0.01,0.01,18-Nov-11,TBC
Nottinghamshire County Council,08-08741,AMBER-RTM LTD,External Services (Highways & Culture),Highways and Works,0,-0.01,-0.01,18-Nov-11,TBC
Nottinghamshire County Council,08-08798,MERIDIAN BUSINESS SUPPORT LTD,People,Recruitment,0,-0.01,-0.01,18-Nov-11,TBC
Nottinghamshire County Council,08-09030,ENNSTONE JOHNSTON LTD,External Services (Highways & Culture),Earth and Stone Aggregates ,0,0.01,0.01,18-Nov-11,TBC
Nottinghamshire County Council,08-09041,ENNSTONE JOHNSTON LTD,External Services (Highways & Culture),Earth and Stone Aggregates ,0,-0.01,-0.01,18-Nov-11,TBC
Nottinghamshire County Council,08-09103,BRAKE BROS LTD,Soft Facilities Management,Prepared and Preserved Foods,0,-0.01,-0.01,18-Nov-11,TBC
Nottinghamshire County Council,08-09104,DIAL A ROD,Hard Facilities Management ,Plumbing Services,0,110,110,18-Nov-11,TBC
Nottinghamshire County Council,08-00030,CORONA ENERGY RETAIL LTD,Hard Facilities Management ,Utilities,"-1,562.31","-1,562.31","-3,124.62",17-Nov-11,TBC
Nottinghamshire County Council,08-08451,XMA LTD,ICT,Computer Equipment and Accessories,417.18,417.18,834.36,17-Nov-11,TBC
Nottinghamshire County Council,08-08462,NEWTON CHINNECK LTD                   ,TBC,TBC,"18,545.42","18,545.42","37,090.84",17-Nov-11,TBC
Nottinghamshire County Council,08-08463,WOODTHORPE MANOR NURSING HOME,Care,Residential Care,"115,465.64","115,465.64","230,931.28",18-Nov-11,TBC
Nottinghamshire County Council,08-08464,WOODTHORPE MANOR NURSING HOME,Care,Residential Care,-928.01,-928.01,"-1,856.02",18-Nov-11,TBC
Nottinghamshire County Council,08-08619,BODILL AND SONS (CONTRACTORS) LTD,Professional Services,Professional Engineering Services,480,480,960,18-Nov-11,TBC
Nottinghamshire County Council,08-02111,BRITISH STANDARDS INSTITUTE,External Services (Highways & Culture),Organisations and Clubs,"1,522.00",0,"1,522.00",09-Nov-11,RESOURCES
Nottinghamshire County Council,08-08932,ART CLEANING (MIDLANDS) LTD,Soft Facilities Management,Industrial Cleaning Services,"1,220.00",244,"1,464.00",18-Nov-11,RESOURCES
Nottinghamshire County Council,08-09207,TOP HEIGHT TRAINING LTD               ,TBC,TBC,"1,140.00",228,"1,368.00",18-Nov-11,RESOURCES
Nottinghamshire County Council,08-02141,AGGREGATES R US LTD,External Services (Highways & Culture),Earth and Stone Aggregates ,"1,991.00",0,"1,991.00",09-Nov-11,RESOURCES
Nottinghamshire County Council,08-02142,AGGREGATES R US LTD,External Services (Highways & Culture),Earth and Stone Aggregates ,"1,991.00",0,"1,991.00",09-Nov-11,RESOURCES
Nottinghamshire County Council,08-06033,AGGREGATES R US LTD,External Services (Highways & Culture),Earth and Stone Aggregates ,"1,991.00",0,"1,991.00",14-Nov-11,RESOURCES
Nottinghamshire County Council,08-06034,AGGREGATES R US LTD,External Services (Highways & Culture),Earth and Stone Aggregates ,"1,991.00",0,"1,991.00",14-Nov-11,RESOURCES
Nottinghamshire County Council,08-06035,AGGREGATES R US LTD,External Services (Highways & Culture),Earth and Stone Aggregates ,"1,991.00",0,"1,991.00",14-Nov-11,RESOURCES
Nottinghamshire County Council,08-07204,SL CLOTHING LTD,Soft Facilities Management,Clothing,318.5,0,318.5,15-Nov-11,RESOURCES
Nottinghamshire County Council,08-07204,SL CLOTHING LTD,Soft Facilities Management,Clothing,318.5,0,318.5,15-Nov-11,RESOURCES
Nottinghamshire County Council,08-07204,SL CLOTHING LTD,Soft Facilities Management,Clothing,15,0,15,15-Nov-11,RESOURCES
Nottinghamshire County Council,08-08925,ART CLEANING (MIDLANDS) LTD,Soft Facilities Management,Industrial Cleaning Services,595.79,119.16,714.95,18-Nov-11,RESOURCES
Nottinghamshire County Council,08-08930,ART CLEANING (MIDLANDS) LTD,Soft Facilities Management,Industrial Cleaning Services,"1,324.00",264.8,"1,588.80",18-Nov-11,RESOURCES
Nottinghamshire County Council,08-08929,ART CLEANING (MIDLANDS) LTD,Soft Facilities Management,Industrial Cleaning Services,860.17,172.03,"1,032.20",18-Nov-11,RESOURCES
Nottinghamshire County Council,08-01114,OCS GROUP UK LTD,Soft Facilities Management,Cleaning Equipment and Janitorial Supplies,472.68,94.54,567.22,02-Nov-11,RESOURCES
Nottinghamshire County Council,08-08927,ART CLEANING (MIDLANDS) LTD,Soft Facilities Management,Industrial Cleaning Services,750.26,150.05,900.31,18-Nov-11,RESOURCES
Nottinghamshire County Council,08-08931,ART CLEANING (MIDLANDS) LTD,Soft Facilities Management,Industrial Cleaning Services,595.79,119.16,714.95,18-Nov-11,RESOURCES
Nottinghamshire County Council,08-08926,ART CLEANING (MIDLANDS) LTD,Soft Facilities Management,Industrial Cleaning Services,750.26,150.05,900.31,18-Nov-11,RESOURCES
Nottinghamshire County Council,08-01373,CANDOR SERVICES LTD,Soft Facilities Management,Cleaning Equipment and Janitorial Supplies,1,0,1,03-Nov-11,RESOURCES
Nottinghamshire County Council,08-01373,CANDOR SERVICES LTD,Soft Facilities Management,Cleaning Equipment and Janitorial Supplies,0.29,0,0.29,03-Nov-11,RESOURCES
Nottinghamshire County Council,08-01373,CANDOR SERVICES LTD,Soft Facilities Management,Cleaning Equipment and Janitorial Supplies,1,0,1,03-Nov-11,RESOURCES
Nottinghamshire County Council,08-01373,CANDOR SERVICES LTD,Soft Facilities Management,Cleaning Equipment and Janitorial Supplies,6.93,0,6.93,03-Nov-11,RESOURCES
Nottinghamshire County Council,08-01373,CANDOR SERVICES LTD,Soft Facilities Management,Cleaning Equipment and Janitorial Supplies,3.1,0,3.1,03-Nov-11,RESOURCES
Nottinghamshire County Council,08-01373,CANDOR SERVICES LTD,Soft Facilities Management,Cleaning Equipment and Janitorial Supplies,0.67,0,0.67,03-Nov-11,RESOURCES
Nottinghamshire County Council,08-01373,CANDOR SERVICES LTD,Soft Facilities Management,Cleaning Equipment and Janitorial Supplies,11.5,0,11.5,03-Nov-11,RESOURCES
Nottinghamshire County Council,08-01373,CANDOR SERVICES LTD,Soft Facilities Management,Cleaning Equipment and Janitorial Supplies,0.29,0,0.29,03-Nov-11,RESOURCES
Nottinghamshire County Council,08-01373,CANDOR SERVICES LTD,Soft Facilities Management,Cleaning Equipment and Janitorial Supplies,6.93,0,6.93,03-Nov-11,RESOURCES
Nottinghamshire County Council,08-01373,CANDOR SERVICES LTD,Soft Facilities Management,Cleaning Equipment and Janitorial Supplies,3.1,0,3.1,03-Nov-11,RESOURCES
Nottinghamshire County Council,08-01373,CANDOR SERVICES LTD,Soft Facilities Management,Cleaning Equipment and Janitorial Supplies,2.3,0,2.3,03-Nov-11,RESOURCES
Nottinghamshire County Council,08-01373,CANDOR SERVICES LTD,Soft Facilities Management,Cleaning Equipment and Janitorial Supplies,0.32,0,0.32,03-Nov-11,RESOURCES
Nottinghamshire County Council,08-01373,CANDOR SERVICES LTD,Soft Facilities Management,Cleaning Equipment and Janitorial Supplies,0.29,0,0.29,03-Nov-11,RESOURCES
Nottinghamshire County Council,08-01373,CANDOR SERVICES LTD,Soft Facilities Management,Cleaning Equipment and Janitorial Supplies,4.2,0,4.2,03-Nov-11,RESOURCES
Nottinghamshire County Council,08-01373,CANDOR SERVICES LTD,Soft Facilities Management,Cleaning Equipment and Janitorial Supplies,55.13,0,55.13,03-Nov-11,RESOURCES
Nottinghamshire County Council,08-01373,CANDOR SERVICES LTD,Soft Facilities Management,Cleaning Equipment and Janitorial Supplies,57.18,0,57.18,03-Nov-11,RESOURCES
Nottinghamshire County Council,08-01373,CANDOR SERVICES LTD,Soft Facilities Management,Cleaning Equipment and Janitorial Supplies,64.32,0,64.32,03-Nov-11,RESOURCES
Nottinghamshire County Council,08-01373,CANDOR SERVICES LTD,Soft Facilities Management,Cleaning Equipment and Janitorial Supplies,25.99,0,25.99,03-Nov-11,RESOURCES
Nottinghamshire County Council,08-01373,CANDOR SERVICES LTD,Soft Facilities Management,Cleaning Equipment and Janitorial Supplies,0.29,0,0.29,03-Nov-11,RESOURCES
Nottinghamshire County Council,08-01373,CANDOR SERVICES LTD,Soft Facilities Management,Cleaning Equipment and Janitorial Supplies,4.2,0,4.2,03-Nov-11,RESOURCES
Nottinghamshire County Council,08-01373,CANDOR SERVICES LTD,Soft Facilities Management,Cleaning Equipment and Janitorial Supplies,55.13,0,55.13,03-Nov-11,RESOURCES
Nottinghamshire County Council,08-01373,CANDOR SERVICES LTD,Soft Facilities Management,Cleaning Equipment and Janitorial Supplies,64.32,0,64.32,03-Nov-11,RESOURCES
Nottinghamshire County Council,08-01373,CANDOR SERVICES LTD,Soft Facilities Management,Cleaning Equipment and Janitorial Supplies,0.29,0,0.29,03-Nov-11,RESOURCES
Nottinghamshire County Council,08-01373,CANDOR SERVICES LTD,Soft Facilities Management,Cleaning Equipment and Janitorial Supplies,16.5,0,16.5,03-Nov-11,RESOURCES
Nottinghamshire County Council,08-01373,CANDOR SERVICES LTD,Soft Facilities Management,Cleaning Equipment and Janitorial Supplies,60,0,60,03-Nov-11,RESOURCES
Nottinghamshire County Council,08-07894,WASTECYCLE LTD,Soft Facilities Management,Environmental Services,570,0,570,17-Nov-11,RESOURCES
Nottinghamshire County Council,08-08933,ART CLEANING (MIDLANDS) LTD,Soft Facilities Management,Industrial Cleaning Services,750.35,150.07,900.42,18-Nov-11,RESOURCES
Nottinghamshire County Council,08-01117,CANDOR SERVICES LTD,Soft Facilities Management,Cleaning Equipment and Janitorial Supplies,9.6,0,9.6,02-Nov-11,RESOURCES
Nottinghamshire County Council,08-01117,CANDOR SERVICES LTD,Soft Facilities Management,Cleaning Equipment and Janitorial Supplies,12.91,0,12.91,02-Nov-11,RESOURCES
Nottinghamshire County Council,08-01117,CANDOR SERVICES LTD,Soft Facilities Management,Cleaning Equipment and Janitorial Supplies,0.29,0,0.29,02-Nov-11,RESOURCES
Nottinghamshire County Council,08-01117,CANDOR SERVICES LTD,Soft Facilities Management,Cleaning Equipment and Janitorial Supplies,12.72,0,12.72,02-Nov-11,RESOURCES
Nottinghamshire County Council,08-01117,CANDOR SERVICES LTD,Soft Facilities Management,Cleaning Equipment and Janitorial Supplies,9.6,0,9.6,02-Nov-11,RESOURCES
Nottinghamshire County Council,08-01117,CANDOR SERVICES LTD,Soft Facilities Management,Cleaning Equipment and Janitorial Supplies,0.29,0,0.29,02-Nov-11,RESOURCES
Nottinghamshire County Council,08-01117,CANDOR SERVICES LTD,Soft Facilities Management,Cleaning Equipment and Janitorial Supplies,10.4,0,10.4,02-Nov-11,RESOURCES
Nottinghamshire County Council,08-01117,CANDOR SERVICES LTD,Soft Facilities Management,Cleaning Equipment and Janitorial Supplies,3.1,0,3.1,02-Nov-11,RESOURCES
Nottinghamshire County Council,08-01117,CANDOR SERVICES LTD,Soft Facilities Management,Cleaning Equipment and Janitorial Supplies,0.29,0,0.29,02-Nov-11,RESOURCES
Nottinghamshire County Council,08-01117,CANDOR SERVICES LTD,Soft Facilities Management,Cleaning Equipment and Janitorial Supplies,9.6,0,9.6,02-Nov-11,RESOURCES
Nottinghamshire County Council,08-01117,CANDOR SERVICES LTD,Soft Facilities Management,Cleaning Equipment and Janitorial Supplies,9.4,0,9.4,02-Nov-11,RESOURCES
Nottinghamshire County Council,08-01117,CANDOR SERVICES LTD,Soft Facilities Management,Cleaning Equipment and Janitorial Supplies,14.65,0,14.65,02-Nov-11,RESOURCES
Nottinghamshire County Council,08-01117,CANDOR SERVICES LTD,Soft Facilities Management,Cleaning Equipment and Janitorial Supplies,9.4,0,9.4,02-Nov-11,RESOURCES
Nottinghamshire County Council,08-01117,CANDOR SERVICES LTD,Soft Facilities Management,Cleaning Equipment and Janitorial Supplies,20.9,0,20.9,02-Nov-11,RESOURCES
Nottinghamshire County Council,08-01117,CANDOR SERVICES LTD,Soft Facilities Management,Cleaning Equipment and Janitorial Supplies,14.65,0,14.65,02-Nov-11,RESOURCES
Nottinghamshire County Council,08-01117,CANDOR SERVICES LTD,Soft Facilities Management,Cleaning Equipment and Janitorial Supplies,18.9,0,18.9,02-Nov-11,RESOURCES
Nottinghamshire County Council,08-01117,CANDOR SERVICES LTD,Soft Facilities Management,Cleaning Equipment and Janitorial Supplies,11.5,0,11.5,02-Nov-11,RESOURCES
Nottinghamshire County Council,08-01117,CANDOR SERVICES LTD,Soft Facilities Management,Cleaning Equipment and Janitorial Supplies,6.93,0,6.93,02-Nov-11,RESOURCES
Nottinghamshire County Council,08-01117,CANDOR SERVICES LTD,Soft Facilities Management,Cleaning Equipment and Janitorial Supplies,3.1,0,3.1,02-Nov-11,RESOURCES
Nottinghamshire County Council,08-01117,CANDOR SERVICES LTD,Soft Facilities Management,Cleaning Equipment and Janitorial Supplies,5.96,0,5.96,02-Nov-11,RESOURCES
Nottinghamshire County Council,08-01117,CANDOR SERVICES LTD,Soft Facilities Management,Cleaning Equipment and Janitorial Supplies,4.54,0,4.54,02-Nov-11,RESOURCES
Nottinghamshire County Council,08-01117,CANDOR SERVICES LTD,Soft Facilities Management,Cleaning Equipment and Janitorial Supplies,1,0,1,02-Nov-11,RESOURCES
Nottinghamshire County Council,08-01117,CANDOR SERVICES LTD,Soft Facilities Management,Cleaning Equipment and Janitorial Supplies,0.29,0,0.29,02-Nov-11,RESOURCES
Nottinghamshire County Council,08-01117,CANDOR SERVICES LTD,Soft Facilities Management,Cleaning Equipment and Janitorial Supplies,23.64,0,23.64,02-Nov-11,RESOURCES
Nottinghamshire County Council,08-01117,CANDOR SERVICES LTD,Soft Facilities Management,Cleaning Equipment and Janitorial Supplies,6.93,0,6.93,02-Nov-11,RESOURCES
Nottinghamshire County Council,08-01117,CANDOR SERVICES LTD,Soft Facilities Management,Cleaning Equipment and Janitorial Supplies,3.1,0,3.1,02-Nov-11,RESOURCES
Nottinghamshire County Council,08-01117,CANDOR SERVICES LTD,Soft Facilities Management,Cleaning Equipment and Janitorial Supplies,4.54,0,4.54,02-Nov-11,RESOURCES
Nottinghamshire County Council,08-01117,CANDOR SERVICES LTD,Soft Facilities Management,Cleaning Equipment and Janitorial Supplies,4.15,0,4.15,02-Nov-11,RESOURCES
Nottinghamshire County Council,08-01117,CANDOR SERVICES LTD,Soft Facilities Management,Cleaning Equipment and Janitorial Supplies,6.41,0,6.41,02-Nov-11,RESOURCES
Nottinghamshire County Council,08-01117,CANDOR SERVICES LTD,Soft Facilities Management,Cleaning Equipment and Janitorial Supplies,6.25,0,6.25,02-Nov-11,RESOURCES
Nottinghamshire County Council,08-01117,CANDOR SERVICES LTD,Soft Facilities Management,Cleaning Equipment and Janitorial Supplies,8.53,0,8.53,02-Nov-11,RESOURCES
Nottinghamshire County Council,08-01117,CANDOR SERVICES LTD,Soft Facilities Management,Cleaning Equipment and Janitorial Supplies,21.09,0,21.09,02-Nov-11,RESOURCES
Nottinghamshire County Council,08-01117,CANDOR SERVICES LTD,Soft Facilities Management,Cleaning Equipment and Janitorial Supplies,6.93,0,6.93,02-Nov-11,RESOURCES
Nottinghamshire County Council,08-01117,CANDOR SERVICES LTD,Soft Facilities Management,Cleaning Equipment and Janitorial Supplies,3.1,0,3.1,02-Nov-11,RESOURCES
Nottinghamshire County Council,08-01117,CANDOR SERVICES LTD,Soft Facilities Management,Cleaning Equipment and Janitorial Supplies,4.54,0,4.54,02-Nov-11,RESOURCES
Nottinghamshire County Council,08-01117,CANDOR SERVICES LTD,Soft Facilities Management,Cleaning Equipment and Janitorial Supplies,6.25,0,6.25,02-Nov-11,RESOURCES
Nottinghamshire County Council,08-01117,CANDOR SERVICES LTD,Soft Facilities Management,Cleaning Equipment and Janitorial Supplies,8.53,0,8.53,02-Nov-11,RESOURCES
Nottinghamshire County Council,08-01117,CANDOR SERVICES LTD,Soft Facilities Management,Cleaning Equipment and Janitorial Supplies,1,0,1,02-Nov-11,RESOURCES
Nottinghamshire County Council,08-01117,CANDOR SERVICES LTD,Soft Facilities Management,Cleaning Equipment and Janitorial Supplies,0.9,0,0.9,02-Nov-11,RESOURCES
Nottinghamshire County Council,08-01117,CANDOR SERVICES LTD,Soft Facilities Management,Cleaning Equipment and Janitorial Supplies,5.96,0,5.96,02-Nov-11,RESOURCES
Nottinghamshire County Council,08-01117,CANDOR SERVICES LTD,Soft Facilities Management,Cleaning Equipment and Janitorial Supplies,6.93,0,6.93,02-Nov-11,RESOURCES
Nottinghamshire County Council,08-01117,CANDOR SERVICES LTD,Soft Facilities Management,Cleaning Equipment and Janitorial Supplies,3.1,0,3.1,02-Nov-11,RESOURCES
Nottinghamshire County Council,08-01117,CANDOR SERVICES LTD,Soft Facilities Management,Cleaning Equipment and Janitorial Supplies,4.54,0,4.54,02-Nov-11,RESOURCES
Nottinghamshire County Council,08-01117,CANDOR SERVICES LTD,Soft Facilities Management,Cleaning Equipment and Janitorial Supplies,5.96,0,5.96,02-Nov-11,RESOURCES
Nottinghamshire County Council,08-01117,CANDOR SERVICES LTD,Soft Facilities Management,Cleaning Equipment and Janitorial Supplies,1,0,1,02-Nov-11,RESOURCES
Nottinghamshire County Council,08-01117,CANDOR SERVICES LTD,Soft Facilities Management,Cleaning Equipment and Janitorial Supplies,4.54,0,4.54,02-Nov-11,RESOURCES
Nottinghamshire County Council,08-01117,CANDOR SERVICES LTD,Soft Facilities Management,Cleaning Equipment and Janitorial Supplies,4.15,0,4.15,02-Nov-11,RESOURCES
Nottinghamshire County Council,08-01117,CANDOR SERVICES LTD,Soft Facilities Management,Cleaning Equipment and Janitorial Supplies,6.41,0,6.41,02-Nov-11,RESOURCES
Nottinghamshire County Council,08-01117,CANDOR SERVICES LTD,Soft Facilities Management,Cleaning Equipment and Janitorial Supplies,6.93,0,6.93,02-Nov-11,RESOURCES
Nottinghamshire County Council,08-01117,CANDOR SERVICES LTD,Soft Facilities Management,Cleaning Equipment and Janitorial Supplies,3.1,0,3.1,02-Nov-11,RESOURCES
Nottinghamshire County Council,08-01117,CANDOR SERVICES LTD,Soft Facilities Management,Cleaning Equipment and Janitorial Supplies,1,0,1,02-Nov-11,RESOURCES
Nottinghamshire County Council,08-01117,CANDOR SERVICES LTD,Soft Facilities Management,Cleaning Equipment and Janitorial Supplies,21.09,0,21.09,02-Nov-11,RESOURCES
Nottinghamshire County Council,08-01117,CANDOR SERVICES LTD,Soft Facilities Management,Cleaning Equipment and Janitorial Supplies,1,0,1,02-Nov-11,RESOURCES
Nottinghamshire County Council,08-01117,CANDOR SERVICES LTD,Soft Facilities Management,Cleaning Equipment and Janitorial Supplies,11.5,0,11.5,02-Nov-11,RESOURCES
Nottinghamshire County Council,08-01117,CANDOR SERVICES LTD,Soft Facilities Management,Cleaning Equipment and Janitorial Supplies,2.29,0,2.29,02-Nov-11,RESOURCES
Nottinghamshire County Council,08-01117,CANDOR SERVICES LTD,Soft Facilities Management,Cleaning Equipment and Janitorial Supplies,3.1,0,3.1,02-Nov-11,RESOURCES
Nottinghamshire County Council,08-01117,CANDOR SERVICES LTD,Soft Facilities Management,Cleaning Equipment and Janitorial Supplies,6.93,0,6.93,02-Nov-11,RESOURCES
Nottinghamshire County Council,08-01117,CANDOR SERVICES LTD,Soft Facilities Management,Cleaning Equipment and Janitorial Supplies,5.96,0,5.96,02-Nov-11,RESOURCES
Nottinghamshire County Council,08-01117,CANDOR SERVICES LTD,Soft Facilities Management,Cleaning Equipment and Janitorial Supplies,4.54,0,4.54,02-Nov-11,RESOURCES
Nottinghamshire County Council,08-01117,CANDOR SERVICES LTD,Soft Facilities Management,Cleaning Equipment and Janitorial Supplies,6.25,0,6.25,02-Nov-11,RESOURCES
Nottinghamshire County Council,08-01117,CANDOR SERVICES LTD,Soft Facilities Management,Cleaning Equipment and Janitorial Supplies,8.53,0,8.53,02-Nov-11,RESOURCES
Nottinghamshire County Council,08-01117,CANDOR SERVICES LTD,Soft Facilities Management,Cleaning Equipment and Janitorial Supplies,4.15,0,4.15,02-Nov-11,RESOURCES
Nottinghamshire County Council,08-01117,CANDOR SERVICES LTD,Soft Facilities Management,Cleaning Equipment and Janitorial Supplies,1,0,1,02-Nov-11,RESOURCES
Nottinghamshire County Council,08-01117,CANDOR SERVICES LTD,Soft Facilities Management,Cleaning Equipment and Janitorial Supplies,11.5,0,11.5,02-Nov-11,RESOURCES
Nottinghamshire County Council,08-01117,CANDOR SERVICES LTD,Soft Facilities Management,Cleaning Equipment and Janitorial Supplies,6.93,0,6.93,02-Nov-11,RESOURCES
Nottinghamshire County Council,08-01117,CANDOR SERVICES LTD,Soft Facilities Management,Cleaning Equipment and Janitorial Supplies,3.1,0,3.1,02-Nov-11,RESOURCES
Nottinghamshire County Council,08-01117,CANDOR SERVICES LTD,Soft Facilities Management,Cleaning Equipment and Janitorial Supplies,4.54,0,4.54,02-Nov-11,RESOURCES
Nottinghamshire County Council,08-01117,CANDOR SERVICES LTD,Soft Facilities Management,Cleaning Equipment and Janitorial Supplies,6.25,0,6.25,02-Nov-11,RESOURCES
Nottinghamshire County Council,08-01117,CANDOR SERVICES LTD,Soft Facilities Management,Cleaning Equipment and Janitorial Supplies,8.53,0,8.53,02-Nov-11,RESOURCES
Nottinghamshire County Council,08-01117,CANDOR SERVICES LTD,Soft Facilities Management,Cleaning Equipment and Janitorial Supplies,4.15,0,4.15,02-Nov-11,RESOURCES
Nottinghamshire County Council,08-01117,CANDOR SERVICES LTD,Soft Facilities Management,Cleaning Equipment and Janitorial Supplies,16.5,0,16.5,02-Nov-11,RESOURCES
Nottinghamshire County Council,08-01117,CANDOR SERVICES LTD,Soft Facilities Management,Cleaning Equipment and Janitorial Supplies,130,0,130,02-Nov-11,RESOURCES
Nottinghamshire County Council,08-00964,STAFFLINE RECRUITMENT LTD,People,Recruitment,87.5,17.5,105,02-Nov-11,RESOURCES
Nottinghamshire County Council,08-08113,OCS GROUP UK LTD,Soft Facilities Management,Cleaning Equipment and Janitorial Supplies,491.4,98.28,589.68,17-Nov-11,RESOURCES
Nottinghamshire County Council,08-08928,ART CLEANING (MIDLANDS) LTD,Soft Facilities Management,Industrial Cleaning Services,"1,213.35",242.67,"1,456.02",18-Nov-11,RESOURCES
Nottinghamshire County Council,08-00227,BAKS TECHNOLOGIES LTD,People,Vocational Training,"1,280.00",0,"1,280.00",02-Nov-11,RESOURCES
Nottinghamshire County Council,08-00614,ABBACAS CONSULTING LTD,Professional Services,Consultancy,"1,520.00",304,"1,824.00",09-Nov-11,RESOURCES
Nottinghamshire County Council,08-01000,HALEYS-RAP,Professional Services,Professional Engineering Services,666.27,133.25,799.52,01-Nov-11,RESOURCES
Nottinghamshire County Council,08-01001,HALEYS-RAP,Professional Services,Professional Engineering Services,729.39,145.88,875.27,01-Nov-11,RESOURCES
Nottinghamshire County Council,08-01936,SPECIALIST COMPUTER CENTRES LTD,ICT,Computer Services,53.06,0,53.06,09-Nov-11,RESOURCES
Nottinghamshire County Council,08-01936,SPECIALIST COMPUTER CENTRES LTD,ICT,Computer Services,"1,057.14",0,"1,057.14",09-Nov-11,RESOURCES
Nottinghamshire County Council,08-01936,SPECIALIST COMPUTER CENTRES LTD,ICT,Computer Services,792.86,0,792.86,09-Nov-11,RESOURCES
Nottinghamshire County Council,08-01936,SPECIALIST COMPUTER CENTRES LTD,ICT,Computer Services,257.14,0,257.14,09-Nov-11,RESOURCES
Nottinghamshire County Council,08-01936,SPECIALIST COMPUTER CENTRES LTD,ICT,Computer Services,192.86,0,192.86,09-Nov-11,RESOURCES
Nottinghamshire County Council,08-01936,SPECIALIST COMPUTER CENTRES LTD,ICT,Computer Services,64.29,0,64.29,09-Nov-11,RESOURCES
Nottinghamshire County Council,08-01936,SPECIALIST COMPUTER CENTRES LTD,ICT,Computer Services,264.29,0,264.29,09-Nov-11,RESOURCES
Nottinghamshire County Council,08-01936,SPECIALIST COMPUTER CENTRES LTD,ICT,Computer Services,367.35,0,367.35,09-Nov-11,RESOURCES
Nottinghamshire County Council,08-01936,SPECIALIST COMPUTER CENTRES LTD,ICT,Computer Services,198.98,0,198.98,09-Nov-11,RESOURCES
Nottinghamshire County Council,08-01936,SPECIALIST COMPUTER CENTRES LTD,ICT,Computer Services,563.27,0,563.27,09-Nov-11,RESOURCES
Nottinghamshire County Council,08-01936,SPECIALIST COMPUTER CENTRES LTD,ICT,Computer Services,310.2,0,310.2,09-Nov-11,RESOURCES
Nottinghamshire County Council,08-01936,SPECIALIST COMPUTER CENTRES LTD,ICT,Computer Services,212.24,0,212.24,09-Nov-11,RESOURCES
Nottinghamshire County Council,08-01936,SPECIALIST COMPUTER CENTRES LTD,ICT,Computer Services,140.82,0,140.82,09-Nov-11,RESOURCES
Nottinghamshire County Council,08-01936,SPECIALIST COMPUTER CENTRES LTD,ICT,Computer Services,77.55,0,77.55,09-Nov-11,RESOURCES
Nottinghamshire County Council,08-01936,SPECIALIST COMPUTER CENTRES LTD,ICT,Computer Services,448.98,0,448.98,09-Nov-11,RESOURCES
Nottinghamshire County Council,08-05473,FAITHFULL AND GOULD,Professional Services,Consultancy,"7,217.42","1,443.48","8,660.90",09-Nov-11,RESOURCES
Nottinghamshire County Council,08-05722,RIBA ENTERPRISES LTD,Professional Services,Politics and Civic Affairs,"21,128.00",0,"21,128.00",10-Nov-11,RESOURCES
Nottinghamshire County Council,08-06697,GLEEDS MANAGEMENT SERVICES LTD,Professional Services,Property Management,500,100,600,15-Nov-11,RESOURCES
Nottinghamshire County Council,08-06698,GLEEDS MANAGEMENT SERVICES LTD,Professional Services,Property Management,500,100,600,15-Nov-11,RESOURCES
Nottinghamshire County Council,08-07357,NOTTINGHAM CITY COUNCIL,Professional Services,Politics and Civic Affairs,"3,370.18",674.04,"4,044.22",16-Nov-11,RESOURCES
Nottinghamshire County Council,08-07448,CBP ARCHITECTS LTD,Professional Services,Professional Engineering Services,"1,605.50",321.1,"1,926.60",17-Nov-11,RESOURCES
Nottinghamshire County Council,08-07449,CBP ARCHITECTS LTD,Professional Services,Professional Engineering Services,"2,008.50",401.7,"2,410.20",17-Nov-11,RESOURCES
Nottinghamshire County Council,08-07450,CBP ARCHITECTS LTD,Professional Services,Professional Engineering Services,604.5,120.9,725.4,17-Nov-11,RESOURCES
Nottinghamshire County Council,08-07454,CBP ARCHITECTS LTD,Professional Services,Professional Engineering Services,"1,924.00",384.8,"2,308.80",17-Nov-11,RESOURCES
Nottinghamshire County Council,08-07455,CBP ARCHITECTS LTD,Professional Services,Professional Engineering Services,"1,618.50",323.7,"1,942.20",17-Nov-11,RESOURCES
Nottinghamshire County Council,08-07456,CBP ARCHITECTS LTD,Professional Services,Professional Engineering Services,715,143,858,17-Nov-11,RESOURCES
Nottinghamshire County Council,08-07517,KING STURGE LLP,Professional Services,Legal Services,"3,808.16",761.63,"4,569.79",17-Nov-11,RESOURCES
Nottinghamshire County Council,08-07545,GLEEDS MANAGEMENT SERVICES LTD,Professional Services,Property Management,"4,000.00",800,"4,800.00",16-Nov-11,RESOURCES
Nottinghamshire County Council,08-07560,GLEEDS MANAGEMENT SERVICES LTD,Professional Services,Property Management,"3,600.00",720,"4,320.00",16-Nov-11,RESOURCES
Nottinghamshire County Council,08-07561,GLEEDS MANAGEMENT SERVICES LTD,Professional Services,Property Management,"3,250.00",650,"3,900.00",16-Nov-11,RESOURCES
Nottinghamshire County Council,08-08279,KING STURGE LLP,Professional Services,Legal Services,"12,495.74","2,499.15","14,994.89",17-Nov-11,RESOURCES
Nottinghamshire County Council,08-08898,VINCENT AND GORBING,Professional Services,Professional Engineering Services,-70,-14,-84,18-Nov-11,RESOURCES
Nottinghamshire County Council,08-08898,VINCENT AND GORBING,Professional Services,Professional Engineering Services,70,0,70,18-Nov-11,RESOURCES
Nottinghamshire County Council,08-08898,VINCENT AND GORBING,Professional Services,Professional Engineering Services,"4,371.54",874.31,"5,245.85",18-Nov-11,RESOURCES
Nottinghamshire County Council,08-08899,KING STURGE LLP,Professional Services,Legal Services,"1,837.61",367.52,"2,205.13",18-Nov-11,RESOURCES
Nottinghamshire County Council,08-08900,TOWER SURVEYS LTD,Professional Services,Property Management,"2,595.00",519,"3,114.00",18-Nov-11,RESOURCES
Nottinghamshire County Council,08-08907,HALEYS-RAP,Professional Services,Professional Engineering Services,"1,557.60",311.52,"1,869.12",18-Nov-11,RESOURCES
Nottinghamshire County Council,08-08908,HALEYS-RAP,Professional Services,Professional Engineering Services,973.5,194.7,"1,168.20",18-Nov-11,RESOURCES
Nottinghamshire County Council,08-08909,HALEYS-RAP,Professional Services,Professional Engineering Services,"1,129.26",225.85,"1,355.11",18-Nov-11,RESOURCES
Nottinghamshire County Council,08-08913,VINCENT AND GORBING,Professional Services,Professional Engineering Services,"2,878.13",575.63,"3,453.76",18-Nov-11,RESOURCES
Nottinghamshire County Council,08-09129,VINCENT AND GORBING,Professional Services,Professional Engineering Services,"1,939.00",387.8,"2,326.80",18-Nov-11,RESOURCES
Nottinghamshire County Council,08-06610,BARKER ROSS LTD,People,Recruitment,"1,317.80",263.56,"1,581.36",15-Nov-11,COMMUNITIES
Nottinghamshire County Council,08-08749,BARKER ROSS LTD,People,Recruitment,"1,381.75",276.35,"1,658.10",18-Nov-11,COMMUNITIES
Nottinghamshire County Council,08-01943,BARKER ROSS LTD,People,Recruitment,"1,240.90",248.18,"1,489.08",09-Nov-11,COMMUNITIES
Nottinghamshire County Council,08-05487,BARKER ROSS LTD,People,Recruitment,643.65,128.73,772.38,10-Nov-11,COMMUNITIES
Nottinghamshire County Council,08-06061,BARKER ROSS LTD,People,Recruitment,"1,162.50",232.5,"1,395.00",15-Nov-11,COMMUNITIES
Nottinghamshire County Council,08-06128,BARKER ROSS LTD,People,Recruitment,"1,156.20",231.24,"1,387.44",15-Nov-11,COMMUNITIES
Nottinghamshire County Council,08-08388,BARKER ROSS LTD,People,Recruitment,"1,274.55",254.91,"1,529.46",18-Nov-11,COMMUNITIES
Nottinghamshire County Council,08-02266,RAI TECHNICAL LTD,Hard Facilities Management ,Tools and General Machinery,546.35,109.27,655.62,09-Nov-11,COMMUNITIES
Nottinghamshire County Council,08-08748,RAI TECHNICAL LTD,Hard Facilities Management ,Tools and General Machinery,486.95,97.39,584.34,18-Nov-11,COMMUNITIES
Nottinghamshire County Council,08-00295,BRITISH OXYGEN COMPANY LTD,External Services (Highways & Culture),Chemicals and Gases,120.4,24.08,144.48,02-Nov-11,COMMUNITIES
Nottinghamshire County Council,08-00295,BRITISH OXYGEN COMPANY LTD,External Services (Highways & Culture),Chemicals and Gases,150.5,30.1,180.6,02-Nov-11,COMMUNITIES
Nottinghamshire County Council,08-00295,BRITISH OXYGEN COMPANY LTD,External Services (Highways & Culture),Chemicals and Gases,150.5,30.1,180.6,02-Nov-11,COMMUNITIES
Nottinghamshire County Council,08-01966,MUDFORDS LTD,Hard Facilities Management ,Building and Construction Supplies,92.7,18.54,111.24,09-Nov-11,COMMUNITIES
Nottinghamshire County Council,08-01966,MUDFORDS LTD,Hard Facilities Management ,Building and Construction Supplies,384,76.8,460.8,09-Nov-11,COMMUNITIES
Nottinghamshire County Council,08-01966,MUDFORDS LTD,Hard Facilities Management ,Building and Construction Supplies,529.6,105.92,635.52,09-Nov-11,COMMUNITIES
Nottinghamshire County Council,08-01967,MUDFORDS LTD,Hard Facilities Management ,Building and Construction Supplies,460.8,92.16,552.96,09-Nov-11,COMMUNITIES
Nottinghamshire County Council,08-01967,MUDFORDS LTD,Hard Facilities Management ,Building and Construction Supplies,635.52,127.1,762.62,09-Nov-11,COMMUNITIES
Nottinghamshire County Council,08-01975,EMO OIL LTD,Hard Facilities Management ,Utilities,"6,351.40","1,270.28","7,621.68",07-Nov-11,COMMUNITIES
Nottinghamshire County Council,08-01999,RENNICKS (UK) LTD,External Services (Highways & Culture),Highways and Works,158.98,31.8,190.78,09-Nov-11,COMMUNITIES
Nottinghamshire County Council,08-01999,RENNICKS (UK) LTD,External Services (Highways & Culture),Highways and Works,294.22,58.84,353.06,09-Nov-11,COMMUNITIES
Nottinghamshire County Council,08-02000,CLEVELAND CABLE COMPANY LTD,Hard Facilities Management ,Electrical Systems and Lighting,"2,805.00",561,"3,366.00",09-Nov-11,COMMUNITIES
Nottinghamshire County Council,08-02000,CLEVELAND CABLE COMPANY LTD,Hard Facilities Management ,Electrical Systems and Lighting,"4,470.00",894,"5,364.00",09-Nov-11,COMMUNITIES
Nottinghamshire County Council,08-02001,W T BURDEN LTD,Hard Facilities Management ,Building and Construction Supplies,"1,125.94",225.19,"1,351.13",09-Nov-11,COMMUNITIES
Nottinghamshire County Council,08-02002,SMITH BROS CAERCONAN WHOLESALE LTD,Hard Facilities Management ,Electronic Components and Supplies,936,187.2,"1,123.20",15-Nov-11,COMMUNITIES
Nottinghamshire County Council,08-02002,SMITH BROS CAERCONAN WHOLESALE LTD,Hard Facilities Management ,Electronic Components and Supplies,961.2,192.24,"1,153.44",15-Nov-11,COMMUNITIES
Nottinghamshire County Council,08-02025,INSTARMAC LTD,External Services (Highways & Culture),Highways and Works,855.12,171.02,"1,026.14",09-Nov-11,COMMUNITIES
Nottinghamshire County Council,08-02038,AYTON ASPHALT,External Services (Highways & Culture),Highways and Works,887.76,177.55,"1,065.31",07-Nov-11,COMMUNITIES
Nottinghamshire County Council,08-02039,W T BURDEN LTD,Hard Facilities Management ,Building and Construction Supplies,"1,125.94",225.19,"1,351.13",07-Nov-11,COMMUNITIES
Nottinghamshire County Council,08-02040,W T BURDEN LTD,Hard Facilities Management ,Building and Construction Supplies,"1,892.10",378.42,"2,270.52",07-Nov-11,COMMUNITIES
Nottinghamshire County Council,08-02054,REDDI LIGHT LTD,Hard Facilities Management ,Electrical Systems and Lighting,"1,080.00",216,"1,296.00",10-Nov-11,COMMUNITIES
Nottinghamshire County Council,08-02057,PARKER MERCHANTING LTD,Soft Facilities Management,Paper and Paper Products,48.9,9.78,58.68,09-Nov-11,COMMUNITIES
Nottinghamshire County Council,08-02057,PARKER MERCHANTING LTD,Soft Facilities Management,Paper and Paper Products,414,82.8,496.8,09-Nov-11,COMMUNITIES
Nottinghamshire County Council,08-06038,EMO OIL LTD,Hard Facilities Management ,Utilities,"5,776.66","1,155.33","6,931.99",15-Nov-11,COMMUNITIES
Nottinghamshire County Council,08-06040,PARKER MERCHANTING LTD,Soft Facilities Management,Paper and Paper Products,12,2.4,14.4,15-Nov-11,COMMUNITIES
Nottinghamshire County Council,08-06040,PARKER MERCHANTING LTD,Soft Facilities Management,Paper and Paper Products,12.08,2.42,14.5,15-Nov-11,COMMUNITIES
Nottinghamshire County Council,08-06040,PARKER MERCHANTING LTD,Soft Facilities Management,Paper and Paper Products,51.9,10.38,62.28,15-Nov-11,COMMUNITIES
Nottinghamshire County Council,08-06040,PARKER MERCHANTING LTD,Soft Facilities Management,Paper and Paper Products,147.77,29.55,177.32,15-Nov-11,COMMUNITIES
Nottinghamshire County Council,08-06040,PARKER MERCHANTING LTD,Soft Facilities Management,Paper and Paper Products,469,93.8,562.8,15-Nov-11,COMMUNITIES
Nottinghamshire County Council,08-06066,PARKER MERCHANTING LTD,Soft Facilities Management,Paper and Paper Products,27.6,5.52,33.12,15-Nov-11,COMMUNITIES
Nottinghamshire County Council,08-06066,PARKER MERCHANTING LTD,Soft Facilities Management,Paper and Paper Products,40.7,8.14,48.84,15-Nov-11,COMMUNITIES
Nottinghamshire County Council,08-06066,PARKER MERCHANTING LTD,Soft Facilities Management,Paper and Paper Products,42.3,8.46,50.76,15-Nov-11,COMMUNITIES
Nottinghamshire County Council,08-06066,PARKER MERCHANTING LTD,Soft Facilities Management,Paper and Paper Products,76.2,15.24,91.44,15-Nov-11,COMMUNITIES
Nottinghamshire County Council,08-06066,PARKER MERCHANTING LTD,Soft Facilities Management,Paper and Paper Products,263.2,52.64,315.84,15-Nov-11,COMMUNITIES
Nottinghamshire County Council,08-06068,PARKER MERCHANTING LTD,Soft Facilities Management,Paper and Paper Products,621,124.2,745.2,15-Nov-11,COMMUNITIES
Nottinghamshire County Council,08-06069,ZODIAN (ZODION LTD),External Services (Highways & Culture),Highways and Works,"1,170.00",234,"1,404.00",15-Nov-11,COMMUNITIES
Nottinghamshire County Council,08-06070,R WHITEHEAD CONCRETE LTD,Hard Facilities Management ,Concrete Installation and Repair Services,637,127.4,764.4,15-Nov-11,COMMUNITIES
Nottinghamshire County Council,08-06070,R WHITEHEAD CONCRETE LTD,Hard Facilities Management ,Concrete Installation and Repair Services,22.5,4.5,27,15-Nov-11,COMMUNITIES
Nottinghamshire County Council,08-06074,W T BURDEN LTD,Hard Facilities Management ,Building and Construction Supplies,571.2,114.24,685.44,15-Nov-11,COMMUNITIES
Nottinghamshire County Council,08-06139,SMITH BROS CAERCONAN WHOLESALE LTD,Hard Facilities Management ,Electronic Components and Supplies,"1,378.00",275.6,"1,653.60",15-Nov-11,COMMUNITIES
Nottinghamshire County Council,08-06140,SMITH BROS CAERCONAN WHOLESALE LTD,Hard Facilities Management ,Electronic Components and Supplies,"1,602.00",320.4,"1,922.40",15-Nov-11,COMMUNITIES
Nottinghamshire County Council,08-07589,EMO OIL LTD,Hard Facilities Management ,Utilities,"1,358.00",67.9,"1,425.90",17-Nov-11,COMMUNITIES
Nottinghamshire County Council,08-07590,EMO OIL LTD,Hard Facilities Management ,Utilities,"6,925.80","1,385.16","8,310.96",17-Nov-11,COMMUNITIES
Nottinghamshire County Council,08-07591,EMO OIL LTD,Hard Facilities Management ,Utilities,"4,625.20",925.04,"5,550.24",17-Nov-11,COMMUNITIES
Nottinghamshire County Council,08-08737,KOREC,TBC,TBC,"21,119.00","4,223.80","25,342.80",18-Nov-11,COMMUNITIES
Nottinghamshire County Council,08-05836,CREST SOFTWARE LTD,ICT,Software,850,170,"1,020.00",15-Nov-11,COMMUNITIES
Nottinghamshire County Council,08-00766,E M D D LTD,Hard Facilities Management ,Tools and General Machinery,800,160,960,01-Nov-11,COMMUNITIES
Nottinghamshire County Council,08-05422,ROAD RUNNERS DESPATCH LTD,Soft Facilities Management,Mail and Couriers,471.75,0,471.75,09-Nov-11,COMMUNITIES
Nottinghamshire County Council,08-05422,ROAD RUNNERS DESPATCH LTD,Soft Facilities Management,Mail and Couriers,76,0,76,09-Nov-11,COMMUNITIES
Nottinghamshire County Council,08-05422,ROAD RUNNERS DESPATCH LTD,Soft Facilities Management,Mail and Couriers,152,0,152,09-Nov-11,COMMUNITIES
Nottinghamshire County Council,08-05422,ROAD RUNNERS DESPATCH LTD,Soft Facilities Management,Mail and Couriers,51,0,51,09-Nov-11,COMMUNITIES
Nottinghamshire County Council,08-05422,ROAD RUNNERS DESPATCH LTD,Soft Facilities Management,Mail and Couriers,140,0,140,09-Nov-11,COMMUNITIES
Nottinghamshire County Council,08-05422,ROAD RUNNERS DESPATCH LTD,Soft Facilities Management,Mail and Couriers,104,0,104,09-Nov-11,COMMUNITIES
Nottinghamshire County Council,08-05422,ROAD RUNNERS DESPATCH LTD,Soft Facilities Management,Mail and Couriers,58.81,0,58.81,09-Nov-11,COMMUNITIES
Nottinghamshire County Council,08-07930,BUILDING SOFTWARE LTD,ICT,Software,"1,500.00",0,"1,500.00",17-Nov-11,COMMUNITIES
Nottinghamshire County Council,08-07169,KEY TRAFFIC SYSTEMS,External Services (Highways & Culture),Highways and Works,500,0,500,17-Nov-11,COMMUNITIES
Nottinghamshire County Council,08-08584,TRUVELO (UK) LTD,External Services (Highways & Culture),Highways and Works,505,0,505,17-Nov-11,COMMUNITIES
Nottinghamshire County Council,08-08584,TRUVELO (UK) LTD,External Services (Highways & Culture),Highways and Works,505,0,505,17-Nov-11,COMMUNITIES
Nottinghamshire County Council,08-08998,TRUVELO (UK) LTD,External Services (Highways & Culture),Highways and Works,636.9,127.38,764.28,18-Nov-11,COMMUNITIES
Nottinghamshire County Council,08-06815,MANDORI LTD,Professional Services,"Reproduction, Photographic and Design Services","23,500.00","4,700.00","28,200.00",16-Nov-11,COMMUNITIES
Nottinghamshire County Council,08-00789,PATROL,Professional Services,Politics and Civic Affairs,"5,735.44",0,"5,735.44",09-Nov-11,COMMUNITIES
Nottinghamshire County Council,08-00789,PATROL,Professional Services,Politics and Civic Affairs,"6,498.70",0,"6,498.70",09-Nov-11,COMMUNITIES
Nottinghamshire County Council,08-00789,PATROL,Professional Services,Politics and Civic Affairs,"-5,735.44",0,"-5,735.44",09-Nov-11,COMMUNITIES
Nottinghamshire County Council,08-00790,PATROL,Professional Services,Politics and Civic Affairs,"9,718.48",0,"9,718.48",09-Nov-11,COMMUNITIES
Nottinghamshire County Council,08-00790,PATROL,Professional Services,Politics and Civic Affairs,"9,528.35",0,"9,528.35",09-Nov-11,COMMUNITIES
Nottinghamshire County Council,08-00790,PATROL,Professional Services,Politics and Civic Affairs,"-9,718.48",0,"-9,718.48",09-Nov-11,COMMUNITIES
Nottinghamshire County Council,08-05704,ROYAL MAIL GROUP PLC,Soft Facilities Management,Mail and Couriers,58.64,0,58.64,10-Nov-11,COMMUNITIES
Nottinghamshire County Council,08-05704,ROYAL MAIL GROUP PLC,Soft Facilities Management,Mail and Couriers,23.24,0,23.24,10-Nov-11,COMMUNITIES
Nottinghamshire County Council,08-05704,ROYAL MAIL GROUP PLC,Soft Facilities Management,Mail and Couriers,18.76,0,18.76,10-Nov-11,COMMUNITIES
Nottinghamshire County Council,08-05704,ROYAL MAIL GROUP PLC,Soft Facilities Management,Mail and Couriers,46.8,0,46.8,10-Nov-11,COMMUNITIES
Nottinghamshire County Council,08-05704,ROYAL MAIL GROUP PLC,Soft Facilities Management,Mail and Couriers,47.58,0,47.58,10-Nov-11,COMMUNITIES
Nottinghamshire County Council,08-05704,ROYAL MAIL GROUP PLC,Soft Facilities Management,Mail and Couriers,70.28,0,70.28,10-Nov-11,COMMUNITIES
Nottinghamshire County Council,08-05704,ROYAL MAIL GROUP PLC,Soft Facilities Management,Mail and Couriers,111.54,0,111.54,10-Nov-11,COMMUNITIES
Nottinghamshire County Council,08-05704,ROYAL MAIL GROUP PLC,Soft Facilities Management,Mail and Couriers,22.96,0,22.96,10-Nov-11,COMMUNITIES
Nottinghamshire County Council,08-05704,ROYAL MAIL GROUP PLC,Soft Facilities Management,Mail and Couriers,40.95,0,40.95,10-Nov-11,COMMUNITIES
Nottinghamshire County Council,08-05704,ROYAL MAIL GROUP PLC,Soft Facilities Management,Mail and Couriers,22.96,0,22.96,10-Nov-11,COMMUNITIES
Nottinghamshire County Council,08-05704,ROYAL MAIL GROUP PLC,Soft Facilities Management,Mail and Couriers,134.94,0,134.94,10-Nov-11,COMMUNITIES
Nottinghamshire County Council,08-05704,ROYAL MAIL GROUP PLC,Soft Facilities Management,Mail and Couriers,23.8,0,23.8,10-Nov-11,COMMUNITIES
Nottinghamshire County Council,08-05704,ROYAL MAIL GROUP PLC,Soft Facilities Management,Mail and Couriers,44.85,0,44.85,10-Nov-11,COMMUNITIES
Nottinghamshire County Council,08-05704,ROYAL MAIL GROUP PLC,Soft Facilities Management,Mail and Couriers,78.96,0,78.96,10-Nov-11,COMMUNITIES
Nottinghamshire County Council,08-05704,ROYAL MAIL GROUP PLC,Soft Facilities Management,Mail and Couriers,102.57,0,102.57,10-Nov-11,COMMUNITIES
Nottinghamshire County Council,08-05704,ROYAL MAIL GROUP PLC,Soft Facilities Management,Mail and Couriers,20.16,0,20.16,10-Nov-11,COMMUNITIES
Nottinghamshire County Council,08-05704,ROYAL MAIL GROUP PLC,Soft Facilities Management,Mail and Couriers,17.08,0,17.08,10-Nov-11,COMMUNITIES
Nottinghamshire County Council,08-05704,ROYAL MAIL GROUP PLC,Soft Facilities Management,Mail and Couriers,116.61,0,116.61,10-Nov-11,COMMUNITIES
Nottinghamshire County Council,08-05704,ROYAL MAIL GROUP PLC,Soft Facilities Management,Mail and Couriers,189.37,0,189.37,10-Nov-11,COMMUNITIES
Nottinghamshire County Council,08-05704,ROYAL MAIL GROUP PLC,Soft Facilities Management,Mail and Couriers,11.76,0,11.76,10-Nov-11,COMMUNITIES
Nottinghamshire County Council,08-05704,ROYAL MAIL GROUP PLC,Soft Facilities Management,Mail and Couriers,61.09,0,61.09,10-Nov-11,COMMUNITIES
Nottinghamshire County Council,08-05704,ROYAL MAIL GROUP PLC,Soft Facilities Management,Mail and Couriers,66.64,0,66.64,10-Nov-11,COMMUNITIES
Nottinghamshire County Council,08-05704,ROYAL MAIL GROUP PLC,Soft Facilities Management,Mail and Couriers,76.83,0,76.83,10-Nov-11,COMMUNITIES
Nottinghamshire County Council,08-05704,ROYAL MAIL GROUP PLC,Soft Facilities Management,Mail and Couriers,26.88,0,26.88,10-Nov-11,COMMUNITIES
Nottinghamshire County Council,08-05704,ROYAL MAIL GROUP PLC,Soft Facilities Management,Mail and Couriers,58.11,0,58.11,10-Nov-11,COMMUNITIES
Nottinghamshire County Council,08-05704,ROYAL MAIL GROUP PLC,Soft Facilities Management,Mail and Couriers,44.24,0,44.24,10-Nov-11,COMMUNITIES
Nottinghamshire County Council,08-05704,ROYAL MAIL GROUP PLC,Soft Facilities Management,Mail and Couriers,155.61,0,155.61,10-Nov-11,COMMUNITIES
Nottinghamshire County Council,08-05704,ROYAL MAIL GROUP PLC,Soft Facilities Management,Mail and Couriers,35.96,0,35.96,10-Nov-11,COMMUNITIES
Nottinghamshire County Council,08-05736,CHIPSIDE LTD,ICT,Software,"2,356.40",0,"2,356.40",09-Nov-11,COMMUNITIES
Nottinghamshire County Council,08-07210,B I P SOLUTIONS LIMITED,TBC,TBC,290,0,290,15-Nov-11,COMMUNITIES
Nottinghamshire County Council,08-07210,B I P SOLUTIONS LIMITED,TBC,TBC,190,0,190,15-Nov-11,COMMUNITIES
Nottinghamshire County Council,08-07230,N S L LTD,Transport & Travel,Motor Vehicles,"111,925.99",0,"111,925.99",16-Nov-11,COMMUNITIES
Nottinghamshire County Council,08-07231,N S L LTD,Transport & Travel,Motor Vehicles,"102,338.03",0,"102,338.03",16-Nov-11,COMMUNITIES
Nottinghamshire County Council,08-07232,CHIPSIDE LTD,ICT,Software,"2,606.53",0,"2,606.53",17-Nov-11,COMMUNITIES
Nottinghamshire County Council,08-09136,ROYAL MAIL GROUP PLC,Soft Facilities Management,Mail and Couriers,"1,293.20",0,"1,293.20",18-Nov-11,COMMUNITIES
Nottinghamshire County Council,08-05736,CHIPSIDE LTD,ICT,Software,148.13,0,148.13,09-Nov-11,COMMUNITIES
Nottinghamshire County Council,08-07232,CHIPSIDE LTD,ICT,Software,126.38,0,126.38,17-Nov-11,COMMUNITIES
Nottinghamshire County Council,08-08580,EXPERIAN LTD,Professional Services,Financial and Insurance Services,"13,911.91",0,"13,911.91",17-Nov-11,COMMUNITIES
Nottinghamshire County Council,08-02075,CUSTOM GROUP LTD,Soft Facilities Management,Furniture and Furnishings,"1,396.64",0,"1,396.64",09-Nov-11,COMMUNITIES
Nottinghamshire County Council,08-02075,CUSTOM GROUP LTD,Soft Facilities Management,Furniture and Furnishings,104.16,0,104.16,09-Nov-11,COMMUNITIES
Nottinghamshire County Council,08-08469,KONICA MINOLTA,ICT,"Printing and Publishing, Equipment and Supplies",570.6,114.12,684.72,17-Nov-11,COMMUNITIES
Nottinghamshire County Council,08-08470,KONICA MINOLTA,ICT,"Printing and Publishing, Equipment and Supplies","1,619.58",323.92,"1,943.50",17-Nov-11,COMMUNITIES
Nottinghamshire County Council,08-08736,KONICA MINOLTA,ICT,"Printing and Publishing, Equipment and Supplies",466.14,81.57,547.71,18-Nov-11,COMMUNITIES
Nottinghamshire County Council,08-07218,J M COUNTRYSIDE LANDSCAPES,External Services (Highways & Culture),Farming Forestry and Wildlife Services,"1,428.27",0,"1,428.27",16-Nov-11,COMMUNITIES
Nottinghamshire County Council,08-07876,CENTREWIRE LTD,Hard Facilities Management ,Window and Door Installation Services,"2,300.00",0,"2,300.00",17-Nov-11,COMMUNITIES
Nottinghamshire County Council,08-07882,R P HUNT SERVICES,External Services (Highways & Culture),Manufacturing Machinery,"1,566.33",0,"1,566.33",17-Nov-11,COMMUNITIES
Nottinghamshire County Council,08-05474,JOHN HAMMOND AND CO,Soft Facilities Management,Fresh Fruit and Veg,942.27,188.45,"1,130.72",09-Nov-11,COMMUNITIES
Nottinghamshire County Council,08-06675,J S PEAKE AND SONS,Soft Facilities Management,Fresh Fruit and Veg,457.44,91.49,548.93,15-Nov-11,COMMUNITIES
Nottinghamshire County Council,08-00175,MOBILE FUN LTD,ICT,Telecommunications and Media,995,199,"1,194.00",02-Nov-11,COMMUNITIES
Nottinghamshire County Council,08-05726,ASHFORD TREESCAPES,External Services (Highways & Culture),Farming Forestry & Wildlife Services,"2,500.00",0,"2,500.00",09-Nov-11,COMMUNITIES
Nottinghamshire County Council,08-05726,ASHFORD TREESCAPES,External Services (Highways & Culture),Farming Forestry & Wildlife Services,250,0,250,09-Nov-11,COMMUNITIES
Nottinghamshire County Council,08-07552,TARMAC CENTRAL LTD,External Services (Highways & Culture),Highways and Works,"37,077.75",0,"37,077.75",17-Nov-11,COMMUNITIES
Nottinghamshire County Council,08-08108,ATG ACCESS LTD                        ,TBC,TBC,876.89,0,876.89,17-Nov-11,COMMUNITIES
Nottinghamshire County Council,08-07176,SIEMENS PLC,Hard Facilities Management ,Electrical Systems and Lighting,"1,397.00",0,"1,397.00",17-Nov-11,COMMUNITIES
Nottinghamshire County Council,08-00175,MOBILE FUN LTD,ICT,Telecommunications and Media,4.96,0.99,5.95,02-Nov-11,COMMUNITIES
Nottinghamshire County Council,08-00175,MOBILE FUN LTD,ICT,Telecommunications and Media,796,159.2,955.2,02-Nov-11,COMMUNITIES
Nottinghamshire County Council,08-00175,MOBILE FUN LTD,ICT,Telecommunications and Media,597,119.4,716.4,02-Nov-11,COMMUNITIES
Nottinghamshire County Council,08-05662,ATG ACCESS LTD                        ,TBC,TBC,730.74,146.15,876.89,09-Nov-11,COMMUNITIES
Nottinghamshire County Council,08-08994,ROAD SAFETY ANALYSIS LTD,External Services (Highways & Culture),Highways and Works,"1,116.00",223.2,"1,339.20",18-Nov-11,COMMUNITIES
Nottinghamshire County Council,08-01875,STORK TALK (MIDLANDS) LTD,Care,Medical Equipment and  Supplies,700,0,700,07-Nov-11,COMMUNITIES
Nottinghamshire County Council,08-01875,STORK TALK (MIDLANDS) LTD,Care,Medical Equipment and  Supplies,36,0,36,07-Nov-11,COMMUNITIES
Nottinghamshire County Council,08-05825,WASTE RECYCLING GROUP PLC,Soft Facilities Management,Environmental Services,"56,607.28","11,321.46","67,928.74",18-Nov-11,COMMUNITIES
Nottinghamshire County Council,08-05826,WASTE RECYCLING GROUP PLC,Soft Facilities Management,Environmental Services,"58,003.70","11,600.74","69,604.44",18-Nov-11,COMMUNITIES
Nottinghamshire County Council,08-05827,WASTE RECYCLING GROUP PLC,Soft Facilities Management,Environmental Services,"71,022.32","14,204.46","85,226.78",18-Nov-11,COMMUNITIES
Nottinghamshire County Council,08-02175,WASTE RECYCLING GROUP PLC,Soft Facilities Management,Environmental Services,"4,340.38",868.08,"5,208.46",09-Nov-11,COMMUNITIES
Nottinghamshire County Council,08-07173,NOTTINGHAMSHIRE WILDLIFE TRUST,Professional Services,Politics and Civic Affairs,"3,000.00",0,"3,000.00",17-Nov-11,COMMUNITIES
Nottinghamshire County Council,08-08053,BILLY BOWIE SPECIAL PROJECTS LTD,Soft Facilities Management,Scrap and Waste Materials,880,0,880,17-Nov-11,COMMUNITIES
Nottinghamshire County Council,08-07179,S R C L LTD,Soft Facilities Management,Scrap and Waste Materials,"9,445.23",0,"9,445.23",17-Nov-11,COMMUNITIES
Nottinghamshire County Council,08-07915,S R C L LTD,Soft Facilities Management,Scrap and Waste Materials,"7,312.43",0,"7,312.43",17-Nov-11,COMMUNITIES
Nottinghamshire County Council,08-08582,S R C L LTD,Soft Facilities Management,Scrap and Waste Materials,"-1,068.43",0,"-1,068.43",17-Nov-11,COMMUNITIES
Nottinghamshire County Council,08-00537,HAYMARKET BUSINESS MEDIA,TBC,TBC,804.3,0,804.3,09-Nov-11,COMMUNITIES
Nottinghamshire County Council,08-00198,VEOLIA ENVIRONMENTAL SERVICES PLC,Soft Facilities Management,Scrap and Waste Materials,"795,937.32","159,187.46","955,124.78",01-Nov-11,COMMUNITIES
Nottinghamshire County Council,08-06522,VEOLIA ENVIRONMENTAL SERVICES PLC,Soft Facilities Management,Scrap and Waste Materials,"753,297.83","150,659.57","903,957.40",15-Nov-11,COMMUNITIES
Nottinghamshire County Council,08-00198,VEOLIA ENVIRONMENTAL SERVICES PLC,Soft Facilities Management,Scrap and Waste Materials,"112,865.32","22,573.06","135,438.38",01-Nov-11,COMMUNITIES
Nottinghamshire County Council,08-06522,VEOLIA ENVIRONMENTAL SERVICES PLC,Soft Facilities Management,Scrap and Waste Materials,"110,764.88","22,152.98","132,917.86",15-Nov-11,COMMUNITIES
Nottinghamshire County Council,08-00198,VEOLIA ENVIRONMENTAL SERVICES PLC,Soft Facilities Management,Scrap and Waste Materials,"78,467.49","15,693.50","94,160.99",01-Nov-11,COMMUNITIES
Nottinghamshire County Council,08-06522,VEOLIA ENVIRONMENTAL SERVICES PLC,Soft Facilities Management,Scrap and Waste Materials,"66,291.37","13,258.27","79,549.64",15-Nov-11,COMMUNITIES
Nottinghamshire County Council,08-00198,VEOLIA ENVIRONMENTAL SERVICES PLC,Soft Facilities Management,Scrap and Waste Materials,"286,418.55","57,283.71","343,702.26",01-Nov-11,COMMUNITIES
Nottinghamshire County Council,08-06522,VEOLIA ENVIRONMENTAL SERVICES PLC,Soft Facilities Management,Scrap and Waste Materials,"278,340.76","55,668.15","334,008.91",15-Nov-11,COMMUNITIES
Nottinghamshire County Council,08-00198,VEOLIA ENVIRONMENTAL SERVICES PLC,Soft Facilities Management,Scrap and Waste Materials,"35,155.91","7,031.18","42,187.09",01-Nov-11,COMMUNITIES
Nottinghamshire County Council,08-06522,VEOLIA ENVIRONMENTAL SERVICES PLC,Soft Facilities Management,Scrap and Waste Materials,"26,672.46","5,334.49","32,006.95",15-Nov-11,COMMUNITIES
Nottinghamshire County Council,08-00198,VEOLIA ENVIRONMENTAL SERVICES PLC,Soft Facilities Management,Scrap and Waste Materials,"23,328.34","4,665.67","27,994.01",01-Nov-11,COMMUNITIES
Nottinghamshire County Council,08-06522,VEOLIA ENVIRONMENTAL SERVICES PLC,Soft Facilities Management,Scrap and Waste Materials,"17,698.99","3,539.80","21,238.79",15-Nov-11,COMMUNITIES
Nottinghamshire County Council,08-00198,VEOLIA ENVIRONMENTAL SERVICES PLC,Soft Facilities Management,Scrap and Waste Materials,"212,203.68","42,440.74","254,644.42",01-Nov-11,COMMUNITIES
Nottinghamshire County Council,08-06522,VEOLIA ENVIRONMENTAL SERVICES PLC,Soft Facilities Management,Scrap and Waste Materials,"191,904.96","38,380.99","230,285.95",15-Nov-11,COMMUNITIES
Nottinghamshire County Council,08-00198,VEOLIA ENVIRONMENTAL SERVICES PLC,Soft Facilities Management,Scrap and Waste Materials,"29,075.11","5,815.02","34,890.13",01-Nov-11,COMMUNITIES
Nottinghamshire County Council,08-06522,VEOLIA ENVIRONMENTAL SERVICES PLC,Soft Facilities Management,Scrap and Waste Materials,"24,563.41","4,912.68","29,476.09",15-Nov-11,COMMUNITIES
Nottinghamshire County Council,08-00198,VEOLIA ENVIRONMENTAL SERVICES PLC,Soft Facilities Management,Scrap and Waste Materials,"19,851.88","3,970.38","23,822.26",01-Nov-11,COMMUNITIES
Nottinghamshire County Council,08-06522,VEOLIA ENVIRONMENTAL SERVICES PLC,Soft Facilities Management,Scrap and Waste Materials,"14,792.34","2,958.47","17,750.81",15-Nov-11,COMMUNITIES
Nottinghamshire County Council,08-00198,VEOLIA ENVIRONMENTAL SERVICES PLC,Soft Facilities Management,Scrap and Waste Materials,"119,358.42","23,871.68","143,230.10",01-Nov-11,COMMUNITIES
Nottinghamshire County Council,08-06522,VEOLIA ENVIRONMENTAL SERVICES PLC,Soft Facilities Management,Scrap and Waste Materials,"119,157.97","23,831.59","142,989.56",15-Nov-11,COMMUNITIES
Nottinghamshire County Council,08-00198,VEOLIA ENVIRONMENTAL SERVICES PLC,Soft Facilities Management,Scrap and Waste Materials,"194,166.05","38,833.21","232,999.26",01-Nov-11,COMMUNITIES
Nottinghamshire County Council,08-06522,VEOLIA ENVIRONMENTAL SERVICES PLC,Soft Facilities Management,Scrap and Waste Materials,"194,166.05","38,833.21","232,999.26",15-Nov-11,COMMUNITIES
Nottinghamshire County Council,08-00198,VEOLIA ENVIRONMENTAL SERVICES PLC,Soft Facilities Management,Scrap and Waste Materials,"36,678.73","7,335.75","44,014.48",01-Nov-11,COMMUNITIES
Nottinghamshire County Council,08-06522,VEOLIA ENVIRONMENTAL SERVICES PLC,Soft Facilities Management,Scrap and Waste Materials,"39,950.15","7,990.03","47,940.18",15-Nov-11,COMMUNITIES
Nottinghamshire County Council,08-00198,VEOLIA ENVIRONMENTAL SERVICES PLC,Soft Facilities Management,Scrap and Waste Materials,"-18,179.65","-3,635.93","-21,815.58",01-Nov-11,COMMUNITIES
Nottinghamshire County Council,08-06522,VEOLIA ENVIRONMENTAL SERVICES PLC,Soft Facilities Management,Scrap and Waste Materials,"-21,356.40","-4,271.28","-25,627.68",15-Nov-11,COMMUNITIES
Nottinghamshire County Council,08-06522,VEOLIA ENVIRONMENTAL SERVICES PLC,Soft Facilities Management,Scrap and Waste Materials,"-1,200.00",-240,"-1,440.00",15-Nov-11,COMMUNITIES
Nottinghamshire County Council,08-00198,VEOLIA ENVIRONMENTAL SERVICES PLC,Soft Facilities Management,Scrap and Waste Materials,"40,359.52","8,071.90","48,431.42",01-Nov-11,COMMUNITIES
Nottinghamshire County Council,08-06522,VEOLIA ENVIRONMENTAL SERVICES PLC,Soft Facilities Management,Scrap and Waste Materials,"31,373.45","6,274.69","37,648.14",15-Nov-11,COMMUNITIES
Nottinghamshire County Council,08-00198,VEOLIA ENVIRONMENTAL SERVICES PLC,Soft Facilities Management,Scrap and Waste Materials,"5,959.37","1,191.87","7,151.24",01-Nov-11,COMMUNITIES
Nottinghamshire County Council,08-06522,VEOLIA ENVIRONMENTAL SERVICES PLC,Soft Facilities Management,Scrap and Waste Materials,"7,245.17","1,449.03","8,694.20",15-Nov-11,COMMUNITIES
Nottinghamshire County Council,08-00564,SCOTT WILSON LTD,Professional Services,Consultancy,"42,020.52","8,404.10","50,424.62",09-Nov-11,COMMUNITIES
Nottinghamshire County Council,08-00565,SCOTT WILSON LTD,Professional Services,Consultancy,"48,788.11","9,757.62","58,545.73",09-Nov-11,COMMUNITIES
Nottinghamshire County Council,08-00566,SCOTT WILSON LTD,Professional Services,Consultancy,"33,132.40","6,626.48","39,758.88",09-Nov-11,COMMUNITIES
Nottinghamshire County Council,08-06518,SCOTT WILSON LTD,Professional Services,Consultancy,"125,303.40","25,060.68","150,364.08",11-Nov-11,COMMUNITIES
Nottinghamshire County Council,08-06519,SCOTT WILSON LTD,Professional Services,Consultancy,"34,932.08","6,986.42","41,918.50",11-Nov-11,COMMUNITIES
Nottinghamshire County Council,08-07582,MIDLAND ROOFING SERVICES (DERBY) LTD,Hard Facilities Management ,Roofing Services,"10,420.80","2,084.16","12,504.96",16-Nov-11,RESOURCES
Nottinghamshire County Council,08-07579,MIDLAND ROOFING SERVICES (DERBY) LTD,Hard Facilities Management ,Roofing Services,"7,356.66","1,471.33","8,827.99",16-Nov-11,RESOURCES
Nottinghamshire County Council,08-07581,MIDLAND ROOFING SERVICES (DERBY) LTD,Hard Facilities Management ,Roofing Services,"41,215.24","8,243.05","49,458.29",16-Nov-11,RESOURCES
Nottinghamshire County Council,08-07580,MIDLAND ROOFING SERVICES (DERBY) LTD,Hard Facilities Management ,Roofing Services,"70,306.00","14,061.20","84,367.20",16-Nov-11,RESOURCES
Nottinghamshire County Council,08-07565,ROBERT WOODHEAD LTD,Hard Facilities Management ,Building Construction Services,"5,150.19","1,030.04","6,180.23",17-Nov-11,RESOURCES
Nottinghamshire County Council,08-07578,MIDLAND ROOFING SERVICES (DERBY) LTD,Hard Facilities Management ,Roofing Services,"63,291.93","12,658.39","75,950.32",16-Nov-11,RESOURCES
Nottinghamshire County Council,08-01493,ENVIRONTEC LTD,Professional Services,Consultancy,936,187.2,"1,123.20",09-Nov-11,RESOURCES
Nottinghamshire County Council,08-07398,G F TOMLINSON BUILDING LTD,Hard Facilities Management ,Building and Construction Supplies,"34,043.67","6,808.73","40,852.40",16-Nov-11,RESOURCES
Nottinghamshire County Council,08-00985,MIDLAND ROOFING SERVICES (DERBY) LTD,Hard Facilities Management ,Roofing Services,"1,114.51",222.9,"1,337.41",01-Nov-11,RESOURCES
Nottinghamshire County Council,08-07564,TRENT VALLEY WINDOW AND DOOR CO LTD,Hard Facilities Management ,Window and Door Installation Services,"45,200.00","9,040.00","54,240.00",16-Nov-11,RESOURCES
Nottinghamshire County Council,08-07583,MIDLAND ROOFING SERVICES (DERBY) LTD,Hard Facilities Management ,Roofing Services,"68,842.00","13,768.40","82,610.40",16-Nov-11,RESOURCES
Nottinghamshire County Council,08-08971,TRENT VALLEY WINDOW AND DOOR CO LTD,Hard Facilities Management ,Window and Door Installation Services,"1,634.00",326.8,"1,960.80",18-Nov-11,RESOURCES
Nottinghamshire County Council,08-06696,PTL OCCUPATIONAL HYGIENE CONSULTANTS,Professional Services,Consultancy,"1,455.60",291.12,"1,746.72",15-Nov-11,RESOURCES
Nottinghamshire County Council,08-07584,MIDLAND ROOFING SERVICES (DERBY) LTD,Hard Facilities Management ,Roofing Services,"5,274.79","1,054.96","6,329.75",16-Nov-11,RESOURCES
Nottinghamshire County Council,08-08114,MIDLAND ROOFING SERVICES (DERBY) LTD,Hard Facilities Management ,Roofing Services,967.45,193.49,"1,160.94",17-Nov-11,RESOURCES
Nottinghamshire County Council,08-07543,M J W ASBESTOS REMOVAL LTD,Soft Facilities Management,Scrap and Waste Materials,662,132.4,794.4,17-Nov-11,RESOURCES
Nottinghamshire County Council,08-06775,PTL OCCUPATIONAL HYGIENE CONSULTANTS,Professional Services,Consultancy,468.95,93.79,562.74,15-Nov-11,RESOURCES
Nottinghamshire County Council,08-07542,M J W ASBESTOS REMOVAL LTD,Soft Facilities Management,Scrap and Waste Materials,500,100,600,17-Nov-11,RESOURCES
Nottinghamshire County Council,08-08121,PTL OCCUPATIONAL HYGIENE CONSULTANTS,Professional Services,Consultancy,"2,818.50",563.7,"3,382.20",17-Nov-11,RESOURCES
Nottinghamshire County Council,08-07544,M J W ASBESTOS REMOVAL LTD,Soft Facilities Management,Scrap and Waste Materials,500,100,600,17-Nov-11,RESOURCES
Nottinghamshire County Council,08-07562,PTL OCCUPATIONAL HYGIENE CONSULTANTS,Professional Services,Consultancy,808.3,161.66,969.96,15-Nov-11,RESOURCES
Nottinghamshire County Council,08-07516,ENVIRONTEC LTD,Professional Services,Consultancy,942,188.4,"1,130.40",16-Nov-11,RESOURCES
Nottinghamshire County Council,08-06854,PTL OCCUPATIONAL HYGIENE CONSULTANTS,Professional Services,Consultancy,693.8,138.76,832.56,15-Nov-11,RESOURCES
Nottinghamshire County Council,08-06855,PTL OCCUPATIONAL HYGIENE CONSULTANTS,Professional Services,Consultancy,541.8,108.36,650.16,15-Nov-11,RESOURCES
Nottinghamshire County Council,08-00354,TRENT VALLEY WINDOW AND DOOR CO LTD,Hard Facilities Management ,Window and Door Installation Services,"75,800.00","15,160.00","90,960.00",09-Nov-11,RESOURCES
Nottinghamshire County Council,08-07563,TRENT VALLEY WINDOW AND DOOR CO LTD,Hard Facilities Management ,Window and Door Installation Services,"3,496.00",699.2,"4,195.20",16-Nov-11,RESOURCES
Nottinghamshire County Council,08-00615,FIRST ORDER RED LTD,Soft Facilities Management,Scrap and Waste Materials,"1,821.50",364.3,"2,185.80",09-Nov-11,RESOURCES
Nottinghamshire County Council,08-06674,PTL OCCUPATIONAL HYGIENE CONSULTANTS,Professional Services,Consultancy,435.2,87.04,522.24,15-Nov-11,RESOURCES
Nottinghamshire County Council,08-07531,MIDLAND ROOFING SERVICES (DERBY) LTD,Hard Facilities Management ,Roofing Services,"1,531.53",306.31,"1,837.84",16-Nov-11,RESOURCES
Nottinghamshire County Council,08-07472,TRENT VALLEY WINDOW AND DOOR CO LTD,Hard Facilities Management ,Window and Door Installation Services,"8,317.74","1,663.55","9,981.29",16-Nov-11,RESOURCES
Nottinghamshire County Council,08-07327,SECOND ELEMENT LTD,Hard Facilities Management ,Health and Safety,"1,170.00",234,"1,404.00",17-Nov-11,RESOURCES
Nottinghamshire County Council,08-07340,SECOND ELEMENT LTD,Hard Facilities Management ,Health and Safety,570,114,684,17-Nov-11,RESOURCES
Nottinghamshire County Council,08-00978,SECOND ELEMENT LTD,Hard Facilities Management ,Health and Safety,800,160,960,01-Nov-11,RESOURCES
Nottinghamshire County Council,08-00979,SECOND ELEMENT LTD,Hard Facilities Management ,Health and Safety,690,138,828,01-Nov-11,RESOURCES
Nottinghamshire County Council,08-00980,SECOND ELEMENT LTD,Hard Facilities Management ,Health and Safety,"1,025.00",205,"1,230.00",01-Nov-11,RESOURCES
Nottinghamshire County Council,08-00981,SECOND ELEMENT LTD,Hard Facilities Management ,Health and Safety,630,126,756,01-Nov-11,RESOURCES
Nottinghamshire County Council,08-06772,SECOND ELEMENT LTD,Hard Facilities Management ,Health and Safety,630,126,756,15-Nov-11,RESOURCES
Nottinghamshire County Council,08-06773,SECOND ELEMENT LTD,Hard Facilities Management ,Health and Safety,865,173,"1,038.00",15-Nov-11,RESOURCES
Nottinghamshire County Council,08-07342,SECOND ELEMENT LTD,Hard Facilities Management ,Health and Safety,535,107,642,17-Nov-11,RESOURCES
Nottinghamshire County Council,08-07343,SECOND ELEMENT LTD,Hard Facilities Management ,Health and Safety,695,139,834,17-Nov-11,RESOURCES
Nottinghamshire County Council,08-00554,M D B PLUMBING LTD,Hard Facilities Management ,Plumbing Services,462,92.4,554.4,04-Nov-11,RESOURCES
Nottinghamshire County Council,08-00555,M D B PLUMBING LTD,Hard Facilities Management ,Plumbing Services,462,92.4,554.4,04-Nov-11,RESOURCES
Nottinghamshire County Council,08-06725,M D B PLUMBING LTD,Hard Facilities Management ,Plumbing Services,462,92.4,554.4,15-Nov-11,RESOURCES
Nottinghamshire County Council,08-06771,SECOND ELEMENT LTD,Hard Facilities Management ,Health and Safety,700,140,840,15-Nov-11,RESOURCES
Nottinghamshire County Council,08-07341,SECOND ELEMENT LTD,Hard Facilities Management ,Health and Safety,855,171,"1,026.00",17-Nov-11,RESOURCES
Nottinghamshire County Council,08-05638,DORMA UK LTD,Soft Facilities Management,Furniture and Furnishings,"8,250.00","1,650.00","9,900.00",09-Nov-11,RESOURCES
Nottinghamshire County Council,08-06039,OTIS LTD,Hard Facilities Management ,Building and Construction Supplies,621.23,124.25,745.48,15-Nov-11,RESOURCES
Nottinghamshire County Council,08-06043,ENVIRONMENT AGENCY,Professional Services,Politics and Civic Affairs,"1,206.00",0,"1,206.00",10-Nov-11,RESOURCES
Nottinghamshire County Council,08-06447,TELEVISION INSTALL.SERV MANSFIELD LTD,ICT,Telecommunications and Media,439.24,87.85,527.09,15-Nov-11,RESOURCES
Nottinghamshire County Council,08-07518,TUKE AND BELL LTD,Soft Facilities Management,Scrap and Waste Materials,"1,415.00",283,"1,698.00",17-Nov-11,RESOURCES
Nottinghamshire County Council,08-08972,FORMOST AIRCONDITIONING AND REFRIG LTD,Hard Facilities Management ,Heating and Ventilation (Inc A/C),840.86,168.17,"1,009.03",18-Nov-11,RESOURCES
Nottinghamshire County Council,08-08975,PITNEY BOWES SOFTWARE LTD,ICT,Software,"1,638.00",327.6,"1,965.60",18-Nov-11,COMMUNITIES
Nottinghamshire County Council,08-06491,ARROW LIGHT RAIL LTD,External Services (Highways & Culture),Highways and Works,"20,000.00",0,"20,000.00",15-Nov-11,COMMUNITIES
Nottinghamshire County Council,08-06492,K AND H DOYLE COACHES LTD,Transport & Travel,Bus,"5,700.00",0,"5,700.00",15-Nov-11,COMMUNITIES
Nottinghamshire County Council,08-06493,K AND H DOYLE COACHES LTD,Transport & Travel,Bus,"7,100.00",0,"7,100.00",15-Nov-11,COMMUNITIES
Nottinghamshire County Council,08-06494,KETTLEWELL RETFORD LTD,Transport & Travel,Bus,800,0,800,15-Nov-11,COMMUNITIES
Nottinghamshire County Council,08-06495,MARSHALLS OF SUTTON ON TRENT,Transport & Travel,Bus,"14,500.00",0,"14,500.00",15-Nov-11,COMMUNITIES
Nottinghamshire County Council,08-06497,PREMIERE TRAVEL LTD,Transport & Travel,Travel Agencies and Booking,"33,000.00",0,"33,000.00",15-Nov-11,COMMUNITIES
Nottinghamshire County Council,08-06498,SOAR VALLEY BUS,Transport & Travel,Bus,800,0,800,15-Nov-11,COMMUNITIES
Nottinghamshire County Council,08-06499,TRAVEL WRIGHT LTD,Transport & Travel,Travel Agencies and Booking,"8,000.00",0,"8,000.00",15-Nov-11,COMMUNITIES
Nottinghamshire County Council,08-06500,YOUR BUS,Transport & Travel,Bus,"24,000.00",0,"24,000.00",15-Nov-11,COMMUNITIES
Nottinghamshire County Council,08-06501,VEOLIA TRANSPORT ENGLAND PLC,Transport & Travel,Bus,"2,670.94",0,"2,670.94",15-Nov-11,COMMUNITIES
Nottinghamshire County Council,08-06502,TRENT MOTOR TRACTION COMPANY LTD,Transport & Travel,Bus,"233,772.39",0,"233,772.39",15-Nov-11,COMMUNITIES
Nottinghamshire County Council,08-06503,STAGECOACH EAST MIDLANDS,Transport & Travel,Bus,"261,540.00",0,"261,540.00",15-Nov-11,COMMUNITIES
Nottinghamshire County Council,08-06504,NOTTINGHAM CITY TRANSPORT LTD,Transport & Travel,Bus,"161,540.00",0,"161,540.00",15-Nov-11,COMMUNITIES
Nottinghamshire County Council,08-06496,OUR CENTRE,Care,Community and Social Services,656.71,0,656.71,15-Nov-11,COMMUNITIES
Nottinghamshire County Council,08-08984,EMTIS LTD,Transport & Travel,Bus,589.75,117.95,707.7,18-Nov-11,COMMUNITIES
Nottinghamshire County Council,08-09046,EMTIS LTD,Transport & Travel,Bus,"1,617.65",283.09,"1,900.74",18-Nov-11,COMMUNITIES
Nottinghamshire County Council,08-09047,EMTIS LTD,Transport & Travel,Bus,"1,772.24",310.14,"2,082.38",18-Nov-11,COMMUNITIES
Nottinghamshire County Council,08-00427,STAGECOACH EAST MIDLANDS,Transport & Travel,Bus,"-1,237.95",0,"-1,237.95",09-Nov-11,COMMUNITIES
Nottinghamshire County Council,08-01554,STAGECOACH EAST MIDLANDS,Transport & Travel,Bus,"14,590.44",0,"14,590.44",09-Nov-11,COMMUNITIES
Nottinghamshire County Council,08-01567,PREMIERE TRAVEL LTD,Transport & Travel,Travel Agencies and Booking,"15,359.85",0,"15,359.85",03-Nov-11,COMMUNITIES
Nottinghamshire County Council,08-01684,PREMIERE TRAVEL LTD,Transport & Travel,Travel Agencies and Booking,"25,585.00",0,"25,585.00",07-Nov-11,COMMUNITIES
Nottinghamshire County Council,08-05350,UNITY COACHES,Transport & Travel,Bus,"1,266.02",0,"1,266.02",09-Nov-11,COMMUNITIES
Nottinghamshire County Council,08-05927,GEM MINI TRAVEL,Transport & Travel,Travel Agencies and Booking,376.81,0,376.81,10-Nov-11,COMMUNITIES
Nottinghamshire County Council,08-06122,STAGECOACH EAST MIDLANDS,Transport & Travel,Bus,"31,352.88",0,"31,352.88",10-Nov-11,COMMUNITIES
Nottinghamshire County Council,08-06122,STAGECOACH EAST MIDLANDS,Transport & Travel,Bus,"-3,709.88",0,"-3,709.88",10-Nov-11,COMMUNITIES
Nottinghamshire County Council,08-06204,MARSHALLS OF SUTTON ON TRENT,Transport & Travel,Bus,"3,960.58",0,"3,960.58",15-Nov-11,COMMUNITIES
Nottinghamshire County Council,08-06205,MARSHALLS OF SUTTON ON TRENT,Transport & Travel,Bus,719.42,0,719.42,15-Nov-11,COMMUNITIES
Nottinghamshire County Council,08-06206,MARSHALLS OF SUTTON ON TRENT,Transport & Travel,Bus,551.57,0,551.57,15-Nov-11,COMMUNITIES
Nottinghamshire County Council,08-06207,MARSHALLS OF SUTTON ON TRENT,Transport & Travel,Bus,996.45,0,996.45,15-Nov-11,COMMUNITIES
Nottinghamshire County Council,08-06208,MARSHALLS OF SUTTON ON TRENT,Transport & Travel,Bus,"3,855.28",0,"3,855.28",15-Nov-11,COMMUNITIES
Nottinghamshire County Council,08-06209,MARSHALLS OF SUTTON ON TRENT,Transport & Travel,Bus,"1,637.60",0,"1,637.60",15-Nov-11,COMMUNITIES
Nottinghamshire County Council,08-06210,MARSHALLS OF SUTTON ON TRENT,Transport & Travel,Bus,"1,400.40",0,"1,400.40",15-Nov-11,COMMUNITIES
Nottinghamshire County Council,08-06212,MARSHALLS OF SUTTON ON TRENT,Transport & Travel,Bus,"1,233.70",0,"1,233.70",15-Nov-11,COMMUNITIES
Nottinghamshire County Council,08-06214,MARSHALLS OF SUTTON ON TRENT,Transport & Travel,Bus,837.72,0,837.72,15-Nov-11,COMMUNITIES
Nottinghamshire County Council,08-06215,MARSHALLS OF SUTTON ON TRENT,Transport & Travel,Bus,"1,252.16",0,"1,252.16",15-Nov-11,COMMUNITIES
Nottinghamshire County Council,08-06216,MARSHALLS OF SUTTON ON TRENT,Transport & Travel,Bus,"1,702.95",0,"1,702.95",15-Nov-11,COMMUNITIES
Nottinghamshire County Council,08-06217,K AND H DOYLE COACHES LTD,Transport & Travel,Bus,"5,573.62",0,"5,573.62",15-Nov-11,COMMUNITIES
Nottinghamshire County Council,08-06218,K AND H DOYLE COACHES LTD,Transport & Travel,Bus,"3,461.12",0,"3,461.12",15-Nov-11,COMMUNITIES
Nottinghamshire County Council,08-06219,K AND H DOYLE COACHES LTD,Transport & Travel,Bus,"20,190.45",0,"20,190.45",15-Nov-11,COMMUNITIES
Nottinghamshire County Council,08-06220,K AND H DOYLE COACHES LTD,Transport & Travel,Bus,"6,825.00",0,"6,825.00",15-Nov-11,COMMUNITIES
Nottinghamshire County Council,08-06221,YOUR BUS,Transport & Travel,Bus,"7,898.88",0,"7,898.88",15-Nov-11,COMMUNITIES
Nottinghamshire County Council,08-06222,YOUR BUS,Transport & Travel,Bus,"17,972.05",0,"17,972.05",15-Nov-11,COMMUNITIES
Nottinghamshire County Council,08-06223,YOUR BUS,Transport & Travel,Bus,"24,411.80",0,"24,411.80",15-Nov-11,COMMUNITIES
Nottinghamshire County Council,08-06224,YOUR BUS,Transport & Travel,Bus,"22,113.00",0,"22,113.00",15-Nov-11,COMMUNITIES
Nottinghamshire County Council,08-06225,YOUR BUS,Transport & Travel,Bus,"30,848.10",0,"30,848.10",15-Nov-11,COMMUNITIES
Nottinghamshire County Council,08-07636,PREMIERE TRAVEL LTD,Transport & Travel,Travel Agencies and Booking,"23,389.34",0,"23,389.34",17-Nov-11,COMMUNITIES
Nottinghamshire County Council,08-07637,PREMIERE TRAVEL LTD,Transport & Travel,Travel Agencies and Booking,"2,665.26",0,"2,665.26",17-Nov-11,COMMUNITIES
Nottinghamshire County Council,08-07641,PREMIERE TRAVEL LTD,Transport & Travel,Travel Agencies and Booking,117.62,0,117.62,17-Nov-11,COMMUNITIES
Nottinghamshire County Council,08-07646,REDFERN COACHES MANSFIELD LTD,Transport & Travel,Bus,731.89,0,731.89,16-Nov-11,COMMUNITIES
Nottinghamshire County Council,08-07694,UNITY COACHES,Transport & Travel,Bus,371,0,371,17-Nov-11,COMMUNITIES
Nottinghamshire County Council,08-07757,STAGECOACH EAST MIDLANDS,Transport & Travel,Bus,"14,176.44",0,"14,176.44",16-Nov-11,COMMUNITIES
Nottinghamshire County Council,08-07758,STAGECOACH EAST MIDLANDS,Transport & Travel,Bus,"3,181.88",0,"3,181.88",16-Nov-11,COMMUNITIES
Nottinghamshire County Council,08-07759,STAGECOACH EAST MIDLANDS,Transport & Travel,Bus,"1,908.66",0,"1,908.66",16-Nov-11,COMMUNITIES
Nottinghamshire County Council,08-07760,STAGECOACH EAST MIDLANDS,Transport & Travel,Bus,"1,375.14",0,"1,375.14",16-Nov-11,COMMUNITIES
Nottinghamshire County Council,08-07761,STAGECOACH EAST MIDLANDS,Transport & Travel,Bus,"2,147.70",0,"2,147.70",16-Nov-11,COMMUNITIES
Nottinghamshire County Council,08-07762,STAGECOACH EAST MIDLANDS,Transport & Travel,Bus,"1,535.56",0,"1,535.56",16-Nov-11,COMMUNITIES
Nottinghamshire County Council,08-07763,STAGECOACH EAST MIDLANDS,Transport & Travel,Bus,"2,582.58",0,"2,582.58",16-Nov-11,COMMUNITIES
Nottinghamshire County Council,08-07764,STAGECOACH EAST MIDLANDS,Transport & Travel,Bus,"2,232.30",0,"2,232.30",16-Nov-11,COMMUNITIES
Nottinghamshire County Council,08-07765,STAGECOACH EAST MIDLANDS,Transport & Travel,Bus,"3,908.84",0,"3,908.84",16-Nov-11,COMMUNITIES
Nottinghamshire County Council,08-07766,STAGECOACH EAST MIDLANDS,Transport & Travel,Bus,569.15,0,569.15,16-Nov-11,COMMUNITIES
Nottinghamshire County Council,08-07767,STAGECOACH EAST MIDLANDS,Transport & Travel,Bus,"1,885.00",0,"1,885.00",16-Nov-11,COMMUNITIES
Nottinghamshire County Council,08-07768,STAGECOACH EAST MIDLANDS,Transport & Travel,Bus,"3,490.24",0,"3,490.24",16-Nov-11,COMMUNITIES
Nottinghamshire County Council,08-07769,STAGECOACH EAST MIDLANDS,Transport & Travel,Bus,"1,217.79",0,"1,217.79",16-Nov-11,COMMUNITIES
Nottinghamshire County Council,08-07770,STAGECOACH EAST MIDLANDS,Transport & Travel,Bus,949.26,0,949.26,16-Nov-11,COMMUNITIES
Nottinghamshire County Council,08-07771,STAGECOACH EAST MIDLANDS,Transport & Travel,Bus,"8,083.40",0,"8,083.40",16-Nov-11,COMMUNITIES
Nottinghamshire County Council,08-07772,STAGECOACH EAST MIDLANDS,Transport & Travel,Bus,"2,428.92",0,"2,428.92",16-Nov-11,COMMUNITIES
Nottinghamshire County Council,08-07773,STAGECOACH EAST MIDLANDS,Transport & Travel,Bus,"1,127.70",0,"1,127.70",16-Nov-11,COMMUNITIES
Nottinghamshire County Council,08-07774,STAGECOACH EAST MIDLANDS,Transport & Travel,Bus,"10,050.82",0,"10,050.82",16-Nov-11,COMMUNITIES
Nottinghamshire County Council,08-07775,STAGECOACH EAST MIDLANDS,Transport & Travel,Bus,"2,233.66",0,"2,233.66",16-Nov-11,COMMUNITIES
Nottinghamshire County Council,08-07776,STAGECOACH EAST MIDLANDS,Transport & Travel,Bus,"1,228.50",0,"1,228.50",16-Nov-11,COMMUNITIES
Nottinghamshire County Council,08-07777,STAGECOACH EAST MIDLANDS,Transport & Travel,Bus,538.72,0,538.72,16-Nov-11,COMMUNITIES
Nottinghamshire County Council,08-07778,STAGECOACH EAST MIDLANDS,Transport & Travel,Bus,"1,584.44",0,"1,584.44",16-Nov-11,COMMUNITIES
Nottinghamshire County Council,08-07779,STAGECOACH EAST MIDLANDS,Transport & Travel,Bus,914.05,0,914.05,16-Nov-11,COMMUNITIES
Nottinghamshire County Council,08-07780,STAGECOACH EAST MIDLANDS,Transport & Travel,Bus,"1,310.05",0,"1,310.05",16-Nov-11,COMMUNITIES
Nottinghamshire County Council,08-07781,STAGECOACH EAST MIDLANDS,Transport & Travel,Bus,"1,603.00",0,"1,603.00",16-Nov-11,COMMUNITIES
Nottinghamshire County Council,08-07782,STAGECOACH EAST MIDLANDS,Transport & Travel,Bus,"6,480.24",0,"6,480.24",16-Nov-11,COMMUNITIES
Nottinghamshire County Council,08-07783,STAGECOACH EAST MIDLANDS,Transport & Travel,Bus,"1,516.06",0,"1,516.06",16-Nov-11,COMMUNITIES
Nottinghamshire County Council,08-07784,STAGECOACH EAST MIDLANDS,Transport & Travel,Bus,"3,071.90",0,"3,071.90",16-Nov-11,COMMUNITIES
Nottinghamshire County Council,08-07785,STAGECOACH EAST MIDLANDS,Transport & Travel,Bus,"2,130.18",0,"2,130.18",16-Nov-11,COMMUNITIES
Nottinghamshire County Council,08-07786,STAGECOACH EAST MIDLANDS,Transport & Travel,Bus,961.1,0,961.1,16-Nov-11,COMMUNITIES
Nottinghamshire County Council,08-07788,STAGECOACH EAST MIDLANDS,Transport & Travel,Bus,"14,902.68",0,"14,902.68",16-Nov-11,COMMUNITIES
Nottinghamshire County Council,08-07789,STAGECOACH EAST MIDLANDS,Transport & Travel,Bus,"1,195.00",0,"1,195.00",16-Nov-11,COMMUNITIES
Nottinghamshire County Council,08-07790,STAGECOACH EAST MIDLANDS,Transport & Travel,Bus,"13,582.14",0,"13,582.14",16-Nov-11,COMMUNITIES
Nottinghamshire County Council,08-07791,STAGECOACH EAST MIDLANDS,Transport & Travel,Bus,"5,888.22",0,"5,888.22",16-Nov-11,COMMUNITIES
Nottinghamshire County Council,08-07792,STAGECOACH EAST MIDLANDS,Transport & Travel,Bus,"7,052.40",0,"7,052.40",16-Nov-11,COMMUNITIES
Nottinghamshire County Council,08-07793,STAGECOACH EAST MIDLANDS,Transport & Travel,Bus,"2,344.16",0,"2,344.16",16-Nov-11,COMMUNITIES
Nottinghamshire County Council,08-07794,STAGECOACH EAST MIDLANDS,Transport & Travel,Bus,"1,016.95",0,"1,016.95",16-Nov-11,COMMUNITIES
Nottinghamshire County Council,08-07795,STAGECOACH EAST MIDLANDS,Transport & Travel,Bus,"3,250.00",0,"3,250.00",16-Nov-11,COMMUNITIES
Nottinghamshire County Council,08-07796,STAGECOACH EAST MIDLANDS,Transport & Travel,Bus,"4,550.00",0,"4,550.00",16-Nov-11,COMMUNITIES
Nottinghamshire County Council,08-07797,STAGECOACH EAST MIDLANDS,Transport & Travel,Bus,"3,250.00",0,"3,250.00",16-Nov-11,COMMUNITIES
Nottinghamshire County Council,08-07798,STAGECOACH EAST MIDLANDS,Transport & Travel,Bus,"10,010.00",0,"10,010.00",16-Nov-11,COMMUNITIES
Nottinghamshire County Council,08-07799,STAGECOACH EAST MIDLANDS,Transport & Travel,Bus,"1,153.68",0,"1,153.68",16-Nov-11,COMMUNITIES
Nottinghamshire County Council,08-07800,STAGECOACH EAST MIDLANDS,Transport & Travel,Bus,"2,184.00",0,"2,184.00",16-Nov-11,COMMUNITIES
Nottinghamshire County Council,08-07803,STAGECOACH EAST MIDLANDS,Transport & Travel,Bus,"8,096.50",0,"8,096.50",16-Nov-11,COMMUNITIES
Nottinghamshire County Council,08-07808,TIGER EUROPEAN,Transport & Travel,Bus,537.73,0,537.73,17-Nov-11,COMMUNITIES
Nottinghamshire County Council,08-07817,TRAVEL WRIGHT LTD,Transport & Travel,Travel Agencies and Booking,"7,250.88",0,"7,250.88",17-Nov-11,COMMUNITIES
Nottinghamshire County Council,08-07818,TRAVEL WRIGHT LTD,Transport & Travel,Travel Agencies and Booking,"16,480.88",0,"16,480.88",17-Nov-11,COMMUNITIES
Nottinghamshire County Council,08-07821,TRAVEL WRIGHT LTD,Transport & Travel,Travel Agencies and Booking,"7,720.56",0,"7,720.56",17-Nov-11,COMMUNITIES
Nottinghamshire County Council,08-07822,TRAVEL WRIGHT LTD,Transport & Travel,Travel Agencies and Booking,"1,092.00",0,"1,092.00",17-Nov-11,COMMUNITIES
Nottinghamshire County Council,08-07823,TRENT MOTOR TRACTION COMPANY LTD,Transport & Travel,Bus,"3,491.54",0,"3,491.54",16-Nov-11,COMMUNITIES
Nottinghamshire County Council,08-07824,TRENT MOTOR TRACTION COMPANY LTD,Transport & Travel,Bus,"3,065.14",0,"3,065.14",16-Nov-11,COMMUNITIES
Nottinghamshire County Council,08-07825,TRENT MOTOR TRACTION COMPANY LTD,Transport & Travel,Bus,"2,593.24",0,"2,593.24",16-Nov-11,COMMUNITIES
Nottinghamshire County Council,08-07826,TRENT MOTOR TRACTION COMPANY LTD,Transport & Travel,Bus,576.43,0,576.43,16-Nov-11,COMMUNITIES
Nottinghamshire County Council,08-07827,TRENT MOTOR TRACTION COMPANY LTD,Transport & Travel,Bus,"7,650.87",0,"7,650.87",16-Nov-11,COMMUNITIES
Nottinghamshire County Council,08-07828,TRENT MOTOR TRACTION COMPANY LTD,Transport & Travel,Bus,609.75,0,609.75,16-Nov-11,COMMUNITIES
Nottinghamshire County Council,08-07829,TRENT MOTOR TRACTION COMPANY LTD,Transport & Travel,Bus,"3,354.00",0,"3,354.00",16-Nov-11,COMMUNITIES
Nottinghamshire County Council,08-07830,TRENT MOTOR TRACTION COMPANY LTD,Transport & Travel,Bus,968,0,968,16-Nov-11,COMMUNITIES
Nottinghamshire County Council,08-07831,TRENT MOTOR TRACTION COMPANY LTD,Transport & Travel,Bus,"3,458.00",0,"3,458.00",16-Nov-11,COMMUNITIES
Nottinghamshire County Council,08-07832,TRENT MOTOR TRACTION COMPANY LTD,Transport & Travel,Bus,"3,941.86",0,"3,941.86",16-Nov-11,COMMUNITIES
Nottinghamshire County Council,08-07833,TRENT MOTOR TRACTION COMPANY LTD,Transport & Travel,Bus,690.82,0,690.82,16-Nov-11,COMMUNITIES
Nottinghamshire County Council,08-07834,TRENT MOTOR TRACTION COMPANY LTD,Transport & Travel,Bus,"3,518.06",0,"3,518.06",16-Nov-11,COMMUNITIES
Nottinghamshire County Council,08-07836,J C COACHES,Transport & Travel,Bus,298.31,0,298.31,17-Nov-11,COMMUNITIES
Nottinghamshire County Council,08-07843,SOAR VALLEY BUS,Transport & Travel,Bus,"1,172.11",0,"1,172.11",17-Nov-11,COMMUNITIES
Nottinghamshire County Council,08-07848,NOTTINGHAM CITY TRANSPORT LTD,Transport & Travel,Bus,"1,499.50",0,"1,499.50",16-Nov-11,COMMUNITIES
Nottinghamshire County Council,08-07849,NOTTINGHAM CITY TRANSPORT LTD,Transport & Travel,Bus,"3,804.92",0,"3,804.92",16-Nov-11,COMMUNITIES
Nottinghamshire County Council,08-07850,NOTTINGHAM CITY TRANSPORT LTD,Transport & Travel,Bus,119.85,0,119.85,16-Nov-11,COMMUNITIES
Nottinghamshire County Council,08-08481,PREMIERE TRAVEL LTD,Transport & Travel,Travel Agencies and Booking,"15,494.86",0,"15,494.86",17-Nov-11,COMMUNITIES
Nottinghamshire County Council,08-08482,PREMIERE TRAVEL LTD,Transport & Travel,Travel Agencies and Booking,"10,322.00",0,"10,322.00",17-Nov-11,COMMUNITIES
Nottinghamshire County Council,08-08483,PREMIERE TRAVEL LTD,Transport & Travel,Travel Agencies and Booking,"25,714.00",0,"25,714.00",17-Nov-11,COMMUNITIES
Nottinghamshire County Council,08-05694,PAYNE SECURITY,Soft Facilities Management,Security,280,0,280,09-Nov-11,COMMUNITIES
Nottinghamshire County Council,08-05694,PAYNE SECURITY,Soft Facilities Management,Security,430,0,430,09-Nov-11,COMMUNITIES
Nottinghamshire County Council,08-05694,PAYNE SECURITY,Soft Facilities Management,Security,458.64,0,458.64,09-Nov-11,COMMUNITIES
Nottinghamshire County Council,08-05694,PAYNE SECURITY,Soft Facilities Management,Security,60,0,60,09-Nov-11,COMMUNITIES
Nottinghamshire County Council,08-05694,PAYNE SECURITY,Soft Facilities Management,Security,9.5,0,9.5,09-Nov-11,COMMUNITIES
Nottinghamshire County Council,08-01365,MDV (MENTZ DATENVERARBEITUNG GMBH),ICT,Software,"32,817.25",0,"32,817.25",03-Nov-11,COMMUNITIES
Nottinghamshire County Council,08-00291,GK GROUP MANSFIELD,Transport & Travel,Motor Vehicles,-10,-2,-12,07-Nov-11,COMMUNITIES
Nottinghamshire County Council,08-01170,AUTO GLYM,Transport & Travel,Fleet Maintenance Services,373.18,0,373.18,02-Nov-11,COMMUNITIES
Nottinghamshire County Council,08-01170,AUTO GLYM,Transport & Travel,Fleet Maintenance Services,373.18,0,373.18,02-Nov-11,COMMUNITIES
Nottinghamshire County Council,08-01229,ENTERPRISE RENT-A-CAR LTD,Transport & Travel,Motor Vehicles,-10,-2,-12,02-Nov-11,COMMUNITIES
Nottinghamshire County Council,08-06813,GK GROUP MANSFIELD,Transport & Travel,Motor Vehicles,-10,-2,-12,16-Nov-11,COMMUNITIES
Nottinghamshire County Council,08-06814,ENTERPRISE RENT-A-CAR LTD,Transport & Travel,Motor Vehicles,-10,-2,-12,17-Nov-11,COMMUNITIES
Nottinghamshire County Council,08-08403,LIGHTHOUSE (UK) LTD                   ,TBC,TBC,"2,734.45",546.89,"3,281.34",18-Nov-11,COMMUNITIES
Nottinghamshire County Council,08-01160,GK GROUP MANSFIELD,Transport & Travel,Motor Vehicles,55,0,55,09-Nov-11,COMMUNITIES
Nottinghamshire County Council,08-01612,GK GROUP MANSFIELD,Transport & Travel,Motor Vehicles,55,0,55,09-Nov-11,COMMUNITIES
Nottinghamshire County Council,08-02077,KEY PERSONNEL (MIDLANDS) LTD,People,Recruitment,376.66,0,376.66,09-Nov-11,COMMUNITIES
Nottinghamshire County Council,08-02077,KEY PERSONNEL (MIDLANDS) LTD,People,Recruitment,376.66,0,376.66,09-Nov-11,COMMUNITIES
Nottinghamshire County Council,08-02077,KEY PERSONNEL (MIDLANDS) LTD,People,Recruitment,73.81,0,73.81,09-Nov-11,COMMUNITIES
Nottinghamshire County Council,08-02078,KEY PERSONNEL (MIDLANDS) LTD,People,Recruitment,376.66,0,376.66,09-Nov-11,COMMUNITIES
Nottinghamshire County Council,08-02078,KEY PERSONNEL (MIDLANDS) LTD,People,Recruitment,379.21,0,379.21,09-Nov-11,COMMUNITIES
Nottinghamshire County Council,08-02078,KEY PERSONNEL (MIDLANDS) LTD,People,Recruitment,376.66,0,376.66,09-Nov-11,COMMUNITIES
Nottinghamshire County Council,08-05696,KEY PERSONNEL (MIDLANDS) LTD,People,Recruitment,376.66,0,376.66,09-Nov-11,COMMUNITIES
Nottinghamshire County Council,08-05696,KEY PERSONNEL (MIDLANDS) LTD,People,Recruitment,381.75,0,381.75,09-Nov-11,COMMUNITIES
Nottinghamshire County Council,08-05696,KEY PERSONNEL (MIDLANDS) LTD,People,Recruitment,374.12,0,374.12,09-Nov-11,COMMUNITIES
Nottinghamshire County Council,08-07152,KEY PERSONNEL (MIDLANDS) LTD,People,Recruitment,"1,114.71",0,"1,114.71",16-Nov-11,COMMUNITIES
Nottinghamshire County Council,08-05521,LEX AUTOLEASE LTD,Transport & Travel,Motor Vehicles,187.29,0,187.29,14-Nov-11,COMMUNITIES
Nottinghamshire County Council,08-05521,LEX AUTOLEASE LTD,Transport & Travel,Motor Vehicles,182.63,0,182.63,14-Nov-11,COMMUNITIES
Nottinghamshire County Council,08-05521,LEX AUTOLEASE LTD,Transport & Travel,Motor Vehicles,177.57,35.51,213.08,14-Nov-11,COMMUNITIES
Nottinghamshire County Council,08-05521,LEX AUTOLEASE LTD,Transport & Travel,Motor Vehicles,190.37,38.07,228.44,14-Nov-11,COMMUNITIES
Nottinghamshire County Council,08-05522,LEX AUTOLEASE LTD,Transport & Travel,Motor Vehicles,"1,422.36",0,"1,422.36",09-Nov-11,COMMUNITIES
Nottinghamshire County Council,08-05522,LEX AUTOLEASE LTD,Transport & Travel,Motor Vehicles,"2,456.85",0,"2,456.85",09-Nov-11,COMMUNITIES
Nottinghamshire County Council,08-05522,LEX AUTOLEASE LTD,Transport & Travel,Motor Vehicles,"1,720.02",344,"2,064.02",09-Nov-11,COMMUNITIES
Nottinghamshire County Council,08-05522,LEX AUTOLEASE LTD,Transport & Travel,Motor Vehicles,"2,279.22",455.84,"2,735.06",09-Nov-11,COMMUNITIES
Nottinghamshire County Council,08-05593,ING CAR LEASE UK LTD,Transport & Travel,Motor Vehicles,"1,662.03",0,"1,662.03",09-Nov-11,COMMUNITIES
Nottinghamshire County Council,08-05593,ING CAR LEASE UK LTD,Transport & Travel,Motor Vehicles,"1,839.63",367.93,"2,207.56",09-Nov-11,COMMUNITIES
Nottinghamshire County Council,08-05635,AUTOMOTIVE LEASING,Transport & Travel,Motor Vehicles,"2,943.27",0,"2,943.27",09-Nov-11,COMMUNITIES
Nottinghamshire County Council,08-05635,AUTOMOTIVE LEASING,Transport & Travel,Motor Vehicles,"2,746.71",549.34,"3,296.05",09-Nov-11,COMMUNITIES
Nottinghamshire County Council,08-05757,RES TRACTORS,External Services (Highways & Culture),Construction Plant and Equipment,420,0,420,09-Nov-11,COMMUNITIES
Nottinghamshire County Council,08-06852,AUTOMOTIVE LEASING,Transport & Travel,Motor Vehicles,"3,017.40",603.48,"3,620.88",16-Nov-11,COMMUNITIES
Nottinghamshire County Council,08-06853,AUTOMOTIVE LEASING,Transport & Travel,Motor Vehicles,"3,017.40",603.48,"3,620.88",16-Nov-11,COMMUNITIES
Nottinghamshire County Council,08-00932,BUS SHELTERS LTD,Transport & Travel,Bus,"8,115.00",0,"8,115.00",01-Nov-11,COMMUNITIES
Nottinghamshire County Council,08-07893,SHELTER MAINTENANCE CO,Hard Facilities Management ,Building Construction Services,908,0,908,17-Nov-11,COMMUNITIES
Nottinghamshire County Council,08-00635,STAGECOACH EAST MIDLANDS,Transport & Travel,Bus,976.72,0,976.72,09-Nov-11,COMMUNITIES
Nottinghamshire County Council,08-01285,BT REDCARE,ICT,Telecommunications and Media,903,180.6,"1,083.60",04-Nov-11,COMMUNITIES
Nottinghamshire County Council,08-05642,BASSETLAW TOWN CENTRE PARTNERSHIP TRUS,TBC,TBC,"2,321.40",406.25,"2,727.65",09-Nov-11,COMMUNITIES
Nottinghamshire County Council,08-05642,BASSETLAW TOWN CENTRE PARTNERSHIP TRUS,TBC,TBC,"2,321.40",406.25,"2,727.65",09-Nov-11,COMMUNITIES
Nottinghamshire County Council,08-05642,BASSETLAW TOWN CENTRE PARTNERSHIP TRUS,TBC,TBC,"4,380.00",766.5,"5,146.50",09-Nov-11,COMMUNITIES
Nottinghamshire County Council,08-05643,BASSETLAW TOWN CENTRE PARTNERSHIP TRUS,TBC,TBC,"2,321.40",406.25,"2,727.65",09-Nov-11,COMMUNITIES
Nottinghamshire County Council,08-05643,BASSETLAW TOWN CENTRE PARTNERSHIP TRUS,TBC,TBC,"2,321.40",406.25,"2,727.65",09-Nov-11,COMMUNITIES
Nottinghamshire County Council,08-05643,BASSETLAW TOWN CENTRE PARTNERSHIP TRUS,TBC,TBC,"4,380.00",766.5,"5,146.50",09-Nov-11,COMMUNITIES
Nottinghamshire County Council,08-07914,REGION SERVICES LTD,ICT,Audio and Visual Equipment,"2,500.00",0,"2,500.00",17-Nov-11,COMMUNITIES
Nottinghamshire County Council,08-07891,SHELTER MAINTENANCE CO,Hard Facilities Management ,Building Construction Services,"2,460.78",0,"2,460.78",17-Nov-11,COMMUNITIES
Nottinghamshire County Council,08-07892,SHELTER MAINTENANCE CO,Hard Facilities Management ,Building Construction Services,"2,456.37",0,"2,456.37",17-Nov-11,COMMUNITIES
Nottinghamshire County Council,08-00003,RURAL COMMUNITY ACTION GROUP,External Services (Highways & Culture),Organisations and Clubs,"-35,586.00",0,"-35,586.00",09-Nov-11,COMMUNITIES
Nottinghamshire County Council,08-00190,NORTHERN RECRUITMENT GROUP,People,Recruitment,451.4,0,451.4,01-Nov-11,COMMUNITIES
Nottinghamshire County Council,08-00368,RURAL COMMUNITY ACTION GROUP,External Services (Highways & Culture),Organisations and Clubs,"20,000.00",0,"20,000.00",09-Nov-11,COMMUNITIES
Nottinghamshire County Council,08-00369,RURAL COMMUNITY ACTION GROUP,External Services (Highways & Culture),Organisations and Clubs,"-20,000.00",0,"-20,000.00",09-Nov-11,COMMUNITIES
Nottinghamshire County Council,08-00504,NORTHERN RECRUITMENT GROUP,People,Recruitment,451.4,0,451.4,09-Nov-11,COMMUNITIES
Nottinghamshire County Council,08-00505,NORTHERN RECRUITMENT GROUP,People,Recruitment,451.4,0,451.4,09-Nov-11,COMMUNITIES
Nottinghamshire County Council,08-00719,RURAL COMMUNITY ACTION GROUP,External Services (Highways & Culture),Organisations and Clubs,"8,896.50",0,"8,896.50",09-Nov-11,COMMUNITIES
Nottinghamshire County Council,08-00726,NORTHERN RECRUITMENT GROUP,People,Recruitment,451.4,0,451.4,09-Nov-11,COMMUNITIES
Nottinghamshire County Council,08-00728,NORTHERN RECRUITMENT GROUP,People,Recruitment,451.4,0,451.4,09-Nov-11,COMMUNITIES
Nottinghamshire County Council,08-01884,MASTERNAUT (UK) LTD,Transport & Travel,Fleet Maintenance Services,-600,0,-600,07-Nov-11,COMMUNITIES
Nottinghamshire County Council,08-01885,MASTERNAUT (UK) LTD,Transport & Travel,Fleet Maintenance Services,600,0,600,07-Nov-11,COMMUNITIES
Nottinghamshire County Council,08-01885,MASTERNAUT (UK) LTD,Transport & Travel,Fleet Maintenance Services,600,0,600,07-Nov-11,COMMUNITIES
Nottinghamshire County Council,08-05990,STAR INDEPENDENT CONSULTANTS LTD,Professional Services,Consultancy,"6,794.00",0,"6,794.00",11-Nov-11,COMMUNITIES
Nottinghamshire County Council,08-05990,STAR INDEPENDENT CONSULTANTS LTD,Professional Services,Consultancy,"-1,698.50",0,"-1,698.50",11-Nov-11,COMMUNITIES
Nottinghamshire County Council,08-06661,NORTHERN RECRUITMENT GROUP,People,Recruitment,451.4,0,451.4,15-Nov-11,COMMUNITIES
Nottinghamshire County Council,08-06662,NORTHERN RECRUITMENT GROUP,People,Recruitment,451.4,0,451.4,15-Nov-11,COMMUNITIES
Nottinghamshire County Council,08-08996,STAR INDEPENDENT CONSULTANTS LTD,Professional Services,Consultancy,"4,443.75",888.75,"5,332.50",18-Nov-11,COMMUNITIES
Nottinghamshire County Council,08-09127,TRAPEZE SOFTWARE GROUP,ICT,Software,"3,423.50",684.7,"4,108.20",18-Nov-11,COMMUNITIES
Nottinghamshire County Council,08-05955,NOAK LTD,Professional Services,Professional Engineering Services,"22,550.00",0,"22,550.00",10-Nov-11,COMMUNITIES
Nottinghamshire County Council,08-08993,THE INDEPENDENT CHOICE,Professional Services,Writing and Translations,558.31,111.66,669.97,18-Nov-11,COMMUNITIES
Nottinghamshire County Council,08-00963,WEMO-TEC UK LTD                       ,TBC,TBC,720,0,720,01-Nov-11,COMMUNITIES
Nottinghamshire County Council,08-00963,WEMO-TEC UK LTD                       ,TBC,TBC,360,0,360,01-Nov-11,COMMUNITIES
Nottinghamshire County Council,08-07916,BRITISH WATERWAYS,Hard Facilities Management ,Utilities,980,0,980,17-Nov-11,COMMUNITIES
Nottinghamshire County Council,08-07942,NETWORK RAIL,Transport & Travel,Rail and Air Travel,"1,230.45",0,"1,230.45",17-Nov-11,COMMUNITIES
Nottinghamshire County Council,08-05700,NORRIS CONTRACTING LTD,Hard Facilities Management ,Building Construction Services,"11,000.00",0,"11,000.00",09-Nov-11,COMMUNITIES
Nottinghamshire County Council,08-07141,E M D D LTD,Hard Facilities Management ,Tools and General Machinery,"1,000.00",0,"1,000.00",17-Nov-11,COMMUNITIES
Nottinghamshire County Council,08-01910,MESSAGEMAKER DISPLAYS LTD,Professional Services,Marketing and Distribution,"1,983.00",0,"1,983.00",07-Nov-11,COMMUNITIES
Nottinghamshire County Council,08-07318,MESSAGEMAKER DISPLAYS LTD,Professional Services,Marketing and Distribution,"5,148.00",0,"5,148.00",16-Nov-11,COMMUNITIES
Nottinghamshire County Council,08-05725,H C DOUGHTY AND SONS,Hard Facilities Management ,Carpentry Services,"1,950.00",0,"1,950.00",09-Nov-11,COMMUNITIES
Nottinghamshire County Council,08-05725,H C DOUGHTY AND SONS,Hard Facilities Management ,Carpentry Services,"1,299.30",0,"1,299.30",09-Nov-11,COMMUNITIES
Nottinghamshire County Council,08-05725,H C DOUGHTY AND SONS,Hard Facilities Management ,Carpentry Services,385,0,385,09-Nov-11,COMMUNITIES
Nottinghamshire County Council,08-05725,H C DOUGHTY AND SONS,Hard Facilities Management ,Carpentry Services,903.4,0,903.4,09-Nov-11,COMMUNITIES
Nottinghamshire County Council,08-05725,H C DOUGHTY AND SONS,Hard Facilities Management ,Carpentry Services,407,0,407,09-Nov-11,COMMUNITIES
Nottinghamshire County Council,08-07876,CENTREWIRE LTD,Hard Facilities Management ,Window and Door Installation Services,508,0,508,17-Nov-11,COMMUNITIES
Nottinghamshire County Council,08-07876,CENTREWIRE LTD,Hard Facilities Management ,Window and Door Installation Services,960,0,960,17-Nov-11,COMMUNITIES
Nottinghamshire County Council,08-07876,CENTREWIRE LTD,Hard Facilities Management ,Window and Door Installation Services,704,0,704,17-Nov-11,COMMUNITIES
Nottinghamshire County Council,08-07883,R P HUNT SERVICES,External Services (Highways & Culture),Manufacturing Machinery,120,0,120,17-Nov-11,COMMUNITIES
Nottinghamshire County Council,08-07883,R P HUNT SERVICES,External Services (Highways & Culture),Manufacturing Machinery,520,0,520,17-Nov-11,COMMUNITIES
Nottinghamshire County Council,08-07883,R P HUNT SERVICES,External Services (Highways & Culture),Manufacturing Machinery,40,0,40,17-Nov-11,COMMUNITIES
Nottinghamshire County Council,08-02114,COMMERCIAL SURFACE SOLUTIONS,Soft Facilities Management,Cleaning Equipment and Janitorial Supplies,"3,064.00",0,"3,064.00",09-Nov-11,COMMUNITIES
Nottinghamshire County Council,08-01400,COMMERCIAL SURFACE SOLUTIONS,Soft Facilities Management,Cleaning Equipment and Janitorial Supplies,960,0,960,03-Nov-11,COMMUNITIES
Nottinghamshire County Council,08-01400,COMMERCIAL SURFACE SOLUTIONS,Soft Facilities Management,Cleaning Equipment and Janitorial Supplies,925,0,925,03-Nov-11,COMMUNITIES
Nottinghamshire County Council,08-01400,COMMERCIAL SURFACE SOLUTIONS,Soft Facilities Management,Cleaning Equipment and Janitorial Supplies,"2,720.00",0,"2,720.00",03-Nov-11,COMMUNITIES
Nottinghamshire County Council,08-01401,COMMERCIAL SURFACE SOLUTIONS,Soft Facilities Management,Cleaning Equipment and Janitorial Supplies,"3,053.00",0,"3,053.00",03-Nov-11,COMMUNITIES
Nottinghamshire County Council,08-01402,COMMERCIAL SURFACE SOLUTIONS,Soft Facilities Management,Cleaning Equipment and Janitorial Supplies,675,0,675,03-Nov-11,COMMUNITIES
Nottinghamshire County Council,08-01402,COMMERCIAL SURFACE SOLUTIONS,Soft Facilities Management,Cleaning Equipment and Janitorial Supplies,602,0,602,03-Nov-11,COMMUNITIES
Nottinghamshire County Council,08-01402,COMMERCIAL SURFACE SOLUTIONS,Soft Facilities Management,Cleaning Equipment and Janitorial Supplies,"1,420.00",0,"1,420.00",03-Nov-11,COMMUNITIES
Nottinghamshire County Council,08-02109,TRAFFIC TECHNOLOGY LTD,External Services (Highways & Culture),Highways and Works,"10,640.00",0,"10,640.00",10-Nov-11,COMMUNITIES
Nottinghamshire County Council,08-02109,TRAFFIC TECHNOLOGY LTD,External Services (Highways & Culture),Highways and Works,"3,240.00",0,"3,240.00",10-Nov-11,COMMUNITIES
Nottinghamshire County Council,08-02109,TRAFFIC TECHNOLOGY LTD,External Services (Highways & Culture),Highways and Works,38.4,0,38.4,10-Nov-11,COMMUNITIES
Nottinghamshire County Council,08-02109,TRAFFIC TECHNOLOGY LTD,External Services (Highways & Culture),Highways and Works,700,0,700,10-Nov-11,COMMUNITIES
Nottinghamshire County Council,08-07961,TRAFFIC TECHNOLOGY LTD,External Services (Highways & Culture),Highways and Works,"2,894.60",0,"2,894.60",17-Nov-11,COMMUNITIES
Nottinghamshire County Council,08-07962,TRAFFIC TECHNOLOGY LTD,External Services (Highways & Culture),Highways and Works,"15,051.00",0,"15,051.00",17-Nov-11,COMMUNITIES
Nottinghamshire County Council,08-00561,MALCOLM LANE AND SON LTD,Hard Facilities Management ,Building and Construction Supplies,300,60,360,09-Nov-11,COMMUNITIES
Nottinghamshire County Council,08-01910,MESSAGEMAKER DISPLAYS LTD,Professional Services,Marketing and Distribution,"1,983.00",0,"1,983.00",07-Nov-11,COMMUNITIES
Nottinghamshire County Council,08-07859,E M D D LTD,Hard Facilities Management ,Tools and General Machinery,"21,480.00",0,"21,480.00",17-Nov-11,COMMUNITIES
Nottinghamshire County Council,08-07552,TARMAC CENTRAL LTD,External Services (Highways & Culture),Highways and Works,983.04,0,983.04,17-Nov-11,COMMUNITIES
Nottinghamshire County Council,08-08579,E M D D LTD,Hard Facilities Management ,Tools and General Machinery,"1,024.00",0,"1,024.00",17-Nov-11,COMMUNITIES
Nottinghamshire County Council,08-07552,TARMAC CENTRAL LTD,External Services (Highways & Culture),Highways and Works,370.99,0,370.99,17-Nov-11,COMMUNITIES
Nottinghamshire County Council,08-07552,TARMAC CENTRAL LTD,External Services (Highways & Culture),Highways and Works,"8,804.42",0,"8,804.42",17-Nov-11,COMMUNITIES
Nottinghamshire County Council,08-07552,TARMAC CENTRAL LTD,External Services (Highways & Culture),Highways and Works,129.86,0,129.86,17-Nov-11,COMMUNITIES
Nottinghamshire County Council,08-07552,TARMAC CENTRAL LTD,External Services (Highways & Culture),Highways and Works,786.21,0,786.21,17-Nov-11,COMMUNITIES
Nottinghamshire County Council,08-07552,TARMAC CENTRAL LTD,External Services (Highways & Culture),Highways and Works,125.82,0,125.82,17-Nov-11,COMMUNITIES
Nottinghamshire County Council,08-07552,TARMAC CENTRAL LTD,External Services (Highways & Culture),Highways and Works,173.8,0,173.8,17-Nov-11,COMMUNITIES
Nottinghamshire County Council,08-02090,SIEMENS PLC,Hard Facilities Management ,Electrical Systems and Lighting,"3,878.00",0,"3,878.00",09-Nov-11,COMMUNITIES
Nottinghamshire County Council,08-02091,SIEMENS PLC,Hard Facilities Management ,Electrical Systems and Lighting,"3,878.00",0,"3,878.00",09-Nov-11,COMMUNITIES
Nottinghamshire County Council,08-02092,SIEMENS PLC,Hard Facilities Management ,Electrical Systems and Lighting,"3,878.00",0,"3,878.00",09-Nov-11,COMMUNITIES
Nottinghamshire County Council,08-02093,SIEMENS PLC,Hard Facilities Management ,Electrical Systems and Lighting,477,0,477,09-Nov-11,COMMUNITIES
Nottinghamshire County Council,08-02088,SHELTER MAINTENANCE CO,Hard Facilities Management ,Building Construction Services,420,0,420,09-Nov-11,COMMUNITIES
Nottinghamshire County Council,08-02088,SHELTER MAINTENANCE CO,Hard Facilities Management ,Building Construction Services,420,0,420,09-Nov-11,COMMUNITIES
Nottinghamshire County Council,08-01131,BUS SHELTERS LTD,Transport & Travel,Bus,767.38,0,767.38,02-Nov-11,COMMUNITIES
Nottinghamshire County Council,08-01131,BUS SHELTERS LTD,Transport & Travel,Bus,943.43,0,943.43,02-Nov-11,COMMUNITIES
Nottinghamshire County Council,08-01131,BUS SHELTERS LTD,Transport & Travel,Bus,578.43,0,578.43,02-Nov-11,COMMUNITIES
Nottinghamshire County Council,08-07183,BUS SHELTERS LTD,Transport & Travel,Bus,"2,218.12",0,"2,218.12",17-Nov-11,COMMUNITIES
Nottinghamshire County Council,08-07184,BUS SHELTERS LTD,Transport & Travel,Bus,"2,373.73",0,"2,373.73",17-Nov-11,COMMUNITIES
Nottinghamshire County Council,08-09000,SHELTER MAINTENANCE CO,Hard Facilities Management ,Building Construction Services,586,117.2,703.2,18-Nov-11,COMMUNITIES
Nottinghamshire County Council,08-01583,EXTERNITURE LTD,External Services (Highways & Culture),Highways and Works,"11,475.00",0,"11,475.00",09-Nov-11,COMMUNITIES
Nottinghamshire County Council,08-01583,EXTERNITURE LTD,External Services (Highways & Culture),Highways and Works,"1,275.00",0,"1,275.00",09-Nov-11,COMMUNITIES
Nottinghamshire County Council,08-01583,EXTERNITURE LTD,External Services (Highways & Culture),Highways and Works,"1,498.50",0,"1,498.50",09-Nov-11,COMMUNITIES
Nottinghamshire County Council,08-01583,EXTERNITURE LTD,External Services (Highways & Culture),Highways and Works,"1,878.00",0,"1,878.00",09-Nov-11,COMMUNITIES
Nottinghamshire County Council,08-01583,EXTERNITURE LTD,External Services (Highways & Culture),Highways and Works,24,0,24,09-Nov-11,COMMUNITIES
Nottinghamshire County Council,08-01583,EXTERNITURE LTD,External Services (Highways & Culture),Highways and Works,"2,440.00",0,"2,440.00",09-Nov-11,COMMUNITIES
Nottinghamshire County Council,08-01583,EXTERNITURE LTD,External Services (Highways & Culture),Highways and Works,"2,185.50",0,"2,185.50",09-Nov-11,COMMUNITIES
Nottinghamshire County Council,08-01583,EXTERNITURE LTD,External Services (Highways & Culture),Highways and Works,"1,162.00",0,"1,162.00",09-Nov-11,COMMUNITIES
Nottinghamshire County Council,08-01583,EXTERNITURE LTD,External Services (Highways & Culture),Highways and Works,58,0,58,09-Nov-11,COMMUNITIES
Nottinghamshire County Council,08-01583,EXTERNITURE LTD,External Services (Highways & Culture),Highways and Works,446.6,0,446.6,09-Nov-11,COMMUNITIES
Nottinghamshire County Council,08-01583,EXTERNITURE LTD,External Services (Highways & Culture),Highways and Works,174,0,174,09-Nov-11,COMMUNITIES
Nottinghamshire County Council,08-01583,EXTERNITURE LTD,External Services (Highways & Culture),Highways and Works,425,0,425,09-Nov-11,COMMUNITIES
Nottinghamshire County Council,08-01583,EXTERNITURE LTD,External Services (Highways & Culture),Highways and Works,"-2,304.16",0,"-2,304.16",09-Nov-11,COMMUNITIES
Nottinghamshire County Council,08-02094,SIEMENS PLC,Hard Facilities Management ,Electrical Systems and Lighting,"7,691.60",0,"7,691.60",09-Nov-11,COMMUNITIES
Nottinghamshire County Council,08-02094,SIEMENS PLC,Hard Facilities Management ,Electrical Systems and Lighting,"-6,162.00",0,"-6,162.00",09-Nov-11,COMMUNITIES
Nottinghamshire County Council,08-07226,JBA CONSULTING,Professional Services,Consultancy,"3,629.00",0,"3,629.00",17-Nov-11,COMMUNITIES
Nottinghamshire County Council,08-07227,JBA CONSULTING,Professional Services,Consultancy,"1,786.70",0,"1,786.70",17-Nov-11,COMMUNITIES
Nottinghamshire County Council,08-01725,ECON GROUP LTD,External Services (Highways & Culture),Agricultural and Forestry and Landscape Machinery and Equipment,"4,069.76",813.95,"4,883.71",04-Nov-11,COMMUNITIES
Nottinghamshire County Council,08-01726,ECON GROUP LTD,External Services (Highways & Culture),Agricultural and Forestry and Landscape Machinery and Equipment,"14,249.80","2,849.96","17,099.76",04-Nov-11,COMMUNITIES
Nottinghamshire County Council,08-07359,ECON GROUP LTD,External Services (Highways & Culture),Agricultural and Forestry and Landscape Machinery and Equipment,"14,249.80","2,849.96","17,099.76",15-Nov-11,COMMUNITIES
Nottinghamshire County Council,08-01726,ECON GROUP LTD,External Services (Highways & Culture),Agricultural and Forestry and Landscape Machinery and Equipment,"14,249.79","2,849.96","17,099.75",04-Nov-11,COMMUNITIES
Nottinghamshire County Council,08-07359,ECON GROUP LTD,External Services (Highways & Culture),Agricultural and Forestry and Landscape Machinery and Equipment,"14,249.79","2,849.96","17,099.75",15-Nov-11,COMMUNITIES
Nottinghamshire County Council,08-01612,GK GROUP MANSFIELD,Transport & Travel,Motor Vehicles,"10,984.87",0,"10,984.87",09-Nov-11,COMMUNITIES
Nottinghamshire County Council,08-01612,GK GROUP MANSFIELD,Transport & Travel,Motor Vehicles,32,0,32,09-Nov-11,COMMUNITIES
Nottinghamshire County Council,08-01612,GK GROUP MANSFIELD,Transport & Travel,Motor Vehicles,"-1,997.25",0,"-1,997.25",09-Nov-11,COMMUNITIES
Nottinghamshire County Council,08-01612,GK GROUP MANSFIELD,Transport & Travel,Motor Vehicles,15,0,15,09-Nov-11,COMMUNITIES
Nottinghamshire County Council,08-01612,GK GROUP MANSFIELD,Transport & Travel,Motor Vehicles,40,0,40,09-Nov-11,COMMUNITIES
Nottinghamshire County Council,08-09196,INCHCAPE TOYOTA LEXUS,Transport & Travel,Motor Vehicles,55,0,55,18-Nov-11,COMMUNITIES
Nottinghamshire County Council,08-09196,INCHCAPE TOYOTA LEXUS,Transport & Travel,Motor Vehicles,"17,470.70","3,494.14","20,964.84",18-Nov-11,COMMUNITIES
Nottinghamshire County Council,08-01160,GK GROUP MANSFIELD,Transport & Travel,Motor Vehicles,"10,984.87",0,"10,984.87",09-Nov-11,COMMUNITIES
Nottinghamshire County Council,08-01160,GK GROUP MANSFIELD,Transport & Travel,Motor Vehicles,32,0,32,09-Nov-11,COMMUNITIES
Nottinghamshire County Council,08-01160,GK GROUP MANSFIELD,Transport & Travel,Motor Vehicles,"-1,997.25",0,"-1,997.25",09-Nov-11,COMMUNITIES
Nottinghamshire County Council,08-01160,GK GROUP MANSFIELD,Transport & Travel,Motor Vehicles,15,0,15,09-Nov-11,COMMUNITIES
Nottinghamshire County Council,08-01160,GK GROUP MANSFIELD,Transport & Travel,Motor Vehicles,40,0,40,09-Nov-11,COMMUNITIES
Nottinghamshire County Council,08-05472,INTERSERVE PROJECT SERVICES LTD,Professional Services,Professional Engineering Services,"676,376.62","135,275.32","811,651.94",09-Nov-11,COMMUNITIES
Nottinghamshire County Council,08-07943,NETWORK RAIL,Transport & Travel,Rail and Air Travel,"1,222.94",0,"1,222.94",17-Nov-11,COMMUNITIES
Nottinghamshire County Council,08-08588,P & J PLANT SERVICES LTD,TBC,TBC,480,0,480,18-Nov-11,COMMUNITIES
Nottinghamshire County Council,08-08588,P & J PLANT SERVICES LTD,TBC,TBC,640,0,640,18-Nov-11,COMMUNITIES
Nottinghamshire County Council,08-01915,KIERSON LTD                           ,TBC,TBC,"3,800.00",0,"3,800.00",07-Nov-11,COMMUNITIES
Nottinghamshire County Council,08-00756,CANALSIDE HERITAGE CENTRE             ,TBC,TBC,"17,500.00",0,"17,500.00",01-Nov-11,COMMUNITIES
Nottinghamshire County Council,08-07214,MARMAX PRODUCTS LTD,Hard Facilities Management ,Building and Construction Supplies,424,0,424,17-Nov-11,COMMUNITIES
Nottinghamshire County Council,08-07214,MARMAX PRODUCTS LTD,Hard Facilities Management ,Building and Construction Supplies,282,0,282,17-Nov-11,COMMUNITIES
Nottinghamshire County Council,08-07214,MARMAX PRODUCTS LTD,Hard Facilities Management ,Building and Construction Supplies,40,0,40,17-Nov-11,COMMUNITIES
Nottinghamshire County Council,08-05560,DIAN HALL CONSERVATION,Professional Services,Professional Engineering Services,"1,950.00",0,"1,950.00",09-Nov-11,COMMUNITIES
Nottinghamshire County Council,08-08107,CONSERVATION BY DESIGN LTD            ,TBC,TBC,504,0,504,17-Nov-11,COMMUNITIES
Nottinghamshire County Council,08-08107,CONSERVATION BY DESIGN LTD            ,TBC,TBC,50,0,50,17-Nov-11,COMMUNITIES
Nottinghamshire County Council,08-01120,E M E C ECOLOGICAL CONSULTANTS,Soft Facilities Management,Environmental Services,280,0,280,02-Nov-11,COMMUNITIES
Nottinghamshire County Council,08-01120,E M E C ECOLOGICAL CONSULTANTS,Soft Facilities Management,Environmental Services,960,0,960,02-Nov-11,COMMUNITIES
Nottinghamshire County Council,08-01120,E M E C ECOLOGICAL CONSULTANTS,Soft Facilities Management,Environmental Services,800,0,800,02-Nov-11,COMMUNITIES
Nottinghamshire County Council,08-01120,E M E C ECOLOGICAL CONSULTANTS,Soft Facilities Management,Environmental Services,125,0,125,02-Nov-11,COMMUNITIES
Nottinghamshire County Council,08-01120,E M E C ECOLOGICAL CONSULTANTS,Soft Facilities Management,Environmental Services,50,0,50,02-Nov-11,COMMUNITIES
Nottinghamshire County Council,08-01120,E M E C ECOLOGICAL CONSULTANTS,Soft Facilities Management,Environmental Services,180,0,180,02-Nov-11,COMMUNITIES
Nottinghamshire County Council,08-07185,WILLY ALBANS AND SONS,Hard Facilities Management ,Facilities Maintenance and Repair,"3,346.00",0,"3,346.00",17-Nov-11,COMMUNITIES
Nottinghamshire County Council,08-07480,WERNICK HIRE LTD,External Services (Highways & Culture),Construction Plant and Equipment,125,25,150,17-Nov-11,COMMUNITIES
Nottinghamshire County Council,08-07480,WERNICK HIRE LTD,External Services (Highways & Culture),Construction Plant and Equipment,950,190,"1,140.00",17-Nov-11,COMMUNITIES
Nottinghamshire County Council,08-07857,J DEVOS (NEWARK) LTD,Hard Facilities Management ,Building and Construction Supplies,"2,700.00",0,"2,700.00",17-Nov-11,COMMUNITIES
Nottinghamshire County Council,08-09038,PRE-CONSTRUCT ARCHAEOLOGY,Hard Facilities Management ,Building Construction Services,"3,150.00",630,"3,780.00",18-Nov-11,COMMUNITIES
Nottinghamshire County Council,08-07983,BONSERS NOTTINGHAM LTD,Hard Facilities Management ,Building Construction Services,609,0,609,17-Nov-11,COMMUNITIES
Nottinghamshire County Council,08-05743,SEC CIVIL ENGINEERING LTD,Professional Services,Professional Engineering Services,700,0,700,09-Nov-11,COMMUNITIES
Nottinghamshire County Council,08-09037,HORIZON LANDSCAPES LTD,External Services (Highways & Culture),Farming Forestry and Wildlife Services,"1,505.00",301,"1,806.00",18-Nov-11,COMMUNITIES
Nottinghamshire County Council,08-07973,GLASDON UK LTD,Soft Facilities Management,Cleaning Equipment and Janitorial Supplies,"1,088.88",0,"1,088.88",17-Nov-11,COMMUNITIES
Nottinghamshire County Council,08-05758,MELLORS PLANT HIRE,TBC,TBC,585,0,585,09-Nov-11,COMMUNITIES
Nottinghamshire County Council,08-05759,MELLORS PLANT HIRE,TBC,TBC,"23,970.00",0,"23,970.00",09-Nov-11,COMMUNITIES
Nottinghamshire County Council,08-00563,MALCOLM LANE AND SON LTD,Hard Facilities Management ,Building and Construction Supplies,625,125,750,09-Nov-11,COMMUNITIES
Nottinghamshire County Council,08-00562,MALCOLM LANE AND SON LTD,Hard Facilities Management ,Building and Construction Supplies,625,125,750,09-Nov-11,COMMUNITIES
Nottinghamshire County Council,08-00556,MALCOLM LANE AND SON LTD,Hard Facilities Management ,Building and Construction Supplies,190,38,228,09-Nov-11,COMMUNITIES
Nottinghamshire County Council,08-00556,MALCOLM LANE AND SON LTD,Hard Facilities Management ,Building and Construction Supplies,"1,087.00",217.4,"1,304.40",09-Nov-11,COMMUNITIES
Nottinghamshire County Council,08-00557,MALCOLM LANE AND SON LTD,Hard Facilities Management ,Building and Construction Supplies,360,72,432,09-Nov-11,COMMUNITIES
Nottinghamshire County Council,08-00557,MALCOLM LANE AND SON LTD,Hard Facilities Management ,Building and Construction Supplies,"9,240.00","1,848.00","11,088.00",09-Nov-11,COMMUNITIES
Nottinghamshire County Council,08-00558,MALCOLM LANE AND SON LTD,Hard Facilities Management ,Building and Construction Supplies,150,30,180,09-Nov-11,COMMUNITIES
Nottinghamshire County Council,08-00558,MALCOLM LANE AND SON LTD,Hard Facilities Management ,Building and Construction Supplies,690,138,828,09-Nov-11,COMMUNITIES
Nottinghamshire County Council,08-00035,RURAL COMMUNITY ACTION GROUP,External Services (Highways & Culture),Organisations and Clubs,"1,000.00",0,"1,000.00",09-Nov-11,COMMUNITIES
Nottinghamshire County Council,08-00035,RURAL COMMUNITY ACTION GROUP,External Services (Highways & Culture),Organisations and Clubs,"3,000.00",0,"3,000.00",09-Nov-11,COMMUNITIES
Nottinghamshire County Council,08-00035,RURAL COMMUNITY ACTION GROUP,External Services (Highways & Culture),Organisations and Clubs,"3,552.50",0,"3,552.50",09-Nov-11,COMMUNITIES
Nottinghamshire County Council,08-00032,RURAL COMMUNITY ACTION GROUP,External Services (Highways & Culture),Organisations and Clubs,"2,438.90",426.81,"2,865.71",09-Nov-11,COMMUNITIES
Nottinghamshire County Council,08-00031,RURAL COMMUNITY ACTION GROUP,External Services (Highways & Culture),Organisations and Clubs,"3,950.00",0,"3,950.00",09-Nov-11,COMMUNITIES
Nottinghamshire County Council,08-00033,RURAL COMMUNITY ACTION GROUP,External Services (Highways & Culture),Organisations and Clubs,"-3,950.00",-691.25,"-4,641.25",09-Nov-11,COMMUNITIES
Nottinghamshire County Council,08-00215,RURAL COMMUNITY ACTION GROUP,External Services (Highways & Culture),Organisations and Clubs,610,0,610,09-Nov-11,COMMUNITIES
Nottinghamshire County Council,08-09029,CALEDONIA PLAY                        ,TBC,TBC,"41,526.50","8,305.30","49,831.80",18-Nov-11,COMMUNITIES
Nottinghamshire County Council,08-05706,BROXAP AND CORBY LTD,Hard Facilities Management ,Structural Steel Erection Services,"1,230.00",0,"1,230.00",10-Nov-11,COMMUNITIES
Nottinghamshire County Council,08-05706,BROXAP AND CORBY LTD,Hard Facilities Management ,Structural Steel Erection Services,142,0,142,10-Nov-11,COMMUNITIES
Nottinghamshire County Council,08-09036,HORIZON LANDSCAPES LTD,External Services (Highways & Culture),Farming Forestry and Wildlife Services,905,181,"1,086.00",18-Nov-11,COMMUNITIES
Nottinghamshire County Council,08-00559,MALCOLM LANE AND SON LTD,Hard Facilities Management ,Building and Construction Supplies,360,72,432,09-Nov-11,COMMUNITIES
Nottinghamshire County Council,08-00559,MALCOLM LANE AND SON LTD,Hard Facilities Management ,Building and Construction Supplies,"10,360.00","2,072.00","12,432.00",09-Nov-11,COMMUNITIES
Nottinghamshire County Council,08-00560,MALCOLM LANE AND SON LTD,Hard Facilities Management ,Building and Construction Supplies,180,36,216,09-Nov-11,COMMUNITIES
Nottinghamshire County Council,08-00560,MALCOLM LANE AND SON LTD,Hard Facilities Management ,Building and Construction Supplies,"3,580.00",716,"4,296.00",09-Nov-11,COMMUNITIES
Nottinghamshire County Council,08-00561,MALCOLM LANE AND SON LTD,Hard Facilities Management ,Building and Construction Supplies,"2,055.00",411,"2,466.00",09-Nov-11,COMMUNITIES
Nottinghamshire County Council,08-01399,CENTRELINE ARCHITECTURAL SCULPTURE,External Services (Highways & Culture),Arts and Crafts,"3,340.00",0,"3,340.00",03-Nov-11,COMMUNITIES
Nottinghamshire County Council,08-01399,CENTRELINE ARCHITECTURAL SCULPTURE,External Services (Highways & Culture),Arts and Crafts,700,0,700,03-Nov-11,COMMUNITIES
Nottinghamshire County Council,08-07886,E M E C ECOLOGICAL CONSULTANTS,Soft Facilities Management,Environmental Services,300,0,300,17-Nov-11,COMMUNITIES
Nottinghamshire County Council,08-07886,E M E C ECOLOGICAL CONSULTANTS,Soft Facilities Management,Environmental Services,180,0,180,17-Nov-11,COMMUNITIES
Nottinghamshire County Council,08-07886,E M E C ECOLOGICAL CONSULTANTS,Soft Facilities Management,Environmental Services,"1,170.00",0,"1,170.00",17-Nov-11,COMMUNITIES
Nottinghamshire County Council,08-07886,E M E C ECOLOGICAL CONSULTANTS,Soft Facilities Management,Environmental Services,640,0,640,17-Nov-11,COMMUNITIES
Nottinghamshire County Council,08-07886,E M E C ECOLOGICAL CONSULTANTS,Soft Facilities Management,Environmental Services,70,0,70,17-Nov-11,COMMUNITIES
Nottinghamshire County Council,08-05714,AQUASCIENCE,Soft Facilities Management,Scrap and Waste Materials,880,0,880,15-Nov-11,COMMUNITIES
Nottinghamshire County Council,08-07398,G F TOMLINSON BUILDING LTD,Hard Facilities Management ,Building and Construction Supplies,"17,693.97","3,538.79","21,232.76",16-Nov-11,RESOURCES
Nottinghamshire County Council,08-07177,SIEMENS PLC,Hard Facilities Management ,Electrical Systems and Lighting,"5,438.00",0,"5,438.00",17-Nov-11,COMMUNITIES
Nottinghamshire County Council,08-07900,SIEMENS PLC,Hard Facilities Management ,Electrical Systems and Lighting,"3,878.00",0,"3,878.00",17-Nov-11,COMMUNITIES
Nottinghamshire County Council,08-07901,SIEMENS PLC,Hard Facilities Management ,Electrical Systems and Lighting,"5,438.00",0,"5,438.00",17-Nov-11,COMMUNITIES
Nottinghamshire County Council,08-07902,SIEMENS PLC,Hard Facilities Management ,Electrical Systems and Lighting,"1,560.00",0,"1,560.00",17-Nov-11,COMMUNITIES
Nottinghamshire County Council,08-08374,SERCO LTD,Care,Medical Equipment and  Supplies,"1,600.00",280,"1,880.00",18-Nov-11,CHILDREN & YOUNG PEOPLE
Nottinghamshire County Council,08-08375,SERCO LTD,Care,Medical Equipment and  Supplies,"2,400.00",420,"2,820.00",18-Nov-11,CHILDREN & YOUNG PEOPLE
Nottinghamshire County Council,08-08376,LEE GLASS AND GLAZING (NOTTINGHAM) LTD,Hard Facilities Management ,Glass and Glazing Services,423,84.6,507.6,18-Nov-11,CHILDREN & YOUNG PEOPLE
Nottinghamshire County Council,08-08380,NOTTINGHAM FOREST IN THE COMMUNITY,Transport & Travel,Hotels and Venues,"2,000.00",0,"2,000.00",18-Nov-11,CHILDREN & YOUNG PEOPLE
Nottinghamshire County Council,08-08381,NOTTINGHAM FOREST IN THE COMMUNITY,Transport & Travel,Hotels and Venues,"1,000.00",0,"1,000.00",18-Nov-11,CHILDREN & YOUNG PEOPLE
Nottinghamshire County Council,08-08399,SCREWFIX DIRECT,Hard Facilities Management ,Building and Construction Supplies,433.74,86.75,520.49,18-Nov-11,CHILDREN & YOUNG PEOPLE
Nottinghamshire County Council,08-08400,PTL OCCUPATIONAL HYGIENE CONSULTANTS,Professional Services,Consultancy,"1,433.50",286.7,"1,720.20",18-Nov-11,CHILDREN & YOUNG PEOPLE
Nottinghamshire County Council,08-08401,K & M WHOLESALE SUPPLIERS LIMITED,TBC,TBC,575.83,115.17,691,18-Nov-11,CHILDREN & YOUNG PEOPLE
Nottinghamshire County Council,08-08433,CAPITA RESOURCING LTD,People,Recruitment,558.45,111.69,670.14,18-Nov-11,CHILDREN & YOUNG PEOPLE
Nottinghamshire County Council,08-08468,HARPER COLLINS PUBLISHERS,ICT,"Printing and Publishing, Equipment and Supplies",587.5,102.81,690.31,18-Nov-11,CHILDREN & YOUNG PEOPLE
Nottinghamshire County Council,08-09145,BALFOR RECRUITMENT GROUP LTD,TBC,TBC,760,114,874,18-Nov-11,CHILDREN & YOUNG PEOPLE
Nottinghamshire County Council,08-09199,D G PRIVATE HIRE LTD,Transport & Travel,Taxi,"1,013.70",202.74,"1,216.44",18-Nov-11,CHILDREN & YOUNG PEOPLE
Nottinghamshire County Council,08-09200,NOTTINGHAM AND NOTTINGHAMSHIRE FUTURES LTD,Care,Healthcare Services,500,100,600,18-Nov-11,CHILDREN & YOUNG PEOPLE
Nottinghamshire County Council,08-09201,SCHOOLS PLUS LTD,TBC,TBC,144.54,0,144.54,18-Nov-11,CHILDREN & YOUNG PEOPLE
Nottinghamshire County Council,08-09201,SCHOOLS PLUS LTD,TBC,TBC,"1,011.90",202.38,"1,214.28",18-Nov-11,CHILDREN & YOUNG PEOPLE
Nottinghamshire County Council,08-08447,DAVIES SPORTS,External Services (Highways & Culture),Sports and Recreational Equipment and Supplies,593.65,0,593.65,18-Nov-11,CHILDREN & YOUNG PEOPLE
Nottinghamshire County Council,08-06170,ARROW SPECIALISED TRANSPORT LTD,Transport & Travel,Bus,214.8,42.96,257.76,15-Nov-11,CHILDREN & YOUNG PEOPLE
Nottinghamshire County Council,08-07630,FIRST 4 CARE LTD,Care,Domiciliary Care,"1,112.00",222.4,"1,334.40",16-Nov-11,CHILDREN & YOUNG PEOPLE
Nottinghamshire County Council,08-07661,BRIDGES TRANSPORT SERVICES,Transport & Travel,Bus,701.92,140.38,842.3,17-Nov-11,CHILDREN & YOUNG PEOPLE
Nottinghamshire County Council,08-07686,SPRAYS TRANSPORT LTD,Transport & Travel,Taxi,"1,622.40",324.48,"1,946.88",16-Nov-11,CHILDREN & YOUNG PEOPLE
Nottinghamshire County Council,08-07691,SPRAYS TRANSPORT LTD,Transport & Travel,Taxi,"2,148.15",429.63,"2,577.78",16-Nov-11,CHILDREN & YOUNG PEOPLE
Nottinghamshire County Council,08-06730,QUANTAQUA LTD,Soft Facilities Management,Cleaning Equipment and Janitorial Supplies,90.83,18.17,109,17-Nov-11,CHILDREN & YOUNG PEOPLE
Nottinghamshire County Council,08-06694,QUANTAQUA LTD,Soft Facilities Management,Cleaning Equipment and Janitorial Supplies,90.83,18.17,109,17-Nov-11,CHILDREN & YOUNG PEOPLE
Nottinghamshire County Council,08-06730,QUANTAQUA LTD,Soft Facilities Management,Cleaning Equipment and Janitorial Supplies,90.83,18.17,109,17-Nov-11,CHILDREN & YOUNG PEOPLE
Nottinghamshire County Council,08-05842,QUANTAQUA LTD,Soft Facilities Management,Cleaning Equipment and Janitorial Supplies,90.83,18.17,109,10-Nov-11,CHILDREN & YOUNG PEOPLE
Nottinghamshire County Council,08-05842,QUANTAQUA LTD,Soft Facilities Management,Cleaning Equipment and Janitorial Supplies,121.45,24.29,145.74,10-Nov-11,CHILDREN & YOUNG PEOPLE
Nottinghamshire County Council,08-05842,QUANTAQUA LTD,Soft Facilities Management,Cleaning Equipment and Janitorial Supplies,90.83,18.17,109,10-Nov-11,CHILDREN & YOUNG PEOPLE
Nottinghamshire County Council,08-05842,QUANTAQUA LTD,Soft Facilities Management,Cleaning Equipment and Janitorial Supplies,90.83,18.17,109,10-Nov-11,CHILDREN & YOUNG PEOPLE
Nottinghamshire County Council,08-06730,QUANTAQUA LTD,Soft Facilities Management,Cleaning Equipment and Janitorial Supplies,90.83,18.17,109,17-Nov-11,CHILDREN & YOUNG PEOPLE
Nottinghamshire County Council,08-05418,QUANTAQUA LTD,Soft Facilities Management,Cleaning Equipment and Janitorial Supplies,90.83,18.17,109,09-Nov-11,CHILDREN & YOUNG PEOPLE
Nottinghamshire County Council,08-01677,QUANTAQUA LTD,Soft Facilities Management,Cleaning Equipment and Janitorial Supplies,90.83,18.17,109,04-Nov-11,CHILDREN & YOUNG PEOPLE
Nottinghamshire County Council,08-05418,QUANTAQUA LTD,Soft Facilities Management,Cleaning Equipment and Janitorial Supplies,121.45,24.29,145.74,09-Nov-11,CHILDREN & YOUNG PEOPLE
Nottinghamshire County Council,08-05842,QUANTAQUA LTD,Soft Facilities Management,Cleaning Equipment and Janitorial Supplies,121.45,24.29,145.74,10-Nov-11,CHILDREN & YOUNG PEOPLE
Nottinghamshire County Council,08-01677,QUANTAQUA LTD,Soft Facilities Management,Cleaning Equipment and Janitorial Supplies,121.45,24.29,145.74,04-Nov-11,CHILDREN & YOUNG PEOPLE
Nottinghamshire County Council,08-01213,SHAW BROS LTD,Hard Facilities Management ,Plumbing Services,"1,120.00",224,"1,344.00",03-Nov-11,CHILDREN & YOUNG PEOPLE
Nottinghamshire County Council,08-06730,QUANTAQUA LTD,Soft Facilities Management,Cleaning Equipment and Janitorial Supplies,90.83,18.17,109,17-Nov-11,CHILDREN & YOUNG PEOPLE
Nottinghamshire County Council,08-06694,QUANTAQUA LTD,Soft Facilities Management,Cleaning Equipment and Janitorial Supplies,90.83,18.17,109,17-Nov-11,CHILDREN & YOUNG PEOPLE
Nottinghamshire County Council,08-05842,QUANTAQUA LTD,Soft Facilities Management,Cleaning Equipment and Janitorial Supplies,90.83,18.17,109,10-Nov-11,CHILDREN & YOUNG PEOPLE
Nottinghamshire County Council,08-06694,QUANTAQUA LTD,Soft Facilities Management,Cleaning Equipment and Janitorial Supplies,121.45,24.29,145.74,17-Nov-11,CHILDREN & YOUNG PEOPLE
Nottinghamshire County Council,08-05842,QUANTAQUA LTD,Soft Facilities Management,Cleaning Equipment and Janitorial Supplies,121.45,24.29,145.74,10-Nov-11,CHILDREN & YOUNG PEOPLE
Nottinghamshire County Council,08-05842,QUANTAQUA LTD,Soft Facilities Management,Cleaning Equipment and Janitorial Supplies,90.83,18.17,109,10-Nov-11,CHILDREN & YOUNG PEOPLE
Nottinghamshire County Council,08-05842,QUANTAQUA LTD,Soft Facilities Management,Cleaning Equipment and Janitorial Supplies,90.83,18.17,109,10-Nov-11,CHILDREN & YOUNG PEOPLE
Nottinghamshire County Council,08-05842,QUANTAQUA LTD,Soft Facilities Management,Cleaning Equipment and Janitorial Supplies,152.07,30.41,182.48,10-Nov-11,CHILDREN & YOUNG PEOPLE
Nottinghamshire County Council,08-05842,QUANTAQUA LTD,Soft Facilities Management,Cleaning Equipment and Janitorial Supplies,121.45,24.29,145.74,10-Nov-11,CHILDREN & YOUNG PEOPLE
Nottinghamshire County Council,08-05852,NOTTINGHAM PEST CONTROL LTD,External Services (Highways & Culture),Farming Forestry and Wildlife Services,468,93.6,561.6,15-Nov-11,CHILDREN & YOUNG PEOPLE
Nottinghamshire County Council,08-06676,QUANTAQUA LTD,Soft Facilities Management,Cleaning Equipment and Janitorial Supplies,90.83,18.17,109,17-Nov-11,CHILDREN & YOUNG PEOPLE
Nottinghamshire County Council,08-06676,QUANTAQUA LTD,Soft Facilities Management,Cleaning Equipment and Janitorial Supplies,121.45,24.29,145.74,17-Nov-11,CHILDREN & YOUNG PEOPLE
Nottinghamshire County Council,08-05842,QUANTAQUA LTD,Soft Facilities Management,Cleaning Equipment and Janitorial Supplies,90.83,18.17,109,10-Nov-11,CHILDREN & YOUNG PEOPLE
Nottinghamshire County Council,08-06777,SOUTHCROFT ENGINEERING CO LTD,Professional Services,Professional Engineering Services,"1,493.00",298.6,"1,791.60",17-Nov-11,CHILDREN & YOUNG PEOPLE
Nottinghamshire County Council,08-06702,SHAW BROS LTD,Hard Facilities Management ,Plumbing Services,506,101.2,607.2,17-Nov-11,CHILDREN & YOUNG PEOPLE
Nottinghamshire County Council,08-06676,QUANTAQUA LTD,Soft Facilities Management,Cleaning Equipment and Janitorial Supplies,121.45,24.29,145.74,17-Nov-11,CHILDREN & YOUNG PEOPLE
Nottinghamshire County Council,08-01677,QUANTAQUA LTD,Soft Facilities Management,Cleaning Equipment and Janitorial Supplies,90.83,18.17,109,04-Nov-11,CHILDREN & YOUNG PEOPLE
Nottinghamshire County Council,08-06676,QUANTAQUA LTD,Soft Facilities Management,Cleaning Equipment and Janitorial Supplies,90.83,18.17,109,17-Nov-11,CHILDREN & YOUNG PEOPLE
Nottinghamshire County Council,08-06676,QUANTAQUA LTD,Soft Facilities Management,Cleaning Equipment and Janitorial Supplies,90.83,18.17,109,17-Nov-11,CHILDREN & YOUNG PEOPLE
Nottinghamshire County Council,08-06676,QUANTAQUA LTD,Soft Facilities Management,Cleaning Equipment and Janitorial Supplies,90.83,18.17,109,17-Nov-11,CHILDREN & YOUNG PEOPLE
Nottinghamshire County Council,08-06701,SHAW BROS LTD,Hard Facilities Management ,Plumbing Services,452.4,90.48,542.88,17-Nov-11,CHILDREN & YOUNG PEOPLE
Nottinghamshire County Council,08-06676,QUANTAQUA LTD,Soft Facilities Management,Cleaning Equipment and Janitorial Supplies,121.45,24.29,145.74,17-Nov-11,CHILDREN & YOUNG PEOPLE
Nottinghamshire County Council,08-01677,QUANTAQUA LTD,Soft Facilities Management,Cleaning Equipment and Janitorial Supplies,121.45,24.29,145.74,04-Nov-11,CHILDREN & YOUNG PEOPLE
Nottinghamshire County Council,08-06676,QUANTAQUA LTD,Soft Facilities Management,Cleaning Equipment and Janitorial Supplies,121.45,24.29,145.74,17-Nov-11,CHILDREN & YOUNG PEOPLE
Nottinghamshire County Council,08-05416,SOUTHCROFT ENGINEERING CO LTD,Professional Services,Professional Engineering Services,525,105,630,09-Nov-11,CHILDREN & YOUNG PEOPLE
Nottinghamshire County Council,08-06676,QUANTAQUA LTD,Soft Facilities Management,Cleaning Equipment and Janitorial Supplies,90.83,18.17,109,17-Nov-11,CHILDREN & YOUNG PEOPLE
Nottinghamshire County Council,08-05418,QUANTAQUA LTD,Soft Facilities Management,Cleaning Equipment and Janitorial Supplies,90.83,18.17,109,09-Nov-11,CHILDREN & YOUNG PEOPLE
Nottinghamshire County Council,08-05418,QUANTAQUA LTD,Soft Facilities Management,Cleaning Equipment and Janitorial Supplies,90.83,18.17,109,09-Nov-11,CHILDREN & YOUNG PEOPLE
Nottinghamshire County Council,08-05418,QUANTAQUA LTD,Soft Facilities Management,Cleaning Equipment and Janitorial Supplies,121.45,24.29,145.74,09-Nov-11,CHILDREN & YOUNG PEOPLE
Nottinghamshire County Council,08-05418,QUANTAQUA LTD,Soft Facilities Management,Cleaning Equipment and Janitorial Supplies,121.45,24.29,145.74,09-Nov-11,CHILDREN & YOUNG PEOPLE
Nottinghamshire County Council,08-06694,QUANTAQUA LTD,Soft Facilities Management,Cleaning Equipment and Janitorial Supplies,90.83,18.17,109,17-Nov-11,CHILDREN & YOUNG PEOPLE
Nottinghamshire County Council,08-06694,QUANTAQUA LTD,Soft Facilities Management,Cleaning Equipment and Janitorial Supplies,90.83,18.17,109,17-Nov-11,CHILDREN & YOUNG PEOPLE
Nottinghamshire County Council,08-06694,QUANTAQUA LTD,Soft Facilities Management,Cleaning Equipment and Janitorial Supplies,121.45,24.29,145.74,17-Nov-11,CHILDREN & YOUNG PEOPLE
Nottinghamshire County Council,08-06694,QUANTAQUA LTD,Soft Facilities Management,Cleaning Equipment and Janitorial Supplies,121.45,24.29,145.74,17-Nov-11,CHILDREN & YOUNG PEOPLE
Nottinghamshire County Council,08-05842,QUANTAQUA LTD,Soft Facilities Management,Cleaning Equipment and Janitorial Supplies,90.83,18.17,109,10-Nov-11,CHILDREN & YOUNG PEOPLE
Nottinghamshire County Council,08-05842,QUANTAQUA LTD,Soft Facilities Management,Cleaning Equipment and Janitorial Supplies,90.83,18.17,109,10-Nov-11,CHILDREN & YOUNG PEOPLE
Nottinghamshire County Council,08-05418,QUANTAQUA LTD,Soft Facilities Management,Cleaning Equipment and Janitorial Supplies,90.83,18.17,109,09-Nov-11,CHILDREN & YOUNG PEOPLE
Nottinghamshire County Council,08-06730,QUANTAQUA LTD,Soft Facilities Management,Cleaning Equipment and Janitorial Supplies,90.83,18.17,109,17-Nov-11,CHILDREN & YOUNG PEOPLE
Nottinghamshire County Council,08-05418,QUANTAQUA LTD,Soft Facilities Management,Cleaning Equipment and Janitorial Supplies,121.45,24.29,145.74,09-Nov-11,CHILDREN & YOUNG PEOPLE
Nottinghamshire County Council,08-05842,QUANTAQUA LTD,Soft Facilities Management,Cleaning Equipment and Janitorial Supplies,90.83,18.17,109,10-Nov-11,CHILDREN & YOUNG PEOPLE
Nottinghamshire County Council,08-05418,QUANTAQUA LTD,Soft Facilities Management,Cleaning Equipment and Janitorial Supplies,121.45,24.29,145.74,09-Nov-11,CHILDREN & YOUNG PEOPLE
Nottinghamshire County Council,08-05418,QUANTAQUA LTD,Soft Facilities Management,Cleaning Equipment and Janitorial Supplies,90.83,18.17,109,09-Nov-11,CHILDREN & YOUNG PEOPLE
Nottinghamshire County Council,08-06151,TAXICOVER (UK) LTD T/A CHRIS'S TAXIS,Transport & Travel,Taxi,"1,784.00",356.8,"2,140.80",15-Nov-11,CHILDREN & YOUNG PEOPLE
Nottinghamshire County Council,08-08486,BRIDGES TRANSPORT SERVICES,Transport & Travel,Bus,527.7,105.54,633.24,17-Nov-11,CHILDREN & YOUNG PEOPLE
Nottinghamshire County Council,08-05901,ARROW SPECIALISED TRANSPORT LTD,Transport & Travel,Bus,"1,764.00",352.8,"2,116.80",10-Nov-11,CHILDREN & YOUNG PEOPLE
Nottinghamshire County Council,08-01215,HATHERLEY COMMERCIAL SERVICES,Soft Facilities Management,Prepared and Preserved Foods,419.85,83.97,503.82,03-Nov-11,CHILDREN & YOUNG PEOPLE
Nottinghamshire County Council,08-05909,ARROW SPECIALISED TRANSPORT LTD,Transport & Travel,Bus,"1,008.00",201.6,"1,209.60",10-Nov-11,CHILDREN & YOUNG PEOPLE
Nottinghamshire County Council,08-07620,A-LINE TAXIS,Transport & Travel,Taxi,173.79,34.76,208.55,17-Nov-11,CHILDREN & YOUNG PEOPLE
Nottinghamshire County Council,08-06151,TAXICOVER (UK) LTD T/A CHRIS'S TAXIS,Transport & Travel,Taxi,"1,784.00",356.8,"2,140.80",15-Nov-11,CHILDREN & YOUNG PEOPLE
Nottinghamshire County Council,08-06170,ARROW SPECIALISED TRANSPORT LTD,Transport & Travel,Bus,214.8,42.96,257.76,15-Nov-11,CHILDREN & YOUNG PEOPLE
Nottinghamshire County Council,08-01536,D G PRIVATE HIRE LTD,Transport & Travel,Taxi,240,48,288,03-Nov-11,CHILDREN & YOUNG PEOPLE
Nottinghamshire County Council,08-06200,TRAVELWISE COACHES LTD,Transport & Travel,Bus,"1,824.00",0,"1,824.00",15-Nov-11,CHILDREN & YOUNG PEOPLE
Nottinghamshire County Council,08-06202,TRAVELWISE COACHES LTD,Transport & Travel,Bus,"1,928.80",0,"1,928.80",15-Nov-11,CHILDREN & YOUNG PEOPLE
Nottinghamshire County Council,08-07679,SPRAYS TRANSPORT LTD,Transport & Travel,Taxi,"1,050.00",210,"1,260.00",16-Nov-11,CHILDREN & YOUNG PEOPLE
Nottinghamshire County Council,08-05519,SEVERN TRENT SELECT LTD,Hard Facilities Management ,Utilities,"2,062.70",0,"2,062.70",15-Nov-11,CHILDREN & YOUNG PEOPLE
Nottinghamshire County Council,08-05519,SEVERN TRENT SELECT LTD,Hard Facilities Management ,Utilities,"1,913.01",0,"1,913.01",15-Nov-11,CHILDREN & YOUNG PEOPLE
Nottinghamshire County Council,08-08321,SEVERN TRENT SELECT LTD,Hard Facilities Management ,Utilities,647.5,0,647.5,17-Nov-11,CHILDREN & YOUNG PEOPLE
Nottinghamshire County Council,08-08321,SEVERN TRENT SELECT LTD,Hard Facilities Management ,Utilities,391.74,0,391.74,17-Nov-11,CHILDREN & YOUNG PEOPLE
Nottinghamshire County Council,08-05520,SEVERN TRENT SELECT LTD,Hard Facilities Management ,Utilities,"1,580.08",0,"1,580.08",15-Nov-11,CHILDREN & YOUNG PEOPLE
Nottinghamshire County Council,08-05520,SEVERN TRENT SELECT LTD,Hard Facilities Management ,Utilities,957.89,0,957.89,15-Nov-11,CHILDREN & YOUNG PEOPLE
Nottinghamshire County Council,08-07659,BRIDGES TRANSPORT SERVICES,Transport & Travel,Bus,920.52,184.1,"1,104.62",17-Nov-11,CHILDREN & YOUNG PEOPLE
Nottinghamshire County Council,08-06175,EREWASH COMMUNITY TRANSPORT,Care,Community and Social Services,"1,791.36",0,"1,791.36",15-Nov-11,CHILDREN & YOUNG PEOPLE
Nottinghamshire County Council,08-07717,B N GIBSON MOTORS,Transport & Travel,Taxi,"2,998.35",599.67,"3,598.02",16-Nov-11,CHILDREN & YOUNG PEOPLE
Nottinghamshire County Council,08-08322,SEVERN TRENT SELECT LTD,Hard Facilities Management ,Utilities,984.11,0,984.11,17-Nov-11,CHILDREN & YOUNG PEOPLE
Nottinghamshire County Council,08-08322,SEVERN TRENT SELECT LTD,Hard Facilities Management ,Utilities,596.4,0,596.4,17-Nov-11,CHILDREN & YOUNG PEOPLE
Nottinghamshire County Council,08-07840,RIO CABS,Transport & Travel,Taxi,848.25,0,848.25,17-Nov-11,CHILDREN & YOUNG PEOPLE
Nottinghamshire County Council,08-08500,CW TAXIS,Transport & Travel,Taxi,584.25,0,584.25,17-Nov-11,CHILDREN & YOUNG PEOPLE
Nottinghamshire County Council,08-08497,B N GIBSON MOTORS,Transport & Travel,Taxi,"2,649.30",529.86,"3,179.16",17-Nov-11,CHILDREN & YOUNG PEOPLE
Nottinghamshire County Council,08-07620,A-LINE TAXIS,Transport & Travel,Taxi,141.62,28.32,169.94,17-Nov-11,CHILDREN & YOUNG PEOPLE
Nottinghamshire County Council,08-05911,FOZCABS,Transport & Travel,Taxi,884.5,0,884.5,10-Nov-11,CHILDREN & YOUNG PEOPLE
Nottinghamshire County Council,08-08492,COUNTY CARS,Transport & Travel,Taxi,910.73,182.15,"1,092.88",17-Nov-11,CHILDREN & YOUNG PEOPLE
Nottinghamshire County Council,08-08493,COUNTY CARS,Transport & Travel,Taxi,808.05,161.61,969.66,17-Nov-11,CHILDREN & YOUNG PEOPLE
Nottinghamshire County Council,08-08325,SEVERN TRENT SELECT LTD,Hard Facilities Management ,Utilities,"2,104.46",0,"2,104.46",17-Nov-11,CHILDREN & YOUNG PEOPLE
Nottinghamshire County Council,08-08325,SEVERN TRENT SELECT LTD,Hard Facilities Management ,Utilities,"2,557.06",0,"2,557.06",17-Nov-11,CHILDREN & YOUNG PEOPLE
Nottinghamshire County Council,08-06185,SPRAYS TRANSPORT LTD,Transport & Travel,Taxi,"1,344.80",268.96,"1,613.76",11-Nov-11,CHILDREN & YOUNG PEOPLE
Nottinghamshire County Council,08-06187,SPRAYS TRANSPORT LTD,Transport & Travel,Taxi,948.4,189.68,"1,138.08",11-Nov-11,CHILDREN & YOUNG PEOPLE
Nottinghamshire County Council,08-08323,SEVERN TRENT SELECT LTD,Hard Facilities Management ,Utilities,"1,188.09",0,"1,188.09",17-Nov-11,CHILDREN & YOUNG PEOPLE
Nottinghamshire County Council,08-08323,SEVERN TRENT SELECT LTD,Hard Facilities Management ,Utilities,2.68,0,2.68,17-Nov-11,CHILDREN & YOUNG PEOPLE
Nottinghamshire County Council,08-06187,SPRAYS TRANSPORT LTD,Transport & Travel,Taxi,948.4,189.68,"1,138.08",11-Nov-11,CHILDREN & YOUNG PEOPLE
Nottinghamshire County Council,08-08324,SEVERN TRENT SELECT LTD,Hard Facilities Management ,Utilities,"1,332.90",0,"1,332.90",17-Nov-11,CHILDREN & YOUNG PEOPLE
Nottinghamshire County Council,08-08324,SEVERN TRENT SELECT LTD,Hard Facilities Management ,Utilities,3.68,0,3.68,17-Nov-11,CHILDREN & YOUNG PEOPLE
Nottinghamshire County Council,08-07657,BRIDGES TRANSPORT SERVICES,Transport & Travel,Bus,"1,056.16",211.23,"1,267.39",17-Nov-11,CHILDREN & YOUNG PEOPLE
Nottinghamshire County Council,08-07700,FIRST 4 CARE LTD,Care,Domiciliary Care,"1,888.50",377.7,"2,266.20",16-Nov-11,CHILDREN & YOUNG PEOPLE
Nottinghamshire County Council,08-07844,TOWN TAXIS LTD,Transport & Travel,Taxi,640,128,768,16-Nov-11,CHILDREN & YOUNG PEOPLE
Nottinghamshire County Council,08-07698,FIRST 4 CARE LTD,Care,Domiciliary Care,"1,881.49",376.3,"2,257.79",16-Nov-11,CHILDREN & YOUNG PEOPLE
Nottinghamshire County Council,08-06165,MARRIOTTS TRAVEL,Transport & Travel,Travel Agencies and Booking,"1,808.25",361.65,"2,169.90",15-Nov-11,CHILDREN & YOUNG PEOPLE
Nottinghamshire County Council,08-07615,6 FIVE 2'S,Transport & Travel,Taxi,"1,320.00",264,"1,584.00",17-Nov-11,CHILDREN & YOUNG PEOPLE
Nottinghamshire County Council,08-08480,6 FIVE 2'S,Transport & Travel,Taxi,701.28,140.26,841.54,17-Nov-11,CHILDREN & YOUNG PEOPLE
Nottinghamshire County Council,08-05328,TAXICOVER (UK) LTD T/A CHRIS'S TAXIS,Transport & Travel,Taxi,982.18,196.44,"1,178.62",09-Nov-11,CHILDREN & YOUNG PEOPLE
Nottinghamshire County Council,08-06148,TAXICOVER (UK) LTD T/A CHRIS'S TAXIS,Transport & Travel,Taxi,"1,860.00",372,"2,232.00",15-Nov-11,CHILDREN & YOUNG PEOPLE
Nottinghamshire County Council,08-07620,A-LINE TAXIS,Transport & Travel,Taxi,173.8,34.76,208.56,17-Nov-11,CHILDREN & YOUNG PEOPLE
Nottinghamshire County Council,08-07655,ALPHA CARS,Transport & Travel,Taxi,530.08,0,530.08,17-Nov-11,CHILDREN & YOUNG PEOPLE
Nottinghamshire County Council,08-07684,SPRAYS TRANSPORT LTD,Transport & Travel,Taxi,"1,901.28",380.26,"2,281.54",16-Nov-11,CHILDREN & YOUNG PEOPLE
Nottinghamshire County Council,08-05328,TAXICOVER (UK) LTD T/A CHRIS'S TAXIS,Transport & Travel,Taxi,982.18,196.44,"1,178.62",09-Nov-11,CHILDREN & YOUNG PEOPLE
Nottinghamshire County Council,08-07609,6 FIVE 2'S,Transport & Travel,Taxi,632.32,126.46,758.78,17-Nov-11,CHILDREN & YOUNG PEOPLE
Nottinghamshire County Council,08-08486,BRIDGES TRANSPORT SERVICES,Transport & Travel,Bus,527.7,105.54,633.24,17-Nov-11,CHILDREN & YOUNG PEOPLE
Nottinghamshire County Council,08-06195,TRAVELWISE COACHES LTD,Transport & Travel,Bus,"1,540.40",0,"1,540.40",15-Nov-11,CHILDREN & YOUNG PEOPLE
Nottinghamshire County Council,08-06171,ARROW SPECIALISED TRANSPORT LTD,Transport & Travel,Bus,"1,436.10",287.22,"1,723.32",15-Nov-11,CHILDREN & YOUNG PEOPLE
Nottinghamshire County Council,08-01525,ARROW SPECIALISED TRANSPORT LTD,Transport & Travel,Bus,668.48,133.7,802.18,03-Nov-11,CHILDREN & YOUNG PEOPLE
Nottinghamshire County Council,08-01541,D G PRIVATE HIRE LTD,Transport & Travel,Taxi,"2,995.17",599.03,"3,594.20",03-Nov-11,CHILDREN & YOUNG PEOPLE
Nottinghamshire County Council,08-01542,D G PRIVATE HIRE LTD,Transport & Travel,Taxi,"1,507.50",301.5,"1,809.00",03-Nov-11,CHILDREN & YOUNG PEOPLE
Nottinghamshire County Council,08-01543,D G PRIVATE HIRE LTD,Transport & Travel,Taxi,"2,200.95",440.19,"2,641.14",03-Nov-11,CHILDREN & YOUNG PEOPLE
Nottinghamshire County Council,08-01544,D G PRIVATE HIRE LTD,Transport & Travel,Taxi,"2,082.00",416.4,"2,498.40",03-Nov-11,CHILDREN & YOUNG PEOPLE
Nottinghamshire County Council,08-01547,HAWKINS TAXIS AND TRANSPORT,Transport & Travel,Taxi,"1,473.68",0,"1,473.68",03-Nov-11,CHILDREN & YOUNG PEOPLE
Nottinghamshire County Council,08-01549,OASIS TAXIS MANSFIELD LTD,Transport & Travel,Taxi,"1,173.33",0,"1,173.33",15-Nov-11,CHILDREN & YOUNG PEOPLE
Nottinghamshire County Council,08-01560,AAA TAXIS,Transport & Travel,Taxi,"1,387.50",0,"1,387.50",03-Nov-11,CHILDREN & YOUNG PEOPLE
Nottinghamshire County Council,08-05339,ARROW SPECIALISED TRANSPORT LTD,Transport & Travel,Bus,"1,410.00",282,"1,692.00",09-Nov-11,CHILDREN & YOUNG PEOPLE
Nottinghamshire County Council,08-05340,ARROW SPECIALISED TRANSPORT LTD,Transport & Travel,Bus,"1,858.65",371.73,"2,230.38",09-Nov-11,CHILDREN & YOUNG PEOPLE
Nottinghamshire County Council,08-05342,ARROW SPECIALISED TRANSPORT LTD,Transport & Travel,Bus,"1,477.50",295.5,"1,773.00",09-Nov-11,CHILDREN & YOUNG PEOPLE
Nottinghamshire County Council,08-05903,ARROW SPECIALISED TRANSPORT LTD,Transport & Travel,Bus,"2,554.73",510.95,"3,065.68",10-Nov-11,CHILDREN & YOUNG PEOPLE
Nottinghamshire County Council,08-05910,FOZCABS,Transport & Travel,Taxi,"1,105.60",0,"1,105.60",10-Nov-11,CHILDREN & YOUNG PEOPLE
Nottinghamshire County Council,08-05915,HORIZON TRAVEL,Transport & Travel,Travel Agencies and Booking,"1,624.08",0,"1,624.08",10-Nov-11,CHILDREN & YOUNG PEOPLE
Nottinghamshire County Council,08-05919,P RHODES TRANSPORT LTD,Transport & Travel,Bus,"1,325.55",265.11,"1,590.66",10-Nov-11,CHILDREN & YOUNG PEOPLE
Nottinghamshire County Council,08-05937,AAA TAXIS,Transport & Travel,Taxi,"1,576.00",0,"1,576.00",10-Nov-11,CHILDREN & YOUNG PEOPLE
Nottinghamshire County Council,08-05939,AAA TAXIS,Transport & Travel,Taxi,590.8,0,590.8,10-Nov-11,CHILDREN & YOUNG PEOPLE
Nottinghamshire County Council,08-05940,AAA TAXIS,Transport & Travel,Taxi,"1,688.00",0,"1,688.00",10-Nov-11,CHILDREN & YOUNG PEOPLE
Nottinghamshire County Council,08-05941,AAA TAXIS,Transport & Travel,Taxi,"1,659.20",0,"1,659.20",10-Nov-11,CHILDREN & YOUNG PEOPLE
Nottinghamshire County Council,08-06167,MARTINS TRAVEL,Transport & Travel,Travel Agencies and Booking,"2,010.08",0,"2,010.08",15-Nov-11,CHILDREN & YOUNG PEOPLE
Nottinghamshire County Council,08-06168,MARTINS TRAVEL,Transport & Travel,Travel Agencies and Booking,"1,771.35",354.27,"2,125.62",15-Nov-11,CHILDREN & YOUNG PEOPLE
Nottinghamshire County Council,08-06173,ARROW SPECIALISED TRANSPORT LTD,Transport & Travel,Bus,"3,060.00",612,"3,672.00",15-Nov-11,CHILDREN & YOUNG PEOPLE
Nottinghamshire County Council,08-06180,OASIS TAXIS MANSFIELD LTD,Transport & Travel,Taxi,"1,231.68",0,"1,231.68",15-Nov-11,CHILDREN & YOUNG PEOPLE
Nottinghamshire County Council,08-06197,TRAVELWISE COACHES LTD,Transport & Travel,Bus,"2,014.41",0,"2,014.41",15-Nov-11,CHILDREN & YOUNG PEOPLE
Nottinghamshire County Council,08-07611,6 FIVE 2'S,Transport & Travel,Taxi,571.08,114.22,685.3,17-Nov-11,CHILDREN & YOUNG PEOPLE
Nottinghamshire County Council,08-07652,ACE OF MANSFIELD LTD,Transport & Travel,Taxi,992,198.4,"1,190.40",18-Nov-11,CHILDREN & YOUNG PEOPLE
Nottinghamshire County Council,08-07667,HEADLAND TAXI SERVICE,Transport & Travel,Taxi,"1,067.64",0,"1,067.64",17-Nov-11,CHILDREN & YOUNG PEOPLE
Nottinghamshire County Council,08-07677,SPRAYS TRANSPORT LTD,Transport & Travel,Taxi,"2,001.75",400.35,"2,402.10",16-Nov-11,CHILDREN & YOUNG PEOPLE
Nottinghamshire County Council,08-07682,SPRAYS TRANSPORT LTD,Transport & Travel,Taxi,"1,530.00",306,"1,836.00",16-Nov-11,CHILDREN & YOUNG PEOPLE
Nottinghamshire County Council,08-07690,SPRAYS TRANSPORT LTD,Transport & Travel,Taxi,"1,829.10",365.82,"2,194.92",16-Nov-11,CHILDREN & YOUNG PEOPLE
Nottinghamshire County Council,08-07706,FIRST 4 CARE LTD,Care,Domiciliary Care,"1,742.10",348.42,"2,090.52",16-Nov-11,CHILDREN & YOUNG PEOPLE
Nottinghamshire County Council,08-07708,FIRST 4 CARE LTD,Care,Domiciliary Care,997.92,199.58,"1,197.50",16-Nov-11,CHILDREN & YOUNG PEOPLE
Nottinghamshire County Council,08-07725,B N GIBSON MOTORS,Transport & Travel,Taxi,"1,480.00",296,"1,776.00",16-Nov-11,CHILDREN & YOUNG PEOPLE
Nottinghamshire County Council,08-07726,B N GIBSON MOTORS,Transport & Travel,Taxi,"2,376.60",475.32,"2,851.92",16-Nov-11,CHILDREN & YOUNG PEOPLE
Nottinghamshire County Council,08-07736,B N GIBSON MOTORS,Transport & Travel,Taxi,"2,449.80",489.96,"2,939.76",16-Nov-11,CHILDREN & YOUNG PEOPLE
Nottinghamshire County Council,08-07737,B N GIBSON MOTORS,Transport & Travel,Taxi,"1,509.60",301.92,"1,811.52",16-Nov-11,CHILDREN & YOUNG PEOPLE
Nottinghamshire County Council,08-07747,PREMIER TAXIS,Transport & Travel,Taxi,0.02,0,0.02,17-Nov-11,CHILDREN & YOUNG PEOPLE
Nottinghamshire County Council,08-07748,1-2-3 TAXIS,Transport & Travel,Taxi,948,189.6,"1,137.60",17-Nov-11,CHILDREN & YOUNG PEOPLE
Nottinghamshire County Council,08-07749,1-2-3 TAXIS,Transport & Travel,Taxi,512.55,102.51,615.06,17-Nov-11,CHILDREN & YOUNG PEOPLE
Nottinghamshire County Council,08-08496,FIRST 4 CARE LTD,Care,Domiciliary Care,"3,200.00",640,"3,840.00",17-Nov-11,CHILDREN & YOUNG PEOPLE
Nottinghamshire County Council,08-08501,CW TAXIS,Transport & Travel,Taxi,739.9,0,739.9,17-Nov-11,CHILDREN & YOUNG PEOPLE
Nottinghamshire County Council,08-08502,CW TAXIS,Transport & Travel,Taxi,744,0,744,17-Nov-11,CHILDREN & YOUNG PEOPLE
Nottinghamshire County Council,08-00374,SERCO LTD,Care,Medical Equipment and  Supplies,"30,000.00",0,"30,000.00",09-Nov-11,CHILDREN & YOUNG PEOPLE
Nottinghamshire County Council,08-09176,SENAD LTD,External Services (Highways & Culture),Education Services,"-35,408.60",0,"-35,408.60",18-Nov-11,CHILDREN & YOUNG PEOPLE
Nottinghamshire County Council,08-01538,D G PRIVATE HIRE LTD,Transport & Travel,Taxi,480,0,480,03-Nov-11,CHILDREN & YOUNG PEOPLE
Nottinghamshire County Council,08-01550,D G PRIVATE HIRE LTD,Transport & Travel,Taxi,"1,155.00",231,"1,386.00",03-Nov-11,CHILDREN & YOUNG PEOPLE
Nottinghamshire County Council,08-01526,ARROW SPECIALISED TRANSPORT LTD,Transport & Travel,Bus,"2,246.40",0,"2,246.40",03-Nov-11,CHILDREN & YOUNG PEOPLE
Nottinghamshire County Council,08-01527,ARROW SPECIALISED TRANSPORT LTD,Transport & Travel,Bus,"1,853.46",0,"1,853.46",03-Nov-11,CHILDREN & YOUNG PEOPLE
Nottinghamshire County Council,08-05906,ARROW SPECIALISED TRANSPORT LTD,Transport & Travel,Bus,"2,005.95",401.19,"2,407.14",10-Nov-11,CHILDREN & YOUNG PEOPLE
Nottinghamshire County Council,08-05907,ARROW SPECIALISED TRANSPORT LTD,Transport & Travel,Bus,"1,989.90",397.98,"2,387.88",10-Nov-11,CHILDREN & YOUNG PEOPLE
Nottinghamshire County Council,08-05908,ARROW SPECIALISED TRANSPORT LTD,Transport & Travel,Bus,"2,135.30",427.06,"2,562.36",10-Nov-11,CHILDREN & YOUNG PEOPLE
Nottinghamshire County Council,08-07723,B N GIBSON MOTORS,Transport & Travel,Taxi,"2,550.00",510,"3,060.00",16-Nov-11,CHILDREN & YOUNG PEOPLE
Nottinghamshire County Council,08-07746,GOLDSTAR TRAVEL (NOTTINGHAM) LTD,Transport & Travel,Travel Agencies and Booking,"2,072.00",0,"2,072.00",17-Nov-11,CHILDREN & YOUNG PEOPLE
Nottinghamshire County Council,08-08485,ARROW SPECIALISED TRANSPORT LTD,Transport & Travel,Bus,"1,426.80",285.36,"1,712.16",17-Nov-11,CHILDREN & YOUNG PEOPLE
Nottinghamshire County Council,08-01525,ARROW SPECIALISED TRANSPORT LTD,Transport & Travel,Bus,358.11,71.62,429.73,03-Nov-11,CHILDREN & YOUNG PEOPLE
Nottinghamshire County Council,08-06191,D G PRIVATE HIRE LTD,Transport & Travel,Taxi,582.4,116.48,698.88,15-Nov-11,CHILDREN & YOUNG PEOPLE
Nottinghamshire County Council,08-01534,ARROW SPECIALISED TRANSPORT LTD,Transport & Travel,Bus,"1,905.12",381.02,"2,286.14",03-Nov-11,CHILDREN & YOUNG PEOPLE
Nottinghamshire County Council,08-01539,D G PRIVATE HIRE LTD,Transport & Travel,Taxi,"1,929.60",385.92,"2,315.52",03-Nov-11,CHILDREN & YOUNG PEOPLE
Nottinghamshire County Council,08-01540,D G PRIVATE HIRE LTD,Transport & Travel,Taxi,663.3,132.66,795.96,03-Nov-11,CHILDREN & YOUNG PEOPLE
Nottinghamshire County Council,08-05336,ARROW SPECIALISED TRANSPORT LTD,Transport & Travel,Bus,"1,984.48",396.9,"2,381.38",09-Nov-11,CHILDREN & YOUNG PEOPLE
Nottinghamshire County Council,08-05347,D G PRIVATE HIRE LTD,Transport & Travel,Taxi,"1,473.60",294.72,"1,768.32",09-Nov-11,CHILDREN & YOUNG PEOPLE
Nottinghamshire County Council,08-06174,ARROW SPECIALISED TRANSPORT LTD,Transport & Travel,Bus,"2,159.04",431.81,"2,590.85",15-Nov-11,CHILDREN & YOUNG PEOPLE
Nottinghamshire County Council,08-07621,CENTRAL CARS (NOTTINGHAM) LTD,Transport & Travel,Taxi,"1,275.00",255,"1,530.00",17-Nov-11,CHILDREN & YOUNG PEOPLE
Nottinghamshire County Council,08-07678,SPRAYS TRANSPORT LTD,Transport & Travel,Taxi,"1,516.96",303.39,"1,820.35",16-Nov-11,CHILDREN & YOUNG PEOPLE
Nottinghamshire County Council,08-07680,SPRAYS TRANSPORT LTD,Transport & Travel,Taxi,"1,559.84",311.97,"1,871.81",16-Nov-11,CHILDREN & YOUNG PEOPLE
Nottinghamshire County Council,08-07709,RON GASH AND SONS LTD,Transport & Travel,Bus,"1,684.32",336.86,"2,021.18",17-Nov-11,CHILDREN & YOUNG PEOPLE
Nottinghamshire County Council,08-07711,RON GASH AND SONS LTD,Transport & Travel,Bus,"1,322.91",264.58,"1,587.49",17-Nov-11,CHILDREN & YOUNG PEOPLE
Nottinghamshire County Council,08-08478,SOUTHSIDE CARS,Transport & Travel,Taxi,"1,346.40",0,"1,346.40",17-Nov-11,CHILDREN & YOUNG PEOPLE
Nottinghamshire County Council,08-08494,COUNTY CARS,Transport & Travel,Taxi,"1,350.00",270,"1,620.00",17-Nov-11,CHILDREN & YOUNG PEOPLE
Nottinghamshire County Council,08-08495,COUNTY CARS,Transport & Travel,Taxi,"1,200.00",240,"1,440.00",17-Nov-11,CHILDREN & YOUNG PEOPLE
Nottinghamshire County Council,08-01525,ARROW SPECIALISED TRANSPORT LTD,Transport & Travel,Bus,358.11,71.62,429.73,03-Nov-11,CHILDREN & YOUNG PEOPLE
Nottinghamshire County Council,08-01749,B N GIBSON MOTORS,Transport & Travel,Taxi,"1,526.08",305.22,"1,831.30",04-Nov-11,CHILDREN & YOUNG PEOPLE
Nottinghamshire County Council,08-05332,ARROW SPECIALISED TRANSPORT LTD,Transport & Travel,Bus,"1,723.84",0,"1,723.84",09-Nov-11,CHILDREN & YOUNG PEOPLE
Nottinghamshire County Council,08-05333,ARROW SPECIALISED TRANSPORT LTD,Transport & Travel,Bus,"1,704.48",340.9,"2,045.38",09-Nov-11,CHILDREN & YOUNG PEOPLE
Nottinghamshire County Council,08-06172,ARROW SPECIALISED TRANSPORT LTD,Transport & Travel,Bus,"1,736.64",347.33,"2,083.97",15-Nov-11,CHILDREN & YOUNG PEOPLE
Nottinghamshire County Council,08-06190,SPRAYS TRANSPORT LTD,Transport & Travel,Taxi,"1,344.00",268.8,"1,612.80",11-Nov-11,CHILDREN & YOUNG PEOPLE
Nottinghamshire County Council,08-06194,TRAVELWISE COACHES LTD,Transport & Travel,Bus,"1,669.92",0,"1,669.92",15-Nov-11,CHILDREN & YOUNG PEOPLE
Nottinghamshire County Council,08-06196,TRAVELWISE COACHES LTD,Transport & Travel,Bus,"1,636.32",0,"1,636.32",15-Nov-11,CHILDREN & YOUNG PEOPLE
Nottinghamshire County Council,08-07610,6 FIVE 2'S,Transport & Travel,Taxi,739.52,147.9,887.42,17-Nov-11,CHILDREN & YOUNG PEOPLE
Nottinghamshire County Council,08-07624,CENTRAL CARS (NOTTINGHAM) LTD,Transport & Travel,Taxi,"2,713.60",542.72,"3,256.32",17-Nov-11,CHILDREN & YOUNG PEOPLE
Nottinghamshire County Council,08-07688,SPRAYS TRANSPORT LTD,Transport & Travel,Taxi,996.56,199.31,"1,195.87",16-Nov-11,CHILDREN & YOUNG PEOPLE
Nottinghamshire County Council,08-07702,FIRST 4 CARE LTD,Care,Domiciliary Care,"1,905.12",381.02,"2,286.14",16-Nov-11,CHILDREN & YOUNG PEOPLE
Nottinghamshire County Council,08-07718,B N GIBSON MOTORS,Transport & Travel,Taxi,"1,960.10",392.02,"2,352.12",16-Nov-11,CHILDREN & YOUNG PEOPLE
Nottinghamshire County Council,08-07719,B N GIBSON MOTORS,Transport & Travel,Taxi,"2,591.84",518.37,"3,110.21",16-Nov-11,CHILDREN & YOUNG PEOPLE
Nottinghamshire County Council,08-07720,B N GIBSON MOTORS,Transport & Travel,Taxi,"3,561.92",712.38,"4,274.30",16-Nov-11,CHILDREN & YOUNG PEOPLE
Nottinghamshire County Council,08-07740,B N GIBSON MOTORS,Transport & Travel,Taxi,50,10,60,16-Nov-11,CHILDREN & YOUNG PEOPLE
Nottinghamshire County Council,08-08196,B N GIBSON MOTORS,Transport & Travel,Taxi,"1,297.62",259.52,"1,557.14",17-Nov-11,CHILDREN & YOUNG PEOPLE
Nottinghamshire County Council,08-08484,ARROW SPECIALISED TRANSPORT LTD,Transport & Travel,Bus,"2,065.00",413,"2,478.00",17-Nov-11,CHILDREN & YOUNG PEOPLE
Nottinghamshire County Council,08-05914,HORIZON TRAVEL,Transport & Travel,Travel Agencies and Booking,"1,465.47",293.09,"1,758.56",10-Nov-11,CHILDREN & YOUNG PEOPLE
Nottinghamshire County Council,08-06141,TAXICOVER (UK) LTD T/A CHRIS'S TAXIS,Transport & Travel,Taxi,"2,272.16",0,"2,272.16",15-Nov-11,CHILDREN & YOUNG PEOPLE
Nottinghamshire County Council,08-06142,TAXICOVER (UK) LTD T/A CHRIS'S TAXIS,Transport & Travel,Taxi,"2,591.68",0,"2,591.68",15-Nov-11,CHILDREN & YOUNG PEOPLE
Nottinghamshire County Council,08-06143,TAXICOVER (UK) LTD T/A CHRIS'S TAXIS,Transport & Travel,Taxi,"2,848.00",0,"2,848.00",15-Nov-11,CHILDREN & YOUNG PEOPLE
Nottinghamshire County Council,08-06144,TAXICOVER (UK) LTD T/A CHRIS'S TAXIS,Transport & Travel,Taxi,"2,587.36",0,"2,587.36",15-Nov-11,CHILDREN & YOUNG PEOPLE
Nottinghamshire County Council,08-07664,BUTLER BROS LTD,Transport & Travel,Bus,"2,633.44",0,"2,633.44",17-Nov-11,CHILDREN & YOUNG PEOPLE
Nottinghamshire County Council,08-08490,BUTLER BROS LTD,Transport & Travel,Bus,"3,127.21",0,"3,127.21",17-Nov-11,CHILDREN & YOUNG PEOPLE
Nottinghamshire County Council,08-01535,D G PRIVATE HIRE LTD,Transport & Travel,Taxi,"2,541.76",508.35,"3,050.11",03-Nov-11,CHILDREN & YOUNG PEOPLE
Nottinghamshire County Council,08-05905,ARROW SPECIALISED TRANSPORT LTD,Transport & Travel,Bus,549,109.8,658.8,10-Nov-11,CHILDREN & YOUNG PEOPLE
Nottinghamshire County Council,08-05942,AAA TAXIS,Transport & Travel,Taxi,936,0,936,10-Nov-11,CHILDREN & YOUNG PEOPLE
Nottinghamshire County Council,08-06177,HORIZON TRAVEL,Transport & Travel,Travel Agencies and Booking,"1,546.34",0,"1,546.34",15-Nov-11,CHILDREN & YOUNG PEOPLE
Nottinghamshire County Council,08-06186,SPRAYS TRANSPORT LTD,Transport & Travel,Taxi,"1,873.20",374.64,"2,247.84",11-Nov-11,CHILDREN & YOUNG PEOPLE
Nottinghamshire County Council,08-07622,CENTRAL CARS (NOTTINGHAM) LTD,Transport & Travel,Taxi,958,191.6,"1,149.60",17-Nov-11,CHILDREN & YOUNG PEOPLE
Nottinghamshire County Council,08-07623,CENTRAL CARS (NOTTINGHAM) LTD,Transport & Travel,Taxi,896,179.2,"1,075.20",17-Nov-11,CHILDREN & YOUNG PEOPLE
Nottinghamshire County Council,08-07653,ACE OF MANSFIELD LTD,Transport & Travel,Taxi,"1,050.00",210,"1,260.00",18-Nov-11,CHILDREN & YOUNG PEOPLE
Nottinghamshire County Council,08-07660,BRIDGES TRANSPORT SERVICES,Transport & Travel,Bus,"1,592.40",318.48,"1,910.88",17-Nov-11,CHILDREN & YOUNG PEOPLE
Nottinghamshire County Council,08-07693,TRENT CARS,Transport & Travel,Taxi,"1,547.86",0,"1,547.86",17-Nov-11,CHILDREN & YOUNG PEOPLE
Nottinghamshire County Council,08-07838,DIAMOND CARS,Transport & Travel,Taxi,"1,713.76",342.75,"2,056.51",17-Nov-11,CHILDREN & YOUNG PEOPLE
Nottinghamshire County Council,08-01533,ARROW SPECIALISED TRANSPORT LTD,Transport & Travel,Bus,"1,765.20",353.04,"2,118.24",03-Nov-11,CHILDREN & YOUNG PEOPLE
Nottinghamshire County Council,08-06149,TAXICOVER (UK) LTD T/A CHRIS'S TAXIS,Transport & Travel,Taxi,"2,040.00",0,"2,040.00",15-Nov-11,CHILDREN & YOUNG PEOPLE
Nottinghamshire County Council,08-06150,TAXICOVER (UK) LTD T/A CHRIS'S TAXIS,Transport & Travel,Taxi,"2,646.00",0,"2,646.00",15-Nov-11,CHILDREN & YOUNG PEOPLE
Nottinghamshire County Council,08-07668,J A TRAVEL LTD,Transport & Travel,Travel Agencies and Booking,"1,831.80",0,"1,831.80",17-Nov-11,CHILDREN & YOUNG PEOPLE
Nottinghamshire County Council,08-01548,MCEWENS OF MANSFIELD LTD,Transport & Travel,Bus,"1,907.68",0,"1,907.68",03-Nov-11,CHILDREN & YOUNG PEOPLE
Nottinghamshire County Council,08-05343,ARROW SPECIALISED TRANSPORT LTD,Transport & Travel,Bus,"2,211.49",442.3,"2,653.79",09-Nov-11,CHILDREN & YOUNG PEOPLE
Nottinghamshire County Council,08-05344,ARROW SPECIALISED TRANSPORT LTD,Transport & Travel,Bus,"1,674.00",334.8,"2,008.80",09-Nov-11,CHILDREN & YOUNG PEOPLE
Nottinghamshire County Council,08-05345,ARROW SPECIALISED TRANSPORT LTD,Transport & Travel,Bus,861,172.2,"1,033.20",09-Nov-11,CHILDREN & YOUNG PEOPLE
Nottinghamshire County Council,08-05346,ARROW SPECIALISED TRANSPORT LTD,Transport & Travel,Bus,"1,710.00",342,"2,052.00",09-Nov-11,CHILDREN & YOUNG PEOPLE
Nottinghamshire County Council,08-05917,K AND S COACHES,Transport & Travel,Bus,"1,322.84",0,"1,322.84",10-Nov-11,CHILDREN & YOUNG PEOPLE
Nottinghamshire County Council,08-05918,P RHODES TRANSPORT LTD,Transport & Travel,Bus,"1,319.10",263.82,"1,582.92",10-Nov-11,CHILDREN & YOUNG PEOPLE
Nottinghamshire County Council,08-05938,AAA TAXIS,Transport & Travel,Taxi,"1,036.80",0,"1,036.80",10-Nov-11,CHILDREN & YOUNG PEOPLE
Nottinghamshire County Council,08-06145,TAXICOVER (UK) LTD T/A CHRIS'S TAXIS,Transport & Travel,Taxi,"1,332.50",0,"1,332.50",15-Nov-11,CHILDREN & YOUNG PEOPLE
Nottinghamshire County Council,08-06146,TAXICOVER (UK) LTD T/A CHRIS'S TAXIS,Transport & Travel,Taxi,"1,894.35",0,"1,894.35",15-Nov-11,CHILDREN & YOUNG PEOPLE
Nottinghamshire County Council,08-06157,TAXICOVER (UK) LTD T/A CHRIS'S TAXIS,Transport & Travel,Taxi,"1,890.00",0,"1,890.00",15-Nov-11,CHILDREN & YOUNG PEOPLE
Nottinghamshire County Council,08-06158,TAXICOVER (UK) LTD T/A CHRIS'S TAXIS,Transport & Travel,Taxi,"1,377.75",0,"1,377.75",15-Nov-11,CHILDREN & YOUNG PEOPLE
Nottinghamshire County Council,08-06159,TAXICOVER (UK) LTD T/A CHRIS'S TAXIS,Transport & Travel,Taxi,688.02,0,688.02,15-Nov-11,CHILDREN & YOUNG PEOPLE
Nottinghamshire County Council,08-06160,TAXICOVER (UK) LTD T/A CHRIS'S TAXIS,Transport & Travel,Taxi,"2,557.65",0,"2,557.65",15-Nov-11,CHILDREN & YOUNG PEOPLE
Nottinghamshire County Council,08-06161,TAXICOVER (UK) LTD T/A CHRIS'S TAXIS,Transport & Travel,Taxi,"2,683.80",0,"2,683.80",15-Nov-11,CHILDREN & YOUNG PEOPLE
Nottinghamshire County Council,08-07612,6 FIVE 2'S,Transport & Travel,Taxi,"1,291.76",258.35,"1,550.11",17-Nov-11,CHILDREN & YOUNG PEOPLE
Nottinghamshire County Council,08-07616,6 FIVE 2'S,Transport & Travel,Taxi,"1,088.00",217.6,"1,305.60",17-Nov-11,CHILDREN & YOUNG PEOPLE
Nottinghamshire County Council,08-07665,HARRISON FORD,Transport & Travel,Motor Vehicles,"1,762.03",0,"1,762.03",16-Nov-11,CHILDREN & YOUNG PEOPLE
Nottinghamshire County Council,08-07669,J A TRAVEL LTD,Transport & Travel,Travel Agencies and Booking,"2,085.00",0,"2,085.00",17-Nov-11,CHILDREN & YOUNG PEOPLE
Nottinghamshire County Council,08-07739,B N GIBSON MOTORS,Transport & Travel,Taxi,"1,496.03",299.21,"1,795.24",16-Nov-11,CHILDREN & YOUNG PEOPLE
Nottinghamshire County Council,08-07740,B N GIBSON MOTORS,Transport & Travel,Taxi,"2,118.40",423.68,"2,542.08",16-Nov-11,CHILDREN & YOUNG PEOPLE
Nottinghamshire County Council,08-07741,B N GIBSON MOTORS,Transport & Travel,Taxi,"2,306.55",461.31,"2,767.86",16-Nov-11,CHILDREN & YOUNG PEOPLE
Nottinghamshire County Council,08-07742,B N GIBSON MOTORS,Transport & Travel,Taxi,"1,371.87",274.37,"1,646.24",16-Nov-11,CHILDREN & YOUNG PEOPLE
Nottinghamshire County Council,08-07839,DIAMOND CARS,Transport & Travel,Taxi,"1,598.88",319.78,"1,918.66",17-Nov-11,CHILDREN & YOUNG PEOPLE
Nottinghamshire County Council,08-08479,6 FIVE 2'S,Transport & Travel,Taxi,"1,169.75",233.95,"1,403.70",17-Nov-11,CHILDREN & YOUNG PEOPLE
Nottinghamshire County Council,08-01524,ARROW SPECIALISED TRANSPORT LTD,Transport & Travel,Bus,977.58,195.52,"1,173.10",03-Nov-11,CHILDREN & YOUNG PEOPLE
Nottinghamshire County Council,08-01529,ARROW SPECIALISED TRANSPORT LTD,Transport & Travel,Bus,"1,697.04",0,"1,697.04",03-Nov-11,CHILDREN & YOUNG PEOPLE
Nottinghamshire County Council,08-01530,ARROW SPECIALISED TRANSPORT LTD,Transport & Travel,Bus,"1,234.20",246.84,"1,481.04",03-Nov-11,CHILDREN & YOUNG PEOPLE
Nottinghamshire County Council,08-05329,ARROW SPECIALISED TRANSPORT LTD,Transport & Travel,Bus,"1,477.42",295.48,"1,772.90",09-Nov-11,CHILDREN & YOUNG PEOPLE
Nottinghamshire County Council,08-05330,ARROW SPECIALISED TRANSPORT LTD,Transport & Travel,Bus,"1,428.38",0,"1,428.38",09-Nov-11,CHILDREN & YOUNG PEOPLE
Nottinghamshire County Council,08-05331,ARROW SPECIALISED TRANSPORT LTD,Transport & Travel,Bus,"1,277.50",255.5,"1,533.00",09-Nov-11,CHILDREN & YOUNG PEOPLE
Nottinghamshire County Council,08-07715,B N GIBSON MOTORS,Transport & Travel,Taxi,"2,255.54",451.11,"2,706.65",16-Nov-11,CHILDREN & YOUNG PEOPLE
Nottinghamshire County Council,08-07716,B N GIBSON MOTORS,Transport & Travel,Taxi,"2,244.90",448.98,"2,693.88",16-Nov-11,CHILDREN & YOUNG PEOPLE
Nottinghamshire County Council,08-06152,TAXICOVER (UK) LTD T/A CHRIS'S TAXIS,Transport & Travel,Taxi,"2,531.27",0,"2,531.27",15-Nov-11,CHILDREN & YOUNG PEOPLE
Nottinghamshire County Council,08-06153,TAXICOVER (UK) LTD T/A CHRIS'S TAXIS,Transport & Travel,Taxi,"2,376.80",0,"2,376.80",15-Nov-11,CHILDREN & YOUNG PEOPLE
Nottinghamshire County Council,08-06154,TAXICOVER (UK) LTD T/A CHRIS'S TAXIS,Transport & Travel,Taxi,"3,526.24",0,"3,526.24",15-Nov-11,CHILDREN & YOUNG PEOPLE
Nottinghamshire County Council,08-06155,TAXICOVER (UK) LTD T/A CHRIS'S TAXIS,Transport & Travel,Taxi,"2,239.68",0,"2,239.68",15-Nov-11,CHILDREN & YOUNG PEOPLE
Nottinghamshire County Council,08-06156,TAXICOVER (UK) LTD T/A CHRIS'S TAXIS,Transport & Travel,Taxi,"2,476.32",0,"2,476.32",15-Nov-11,CHILDREN & YOUNG PEOPLE
Nottinghamshire County Council,08-06192,TRAVELWISE COACHES LTD,Transport & Travel,Bus,"1,519.52",0,"1,519.52",15-Nov-11,CHILDREN & YOUNG PEOPLE
Nottinghamshire County Council,08-06193,TRAVELWISE COACHES LTD,Transport & Travel,Bus,"1,807.24",0,"1,807.24",15-Nov-11,CHILDREN & YOUNG PEOPLE
Nottinghamshire County Council,08-07666,HEADLAND TAXI SERVICE,Transport & Travel,Taxi,820.43,0,820.43,17-Nov-11,CHILDREN & YOUNG PEOPLE
Nottinghamshire County Council,08-07695,UNITY COACHES,Transport & Travel,Bus,"2,414.81",0,"2,414.81",17-Nov-11,CHILDREN & YOUNG PEOPLE
Nottinghamshire County Council,08-07701,FIRST 4 CARE LTD,Care,Domiciliary Care,"1,761.68",352.34,"2,114.02",16-Nov-11,CHILDREN & YOUNG PEOPLE
Nottinghamshire County Council,08-07705,FIRST 4 CARE LTD,Care,Domiciliary Care,"2,751.90",550.38,"3,302.28",16-Nov-11,CHILDREN & YOUNG PEOPLE
Nottinghamshire County Council,08-07707,FIRST 4 CARE LTD,Care,Domiciliary Care,845,169,"1,014.00",16-Nov-11,CHILDREN & YOUNG PEOPLE
Nottinghamshire County Council,08-07727,B N GIBSON MOTORS,Transport & Travel,Taxi,"2,162.56",432.51,"2,595.07",16-Nov-11,CHILDREN & YOUNG PEOPLE
Nottinghamshire County Council,08-07728,B N GIBSON MOTORS,Transport & Travel,Taxi,"2,388.56",477.71,"2,866.27",16-Nov-11,CHILDREN & YOUNG PEOPLE
Nottinghamshire County Council,08-07729,B N GIBSON MOTORS,Transport & Travel,Taxi,"2,058.40",411.68,"2,470.08",16-Nov-11,CHILDREN & YOUNG PEOPLE
Nottinghamshire County Council,08-07730,B N GIBSON MOTORS,Transport & Travel,Taxi,"1,966.81",393.36,"2,360.17",16-Nov-11,CHILDREN & YOUNG PEOPLE
Nottinghamshire County Council,08-07731,B N GIBSON MOTORS,Transport & Travel,Taxi,"2,312.64",462.53,"2,775.17",16-Nov-11,CHILDREN & YOUNG PEOPLE
Nottinghamshire County Council,08-07732,B N GIBSON MOTORS,Transport & Travel,Taxi,"3,314.08",662.82,"3,976.90",16-Nov-11,CHILDREN & YOUNG PEOPLE
Nottinghamshire County Council,08-07733,B N GIBSON MOTORS,Transport & Travel,Taxi,"2,308.80",461.76,"2,770.56",16-Nov-11,CHILDREN & YOUNG PEOPLE
